Workbook

Sheet Lehm ja ratsiooni tingimused
B2: Piimaklaster MTÜ, Söötmiskulude optimeerimise mudel 3.0
C5: Piimalehm
C7: Kehamass, kg | D7: 650
C8: Piimatoodang, kg/päev | D8: 20
C9: Laktatsiooniperioodi etapp/kinnisperiood | D9: 0…30 lüpsipäev
C10: Sööda kuivaine tarbimine, kg/päev | D10: =Tehniline!D10 -> 13.55980379
C11: Söömus, % kehamassist | D11: =D10/D7 -> 0.0208612366
C15: Söödaratsiooni tingimused
C17: Silo
C18: Maksimaalne rohu- ja maisisilo kogus päevas, kg | D18: 50
C19: Minimaalne maisisilo osatähtsus kogu silokogusest, % | D19: 0.2
C20: Maksimaalne maisisilo osatähtsus kogu silokogusest, % | D20: 1
C21: Kui ratsioonis on korraga kaks või rohkem rohusilo, siis neist igaühe minimaalne osakaal, % | D21: 0
C23: Hein ja põhk
C24: Maksimaalne heina kogus päevas, kg | D24: 1
C25: Maksimaalne põhu kogus päevas, kg | D25: 0.5
C27: Rapsikook ja -šrott
C28: Maksimaalne rapsikoogi ja -šroti kogus päevas, kg | D28: 5
C30: Teravili ja jahu
C31: Maksimaalne teravilja, jahu ja õlikoogi kogus päevas, kg | D31: 15
C32: Maksimaalne nisu osatähtsus teravilja ja jahude kogusest, % | D32: 0.5
C33: Kui ratsioonis on korraga kaks või rohkem teravilja, siis neist igaühe minimaalne osakaal, % | D33: 0
C35: Kaitstud rasv
C36: Maksimaalne kaitstud rasva kogus päevas, kg | D36: 0.2
C38: Mineraalid
C39: Maksimaalne mineraalainete kogus päevas, kg | D39: 0.2
C40: Maksimaalne lubjakivi kogus päevas, kg | D40: 0.25
C42: Lisasööt
C43: Lisasööt 1, minmaalne kogus päevas, kg | D43: 0
C44: Lisasööt 2, minimaalne kogus päevas, kg | D44: 0

Sheet Söödad
A1: valik | C1: Söödad | D1: Hind, €/kg | E1: KA,% | F1: ME, MJ/kg KA | G1: Toorkiud, g/kg KA | H1: MP, g/kg KA | I1: VPB, g/kg KA | J1: VPB, g, max | K1: Ca, g/kg KA | L1: Ca, g, max | M1: P, g/kg KA | N1: (Toor) proteiin, g/kg KA | O1: Vaba - reserveering | P1: Tärklis+suhkur, g/kg KA | Q1: ADF, g/kg KA | R1: NDF, g/kg KA | S1: silo | T1: silo max% | U1: hein | V1: põhk | W1: jahud | X1: jahud% | Y1: nisu max | Z1: õlikoogid | AA1: panto | AB1: mineraal | AC1: lubjakivi | AD1: maisisilo min | AE1: Kaitstud rasv max | AF1: Lisasööt1 | AG1: Lisasööt2 | AH1: rohusilo max % | AI1: rohusilo max % | AJ1: rohusilo max % | AK1: rohusilo max % | AL1: rohusilo max % | AM1: rohusilo max % | AN1: rohusilo max % | AO1: rohusilo max % | AP1: rohusilo max % | AQ1: rohusilo max % | AR1: rohusilo max % | AS1: rohusilo max % | AT1: rohusilo max % | AU1: Vesi | AV1: teravilja max% | AW1: teravilja max% | AX1: teravilja max% | AY1: teravilja max% | AZ1: teravilja max% | BA1: teravilja max% | BB1: teravilja max% | BC1: teravilja max% | BD1: teravilja max% | BE1: teravilja max% | BF1: teravilja max% | BG1: teravilja max% | BH1: teravilja max% | BI1: teravilja max% | BJ1: teravilja max% | BK1: teravilja max% | BL1: teravilja max% | BM1: nisu max% | BN1: nisu max% | BO1: nisu max% | BP1: nisu max% | BQ1: nisu max% | BR1: nisu max% | BS1: nisu max% | BT1: nisu max% | BU1: TR g/kg | BV1: Na g/kg KA | BW1: K g/kg KA | BX1: Mg g/kg KA | BY1: KAB, mekv
B2: Silo | C2: Kõrreliste silo hea heintaimikuga kultuurrohumaalt LL 030-12-40 | D2: 0.03 | E2: 0.35 | F2: 10.1 | G2: 280 | H2: 79 | I2: -6 | J2: =I2 -> -6 | K2: 6 | L2: =K2 -> 6 | M2: 3 | N2: 128 | P2: 25 | Q2: 370 | R2: 560 | S2: 1 | T2: =-'Lehm ja ratsiooni tingimused'!$D$20 -> -1 | AD2: =0-'Lehm ja ratsiooni tingimused'!$D$19 -> -0.2 | AH2: =1-'Lehm ja ratsiooni tingimused'!$D$21 -> 1 | AI2: =IF(AND(Tehniline!$A$32,Tehniline!$A$33),-'Lehm ja ratsiooni tingimused'!$D$21,0) -> 0 | AJ2: =IF(AND(Tehniline!$A$32,Tehniline!$A$34),-'Lehm ja ratsiooni tingimused'!$D$21,0) -> 0 | AK2: =IF(AND(Tehniline!$A$32,Tehniline!$A$35),-'Lehm ja ratsiooni tingimused'!$D$21,0) -> 0 | AL2: =IF(AND(Tehniline!$A$32,Tehniline!$A$36),-'Lehm ja ratsiooni tingimused'!$D$21,0) -> 0 | AM2: =IF(AND(Tehniline!$A$32,Tehniline!$A$37),-'Lehm ja ratsiooni tingimused'!$D$21,0) -> 0 | AN2: =IF(AND(Tehniline!$A$32,Tehniline!$A$38),-'Lehm ja ratsiooni tingimused'!$D$21,0) -> 0 | AO2: =IF(AND(Tehniline!$A$32,Tehniline!$A$39),-'Lehm ja ratsiooni tingimused'!$D$21,0) -> 0 | AP2: =IF(AND(Tehniline!$A$32,Tehniline!$A$40),-'Lehm ja ratsiooni tingimused'!$D$21,0) -> 0 | AQ2: =IF(AND(Tehniline!$A$32,Tehniline!$A$41),-'Lehm ja ratsiooni tingimused'!$D$21,0) -> 0 | AR2: =IF(AND(Tehniline!$A$32,Tehniline!$A$42),-'Lehm ja ratsiooni tingimused'!$D$21,0) -> 0 | AS2: =IF(AND(Tehniline!$A$32,Tehniline!$A$43),-'Lehm ja ratsiooni tingimused'!$D$21,0) -> 0 | AT2: =IF(AND(Tehniline!$A$32,Tehniline!$A$44),-'Lehm ja ratsiooni tingimused'!$D$21,0) -> 0 | BU2: 36 | BV2: 0.5 | BY2: 214
B3: Silo | C3: Põldheinasilo (75% ristikut) LL 101-12-40 | D3: 0.03 | E3: 0.35 | F3: 9.7 | G3: 275 | H3: 79 | I3: 7 | J3: 7 | K3: 12.2 | L3: =K3 -> 12.2 | M3: 2.6 | N3: 142 | P3: 25 | Q3: 343 | R3: 467 | S3: 1 | T3: =-'Lehm ja ratsiooni tingimused'!$D$20 -> -1 | AD3: =0-'Lehm ja ratsiooni tingimused'!$D$19 -> -0.2 | AH3: =IF(AND(Tehniline!$A$32,Tehniline!$A$33),-'Lehm ja ratsiooni tingimused'!$D$21,0) -> 0 | AI3: =1-'Lehm ja ratsiooni tingimused'!$D$21 -> 1 | AJ3: =IF(AND(Tehniline!$A$34,Tehniline!$A$33),-'Lehm ja ratsiooni tingimused'!$D$21,0) -> 0 | AK3: =IF(AND(Tehniline!$A$35,Tehniline!$A$33),-'Lehm ja ratsiooni tingimused'!$D$21,0) -> 0 | AL3: =IF(AND(Tehniline!$A$36,Tehniline!$A$33),-'Lehm ja ratsiooni tingimused'!$D$21,0) -> 0 | AM3: =IF(AND(Tehniline!$A$37,Tehniline!$A$33),-'Lehm ja ratsiooni tingimused'!$D$21,0) -> 0 | AN3: =IF(AND(Tehniline!$A$38,Tehniline!$A$33),-'Lehm ja ratsiooni tingimused'!$D$21,0) -> 0 | AO3: =IF(AND(Tehniline!$A$39,Tehniline!$A$33),-'Lehm ja ratsiooni tingimused'!$D$21,0) -> 0 | AP3: =IF(AND(Tehniline!$A$40,Tehniline!$A$33),-'Lehm ja ratsiooni tingimused'!$D$21,0) -> 0 | AQ3: =IF(AND(Tehniline!$A$41,Tehniline!$A$33),-'Lehm ja ratsiooni tingimused'!$D$21,0) -> 0 | AR3: =IF(AND(Tehniline!$A$42,Tehniline!$A$33),-'Lehm ja ratsiooni tingimused'!$D$21,0) -> 0 | AS3: =IF(AND(Tehniline!$A$43,Tehniline!$A$33),-'Lehm ja ratsiooni tingimused'!$D$21,0) -> 0 | AT3: =IF(AND(Tehniline!$A$44,Tehniline!$A$33),-'Lehm ja ratsiooni tingimused'!$D$21,0) -> 0 | BU3: 37 | BV3: 0.5 | BY3: 296
B4: Silo | C4: Põldheinasilo (50% ristikut) LL 103-12-40 | D4: 0.03 | E4: 0.35 | F4: 9.8 | G4: 280 | H4: 79 | I4: 0 | J4: 0 | K4: 9.9 | L4: 9.9 | M4: 2.6 | N4: 135 | P4: 25 | Q4: 354 | R4: 502 | S4: 1 | T4: =-'Lehm ja ratsiooni tingimused'!$D$20 -> -1 | AD4: =0-'Lehm ja ratsiooni tingimused'!$D$19 -> -0.2 | AH4: =IF(AND(Tehniline!$A$32,Tehniline!$A$34),-'Lehm ja ratsiooni tingimused'!$D$21,0) -> 0 | AI4: =IF(AND(Tehniline!$A$33,Tehniline!$A$34),-'Lehm ja ratsiooni tingimused'!$D$21,0) -> 0 | AJ4: =1-'Lehm ja ratsiooni tingimused'!$D$21 -> 1 | AK4: =IF(AND(Tehniline!$A$35,Tehniline!$A$34),-'Lehm ja ratsiooni tingimused'!$D$21,0) -> 0 | AL4: =IF(AND(Tehniline!$A$36,Tehniline!$A$34),-'Lehm ja ratsiooni tingimused'!$D$21,0) -> 0 | AM4: =IF(AND(Tehniline!$A$37,Tehniline!$A$34),-'Lehm ja ratsiooni tingimused'!$D$21,0) -> 0 | AN4: =IF(AND(Tehniline!$A$38,Tehniline!$A$34),-'Lehm ja ratsiooni tingimused'!$D$21,0) -> 0 | AO4: =IF(AND(Tehniline!$A$39,Tehniline!$A$34),-'Lehm ja ratsiooni tingimused'!$D$21,0) -> 0 | AP4: =IF(AND(Tehniline!$A$40,Tehniline!$A$34),-'Lehm ja ratsiooni tingimused'!$D$21,0) -> 0 | AQ4: =IF(AND(Tehniline!$A$41,Tehniline!$A$34),-'Lehm ja ratsiooni tingimused'!$D$21,0) -> 0 | AR4: =IF(AND(Tehniline!$A$42,Tehniline!$A$34),-'Lehm ja ratsiooni tingimused'!$D$21,0) -> 0 | AS4: =IF(AND(Tehniline!$A$43,Tehniline!$A$34),-'Lehm ja ratsiooni tingimused'!$D$21,0) -> 0 | AT4: =IF(AND(Tehniline!$A$44,Tehniline!$A$34),-'Lehm ja ratsiooni tingimused'!$D$21,0) -> 0 | BU4: 36 | BV4: 0.5 | BY4: 288
B5: Silo | C5: Põldheinasilo (25% ristikut) LL 106-12-40 | D5: 0.03 | E5: 0.35 | F5: 9.9 | G5: 284 | H5: 76 | I5: -5 | J5: -5 | K5: 7.5 | L5: 7.5 | M5: 2.7 | N5: 125 | P5: 25 | Q5: 364 | R5: 536 | S5: 1 | T5: =-'Lehm ja ratsiooni tingimused'!$D$20 -> -1 | AD5: =0-'Lehm ja ratsiooni tingimused'!$D$19 -> -0.2 | AH5: =IF(AND(Tehniline!$A$32,Tehniline!$A$35),-'Lehm ja ratsiooni tingimused'!$D$21,0) -> 0 | AI5: =IF(AND(Tehniline!$A$33,Tehniline!$A$35),-'Lehm ja ratsiooni tingimused'!$D$21,0) -> 0 | AJ5: =IF(AND(Tehniline!$A$34,Tehniline!$A$35),-'Lehm ja ratsiooni tingimused'!$D$21,0) -> 0 | AK5: =1-'Lehm ja ratsiooni tingimused'!$D$21 -> 1 | AL5: =IF(AND(Tehniline!$A$36,Tehniline!$A$35),-'Lehm ja ratsiooni tingimused'!$D$21,0) -> 0 | AM5: =IF(AND(Tehniline!$A$37,Tehniline!$A$35),-'Lehm ja ratsiooni tingimused'!$D$21,0) -> 0 | AN5: =IF(AND(Tehniline!$A$38,Tehniline!$A$35),-'Lehm ja ratsiooni tingimused'!$D$21,0) -> 0 | AO5: =IF(AND(Tehniline!$A$39,Tehniline!$A$35),-'Lehm ja ratsiooni tingimused'!$D$21,0) -> 0 | AP5: =IF(AND(Tehniline!$A$40,Tehniline!$A$35),-'Lehm ja ratsiooni tingimused'!$D$21,0) -> 0 | AQ5: =IF(AND(Tehniline!$A$41,Tehniline!$A$35),-'Lehm ja ratsiooni tingimused'!$D$21,0) -> 0 | AR5: =IF(AND(Tehniline!$A$42,Tehniline!$A$35),-'Lehm ja ratsiooni tingimused'!$D$21,0) -> 0 | AS5: =IF(AND(Tehniline!$A$43,Tehniline!$A$35),-'Lehm ja ratsiooni tingimused'!$D$21,0) -> 0 | AT5: =IF(AND(Tehniline!$A$44,Tehniline!$A$35),-'Lehm ja ratsiooni tingimused'!$D$21,0) -> 0 | BU5: 35 | BV5: 0.5 | BY5: 251
B6: Silo | C6: Lutsernisilo TÕ 120-12-60 | D6: 0.03 | E6: 0.35 | F6: 8.4 | G6: 332 | H6: 68 | I6: 30 | J6: 30 | K6: 15.5 | L6: 15.5 | M6: 2.6 | N6: 147 | P6: 25 | Q6: 382 | R6: 475 | S6: 1 | T6: =-'Lehm ja ratsiooni tingimused'!$D$20 -> -1 | AD6: =0-'Lehm ja ratsiooni tingimused'!$D$19 -> -0.2 | AH6: =IF(AND(Tehniline!$A$32,Tehniline!$A$36),-'Lehm ja ratsiooni tingimused'!$D$21,0) -> 0 | AI6: =IF(AND(Tehniline!$A$33,Tehniline!$A$36),-'Lehm ja ratsiooni tingimused'!$D$21,0) -> 0 | AJ6: =IF(AND(Tehniline!$A$34,Tehniline!$A$36),-'Lehm ja ratsiooni tingimused'!$D$21,0) -> 0 | AK6: =IF(AND(Tehniline!$A$35,Tehniline!$A$36),-'Lehm ja ratsiooni tingimused'!$D$21,0) -> 0 | AL6: =1-'Lehm ja ratsiooni tingimused'!$D$21 -> 1 | AM6: =IF(AND(Tehniline!$A$37,Tehniline!$A$36),-'Lehm ja ratsiooni tingimused'!$D$21,0) -> 0 | AN6: =IF(AND(Tehniline!$A$38,Tehniline!$A$36),-'Lehm ja ratsiooni tingimused'!$D$21,0) -> 0 | AO6: =IF(AND(Tehniline!$A$39,Tehniline!$A$36),-'Lehm ja ratsiooni tingimused'!$D$21,0) -> 0 | AP6: =IF(AND(Tehniline!$A$40,Tehniline!$A$36),-'Lehm ja ratsiooni tingimused'!$D$21,0) -> 0 | AQ6: =IF(AND(Tehniline!$A$41,Tehniline!$A$36),-'Lehm ja ratsiooni tingimused'!$D$21,0) -> 0 | AR6: =IF(AND(Tehniline!$A$42,Tehniline!$A$36),-'Lehm ja ratsiooni tingimused'!$D$21,0) -> 0 | AS6: =IF(AND(Tehniline!$A$43,Tehniline!$A$36),-'Lehm ja ratsiooni tingimused'!$D$21,0) -> 0 | AT6: =IF(AND(Tehniline!$A$44,Tehniline!$A$36),-'Lehm ja ratsiooni tingimused'!$D$21,0) -> 0 | BU6: 29 | BV6: 0.4 | BY6: 156
B7: Silo | C7: Timutisilo LL 200-12-40 | D7: 0.03 | E7: 0.35 | F7: 10.1 | G7: 289 | H7: 76 | I7: -15 | J7: -15 | K7: 5.2 | L7: 5.2 | M7: 2.7 | N7: 115 | P7: 25 | Q7: 375 | R7: 571 | S7: 1 | T7: =-'Lehm ja ratsiooni tingimused'!$D$20 -> -1 | AD7: =0-'Lehm ja ratsiooni tingimused'!$D$19 -> -0.2 | AH7: =IF(AND(Tehniline!$A$32,Tehniline!$A$37),-'Lehm ja ratsiooni tingimused'!$D$21,0) -> 0 | AI7: =IF(AND(Tehniline!$A$33,Tehniline!$A$37),-'Lehm ja ratsiooni tingimused'!$D$21,0) -> 0 | AJ7: =IF(AND(Tehniline!$A$34,Tehniline!$A$37),-'Lehm ja ratsiooni tingimused'!$D$21,0) -> 0 | AK7: =IF(AND(Tehniline!$A$35,Tehniline!$A$37),-'Lehm ja ratsiooni tingimused'!$D$21,0) -> 0 | AL7: =IF(AND(Tehniline!$A$36,Tehniline!$A$37),-'Lehm ja ratsiooni tingimused'!$D$21,0) -> 0 | AM7: =1-'Lehm ja ratsiooni tingimused'!$D$21 -> 1 | AN7: =IF(AND(Tehniline!$A$38,Tehniline!$A$37),-'Lehm ja ratsiooni tingimused'!$D$21,0) -> 0 | AO7: =IF(AND(Tehniline!$A$39,Tehniline!$A$37),-'Lehm ja ratsiooni tingimused'!$D$21,0) -> 0 | AP7: =IF(AND(Tehniline!$A$40,Tehniline!$A$37),-'Lehm ja ratsiooni tingimused'!$D$21,0) -> 0 | AQ7: =IF(AND(Tehniline!$A$41,Tehniline!$A$37),-'Lehm ja ratsiooni tingimused'!$D$21,0) -> 0 | AR7: =IF(AND(Tehniline!$A$42,Tehniline!$A$37),-'Lehm ja ratsiooni tingimused'!$D$21,0) -> 0 | AS7: =IF(AND(Tehniline!$A$43,Tehniline!$A$37),-'Lehm ja ratsiooni tingimused'!$D$21,0) -> 0 | AT7: =IF(AND(Tehniline!$A$44,Tehniline!$A$37),-'Lehm ja ratsiooni tingimused'!$D$21,0) -> 0 | BU7: 34 | BV7: 0.4 | BY7: 235
B8: Silo | C8: Odravilisesilo VK (vahaküpsus) 255-12-80 | D8: 0.03 | E8: 0.3 | F8: 9.2 | G8: 255 | H8: 72 | I8: -26 | J8: -26 | K8: 3.5 | L8: 3.5 | M8: 2.4 | N8: 96 | P8: 25 | Q8: 306 | R8: 514 | S8: 1 | T8: =-'Lehm ja ratsiooni tingimused'!$D$20 -> -1 | AD8: =0-'Lehm ja ratsiooni tingimused'!$D$19 -> -0.2 | AH8: =IF(AND(Tehniline!$A$32,Tehniline!$A$38),-'Lehm ja ratsiooni tingimused'!$D$21,0) -> 0 | AI8: =IF(AND(Tehniline!$A$33,Tehniline!$A$38),-'Lehm ja ratsiooni tingimused'!$D$21,0) -> 0 | AJ8: =IF(AND(Tehniline!$A$34,Tehniline!$A$38),-'Lehm ja ratsiooni tingimused'!$D$21,0) -> 0 | AK8: =IF(AND(Tehniline!$A$35,Tehniline!$A$38),-'Lehm ja ratsiooni tingimused'!$D$21,0) -> 0 | AL8: =IF(AND(Tehniline!$A$36,Tehniline!$A$38),-'Lehm ja ratsiooni tingimused'!$D$21,0) -> 0 | AM8: =IF(AND(Tehniline!$A$37,Tehniline!$A$38),-'Lehm ja ratsiooni tingimused'!$D$21,0) -> 0 | AN8: =1-'Lehm ja ratsiooni tingimused'!$D$21 -> 1 | AO8: =IF(AND(Tehniline!$A$39,Tehniline!$A$38),-'Lehm ja ratsiooni tingimused'!$D$21,0) -> 0 | AP8: =IF(AND(Tehniline!$A$40,Tehniline!$A$38),-'Lehm ja ratsiooni tingimused'!$D$21,0) -> 0 | AQ8: =IF(AND(Tehniline!$A$41,Tehniline!$A$38),-'Lehm ja ratsiooni tingimused'!$D$21,0) -> 0 | AR8: =IF(AND(Tehniline!$A$42,Tehniline!$A$38),-'Lehm ja ratsiooni tingimused'!$D$21,0) -> 0 | AS8: =IF(AND(Tehniline!$A$43,Tehniline!$A$38),-'Lehm ja ratsiooni tingimused'!$D$21,0) -> 0 | AT8: =IF(AND(Tehniline!$A$44,Tehniline!$A$38),-'Lehm ja ratsiooni tingimused'!$D$21,0) -> 0 | BU8: 25
B9: Silo | C9: V auk - rohusilo | D9: 0.03 | E9: 0.253 | F9: 8.8 | G9: 312 | H9: 72 | I9: 27 | J9: 27 | K9: 10.9 | L9: 10.9 | M9: 3.4 | N9: 96 | P9: 25 | Q9: 350 | R9: 500 | S9: 1 | T9: =-'Lehm ja ratsiooni tingimused'!$D$20 -> -1 | AD9: =0-'Lehm ja ratsiooni tingimused'!$D$19 -> -0.2 | AH9: =IF(AND(Tehniline!$A$32,Tehniline!$A$39),-'Lehm ja ratsiooni tingimused'!$D$21,0) -> 0 | AI9: =IF(AND(Tehniline!$A$33,Tehniline!$A$39),-'Lehm ja ratsiooni tingimused'!$D$21,0) -> 0 | AJ9: =IF(AND(Tehniline!$A$34,Tehniline!$A$39),-'Lehm ja ratsiooni tingimused'!$D$21,0) -> 0 | AK9: =IF(AND(Tehniline!$A$35,Tehniline!$A$39),-'Lehm ja ratsiooni tingimused'!$D$21,0) -> 0 | AL9: =IF(AND(Tehniline!$A$36,Tehniline!$A$39),-'Lehm ja ratsiooni tingimused'!$D$21,0) -> 0 | AM9: =IF(AND(Tehniline!$A$37,Tehniline!$A$39),-'Lehm ja ratsiooni tingimused'!$D$21,0) -> 0 | AN9: =IF(AND(Tehniline!$A$38,Tehniline!$A$39),-'Lehm ja ratsiooni tingimused'!$D$21,0) -> 0 | AO9: =1-'Lehm ja ratsiooni tingimused'!$D$21 -> 1 | AP9: =IF(AND(Tehniline!$A$40,Tehniline!$A$39),-'Lehm ja ratsiooni tingimused'!$D$21,0) -> 0 | AQ9: =IF(AND(Tehniline!$A$41,Tehniline!$A$39),-'Lehm ja ratsiooni tingimused'!$D$21,0) -> 0 | AR9: =IF(AND(Tehniline!$A$42,Tehniline!$A$39),-'Lehm ja ratsiooni tingimused'!$D$21,0) -> 0 | AS9: =IF(AND(Tehniline!$A$43,Tehniline!$A$39),-'Lehm ja ratsiooni tingimused'!$D$21,0) -> 0 | AT9: =IF(AND(Tehniline!$A$44,Tehniline!$A$39),-'Lehm ja ratsiooni tingimused'!$D$21,0) -> 0 | BU9: 36 | BV9: 0.5 | BY9: 280
B10: Silo | C10: Uus rohusilo | D10: 0.03 | E10: 0.37 | F10: 9.5 | G10: 207 | H10: 76 | I10: -5 | J10: -5 | K10: 5.6 | L10: 5.6 | M10: 2.9 | N10: 125 | P10: 25 | Q10: 350 | R10: 500 | S10: 1 | T10: =-'Lehm ja ratsiooni tingimused'!$D$20 -> -1 | AD10: =0-'Lehm ja ratsiooni tingimused'!$D$19 -> -0.2 | AH10: =IF(AND(Tehniline!$A$32,Tehniline!$A$40),-'Lehm ja ratsiooni tingimused'!$D$21,0) -> 0 | AI10: =IF(AND(Tehniline!$A$33,Tehniline!$A$40),-'Lehm ja ratsiooni tingimused'!$D$21,0) -> 0 | AJ10: =IF(AND(Tehniline!$A$34,Tehniline!$A$40),-'Lehm ja ratsiooni tingimused'!$D$21,0) -> 0 | AK10: =IF(AND(Tehniline!$A$35,Tehniline!$A$40),-'Lehm ja ratsiooni tingimused'!$D$21,0) -> 0 | AL10: =IF(AND(Tehniline!$A$36,Tehniline!$A$40),-'Lehm ja ratsiooni tingimused'!$D$21,0) -> 0 | AM10: =IF(AND(Tehniline!$A$37,Tehniline!$A$40),-'Lehm ja ratsiooni tingimused'!$D$21,0) -> 0 | AN10: =IF(AND(Tehniline!$A$38,Tehniline!$A$40),-'Lehm ja ratsiooni tingimused'!$D$21,0) -> 0 | AO10: =IF(AND(Tehniline!$A$39,Tehniline!$A$40),-'Lehm ja ratsiooni tingimused'!$D$21,0) -> 0 | AP10: =1-'Lehm ja ratsiooni tingimused'!$D$21 -> 1 | AQ10: =IF(AND(Tehniline!$A$41,Tehniline!$A$40),-'Lehm ja ratsiooni tingimused'!$D$21,0) -> 0 | AR10: =IF(AND(Tehniline!$A$42,Tehniline!$A$40),-'Lehm ja ratsiooni tingimused'!$D$21,0) -> 0 | AS10: =IF(AND(Tehniline!$A$43,Tehniline!$A$40),-'Lehm ja ratsiooni tingimused'!$D$21,0) -> 0 | AT10: =IF(AND(Tehniline!$A$44,Tehniline!$A$40),-'Lehm ja ratsiooni tingimused'!$D$21,0) -> 0 | BU10: 38 | BV10: 0.5 | BY10: 280
B11: Silo | J11: 0 | L11: 0 | S11: 1 | T11: =-'Lehm ja ratsiooni tingimused'!$D$20 -> -1 | AD11: =0-'Lehm ja ratsiooni tingimused'!$D$19 -> -0.2 | AH11: =IF(AND(Tehniline!$A$32,Tehniline!$A$41),-'Lehm ja ratsiooni tingimused'!$D$21,0) -> 0 | AI11: =IF(AND(Tehniline!$A$33,Tehniline!$A$41),-'Lehm ja ratsiooni tingimused'!$D$21,0) -> 0 | AJ11: =IF(AND(Tehniline!$A$34,Tehniline!$A$41),-'Lehm ja ratsiooni tingimused'!$D$21,0) -> 0 | AK11: =IF(AND(Tehniline!$A$35,Tehniline!$A$41),-'Lehm ja ratsiooni tingimused'!$D$21,0) -> 0 | AL11: =IF(AND(Tehniline!$A$36,Tehniline!$A$41),-'Lehm ja ratsiooni tingimused'!$D$21,0) -> 0 | AM11: =IF(AND(Tehniline!$A$37,Tehniline!$A$41),-'Lehm ja ratsiooni tingimused'!$D$21,0) -> 0 | AN11: =IF(AND(Tehniline!$A$38,Tehniline!$A$41),-'Lehm ja ratsiooni tingimused'!$D$21,0) -> 0 | AO11: =IF(AND(Tehniline!$A$39,Tehniline!$A$41),-'Lehm ja ratsiooni tingimused'!$D$21,0) -> 0 | AP11: =IF(AND(Tehniline!$A$40,Tehniline!$A$41),-'Lehm ja ratsiooni tingimused'!$D$21,0) -> 0 | AQ11: =1-'Lehm ja ratsiooni tingimused'!$D$21 -> 1 | AR11: =IF(AND(Tehniline!$A$42,Tehniline!$A$41),-'Lehm ja ratsiooni tingimused'!$D$21,0) -> 0 | AS11: =IF(AND(Tehniline!$A$43,Tehniline!$A$41),-'Lehm ja ratsiooni tingimused'!$D$21,0) -> 0 | AT11: =IF(AND(Tehniline!$A$44,Tehniline!$A$41),-'Lehm ja ratsiooni tingimused'!$D$21,0) -> 0
B12: Silo | J12: 0 | L12: 0 | S12: 1 | T12: =-'Lehm ja ratsiooni tingimused'!$D$20 -> -1 | AD12: =0-'Lehm ja ratsiooni tingimused'!$D$19 -> -0.2 | AH12: =IF(AND(Tehniline!$A$32,Tehniline!$A$42),-'Lehm ja ratsiooni tingimused'!$D$21,0) -> 0 | AI12: =IF(AND(Tehniline!$A$33,Tehniline!$A$42),-'Lehm ja ratsiooni tingimused'!$D$21,0) -> 0 | AJ12: =IF(AND(Tehniline!$A$34,Tehniline!$A$42),-'Lehm ja ratsiooni tingimused'!$D$21,0) -> 0 | AK12: =IF(AND(Tehniline!$A$35,Tehniline!$A$42),-'Lehm ja ratsiooni tingimused'!$D$21,0) -> 0 | AL12: =IF(AND(Tehniline!$A$36,Tehniline!$A$42),-'Lehm ja ratsiooni tingimused'!$D$21,0) -> 0 | AM12: =IF(AND(Tehniline!$A$37,Tehniline!$A$42),-'Lehm ja ratsiooni tingimused'!$D$21,0) -> 0 | AN12: =IF(AND(Tehniline!$A$38,Tehniline!$A$42),-'Lehm ja ratsiooni tingimused'!$D$21,0) -> 0 | AO12: =IF(AND(Tehniline!$A$39,Tehniline!$A$42),-'Lehm ja ratsiooni tingimused'!$D$21,0) -> 0 | AP12: =IF(AND(Tehniline!$A$40,Tehniline!$A$42),-'Lehm ja ratsiooni tingimused'!$D$21,0) -> 0 | AQ12: =IF(AND(Tehniline!$A$41,Tehniline!$A$42),-'Lehm ja ratsiooni tingimused'!$D$21,0) -> 0 | AR12: =1-'Lehm ja ratsiooni tingimused'!$D$21 -> 1 | AS12: =IF(AND(Tehniline!$A$43,Tehniline!$A$42),-'Lehm ja ratsiooni tingimused'!$D$21,0) -> 0 | AT12: =IF(AND(Tehniline!$A$44,Tehniline!$A$42),-'Lehm ja ratsiooni tingimused'!$D$21,0) -> 0
B13: Silo | J13: 0 | L13: 0 | S13: 1 | T13: =-'Lehm ja ratsiooni tingimused'!$D$20 -> -1 | AD13: =0-'Lehm ja ratsiooni tingimused'!$D$19 -> -0.2 | AH13: =IF(AND(Tehniline!$A$32,Tehniline!$A$43),-'Lehm ja ratsiooni tingimused'!$D$21,0) -> 0 | AI13: =IF(AND(Tehniline!$A$33,Tehniline!$A$43),-'Lehm ja ratsiooni tingimused'!$D$21,0) -> 0 | AJ13: =IF(AND(Tehniline!$A$34,Tehniline!$A$43),-'Lehm ja ratsiooni tingimused'!$D$21,0) -> 0 | AK13: =IF(AND(Tehniline!$A$35,Tehniline!$A$43),-'Lehm ja ratsiooni tingimused'!$D$21,0) -> 0 | AL13: =IF(AND(Tehniline!$A$36,Tehniline!$A$43),-'Lehm ja ratsiooni tingimused'!$D$21,0) -> 0 | AM13: =IF(AND(Tehniline!$A$37,Tehniline!$A$43),-'Lehm ja ratsiooni tingimused'!$D$21,0) -> 0 | AN13: =IF(AND(Tehniline!$A$38,Tehniline!$A$43),-'Lehm ja ratsiooni tingimused'!$D$21,0) -> 0 | AO13: =IF(AND(Tehniline!$A$39,Tehniline!$A$43),-'Lehm ja ratsiooni tingimused'!$D$21,0) -> 0 | AP13: =IF(AND(Tehniline!$A$40,Tehniline!$A$43),-'Lehm ja ratsiooni tingimused'!$D$21,0) -> 0 | AQ13: =IF(AND(Tehniline!$A$41,Tehniline!$A$43),-'Lehm ja ratsiooni tingimused'!$D$21,0) -> 0 | AR13: =IF(AND(Tehniline!$A$42,Tehniline!$A$43),-'Lehm ja ratsiooni tingimused'!$D$21,0) -> 0 | AS13: =1-'Lehm ja ratsiooni tingimused'!$D$21 -> 1 | AT13: =IF(AND(Tehniline!$A$44,Tehniline!$A$43),-'Lehm ja ratsiooni tingimused'!$D$21,0) -> 0
B14: Maisisilo | C14: Maisisilo PK 260-12-70 | D14: 0.03 | E14: 0.22 | F14: 10.4 | G14: 280 | H14: 76 | I14: -34 | J14: -34 | K14: 4 | L14: 4 | M14: 2.3 | N14: 95 | P14: 300 | Q14: 356 | R14: 575 | S14: 1 | T14: =1-'Lehm ja ratsiooni tingimused'!$D$20 -> 0 | AD14: =1-'Lehm ja ratsiooni tingimused'!$D$19 -> 0.8 | BU14: 32 | BV14: 0.5 | BY14: 141
B15: Maisisilo | C15: VII auk - maisisilo | D15: 0.03 | E15: 0.23 | F15: 11 | G15: 223 | H15: 79 | I15: -43 | J15: -43 | K15: 3.9 | L15: 3.9 | M15: 2.1 | N15: 91 | P15: 300 | Q15: 356 | R15: 575 | S15: 1 | T15: =1-'Lehm ja ratsiooni tingimused'!$D$20 -> 0 | AD15: =1-'Lehm ja ratsiooni tingimused'!$D$19 -> 0.8 | BU15: 32 | BV15: 0.5 | BY15: 141
B16: Maisisilo | C16: Uus maisisilo | D16: 0.03 | E16: 0.281 | F16: 10.4 | G16: 256 | H16: 77 | I16: -43 | J16: -43 | K16: 4.9 | L16: 4.9 | M16: 2.7 | N16: 88 | P16: 300 | Q16: 356 | R16: 575 | S16: 1 | T16: =1-'Lehm ja ratsiooni tingimused'!$D$20 -> 0 | AD16: =1-'Lehm ja ratsiooni tingimused'!$D$19 -> 0.8 | BU16: 27 | BV16: 0.5 | BY16: 141
B17: Maisisilo | C17: Tervikkoristatud rukkisilo | D17: 0.028 | E17: 0.39 | F17: 9.4 | G17: 253 | H17: 74 | I17: -42 | J17: -42 | K17: 2.8 | L17: 2.8 | M17: 2.2 | N17: 83 | P17: 198.5 | Q17: 265 | R17: 473 | S17: 1 | T17: =1-'Lehm ja ratsiooni tingimused'!$D$20 -> 0 | AD17: =1-'Lehm ja ratsiooni tingimused'!$D$19 -> 0.8 | BU17: 27 | BV17: 0.5 | BY17: 141
B18: Maisisilo | J18: 0 | L18: 0 | S18: 1 | T18: =1-'Lehm ja ratsiooni tingimused'!$D$20 -> 0 | AD18: =1-'Lehm ja ratsiooni tingimused'!$D$19 -> 0.8
B19: Hein | C19: Hein kõrreliste kultuurrohumaa 030-15-60 | D19: 0.04 | E19: 0.83 | F19: 8.4 | G19: 335 | H19: 69 | I19: -39 | J19: -39 | K19: 5.3 | L19: 5.3 | M19: 2.3 | N19: 80 | Q19: 423 | R19: 667 | U19: 1 | BU19: 23 | BV19: 0.4 | BY19: 193
B20: Hein | C20: Põldhein (75% ristikut) LL 101-15-40 | D20: 0.04 | E20: 0.83 | F20: 9.3 | G20: 308 | H20: 83 | I20: -9 | J20: -9 | K20: 11.4 | L20: 11.4 | M20: 2.5 | N20: 134 | Q20: 375 | R20: 530 | U20: 1 | BU20: 26 | BV20: 0.6 | BY20: 313
B21: Hein | C21: Põldhein (50% ristikut) LL 103-15-40 | D21: 0.04 | E21: 0.83 | F21: 9.3 | G21: 314 | H21: 81 | I21: -17 | J21: -17 | K21: 9.2 | L21: 9.2 | M21: 2.4 | N21: 123 | Q21: 384 | R21: 569 | U21: 1 | BU21: 25 | BV21: 0.5 | BY21: 242
B22: Hein | C22: Timuthein LL 200-15-40 | D22: 0.04 | E22: 0.83 | F22: 9 | G22: 325 | H22: 76 | I22: -30 | J22: -30 | K22: 4.8 | L22: 4.8 | M22: 2.4 | N22: 100 | Q22: 403 | R22: 646 | U22: 1 | BU22: 23 | BV22: 0.5 | BY22: 213
B23: Hein | C23: Põldhein (25% ristikut) LL 106-15-40 | D23: 0.04 | E23: 0.83 | F23: 9 | G23: 319 | H23: 77 | I23: -22 | J23: -22 | K23: 7 | L23: 7 | M23: 2.4 | N23: 111 | Q23: 393 | R23: 607 | U23: 1 | BU23: 24 | BV23: 0.5 | BY23: 250
B24: Hein | C24: Püsirohumaa hein | D24: 0.04 | E24: 0.83 | F24: 7.1 | G24: 304 | H24: 63 | I24: -19 | J24: -19 | K24: 4 | L24: 4 | M24: 2 | N24: 95 | Q24: 396 | R24: 604 | U24: 1 | BU24: 23 | BV24: 0.4 | BY24: 193
B25: Hein | U25: 1
B26: Hein | J26: 0 | L26: 0 | U26: 1
B27: Hein | J27: 0 | L27: 0 | U27: 1
B28: Põhk | C28: Kaerapõhk 250-16-0 | D28: 0.01 | E28: 0.83 | F28: 6.8 | G28: 425 | H28: 54 | I28: -48 | J28: -48 | K28: 3.9 | L28: 3.9 | M28: 1.1 | N28: 45 | Q28: 471 | R28: 751 | V28: 1 | BU28: 20 | BV28: 1 | BY28: 328
B29: Põhk | C29: Odrapõhk 255-16-0 | D29: 0.08 | E29: 0.83 | F29: 6.9 | G29: 420 | H29: 56 | I29: -48 | J29: -48 | K29: 3.9 | L29: 3.9 | M29: 1 | N29: 47 | Q29: 499 | R29: 788 | V29: 1 | BU29: 20 | BV29: 1 | BY29: 184
B30: Põhk | C30: Nisupõhk 265-16-0 | D30: 0.08 | E30: 0.83 | F30: 6 | G30: 436 | H30: 48 | I30: -45 | J30: -45 | K30: 3 | L30: 3 | M30: 0.8 | N30: 37 | Q30: 535 | R30: 818 | V30: 1 | BU30: 17 | BV30: 0.5 | BY30: 178
B31: Põhk | C31: Segaviljapõhk 061-16-0 | D31: 0.01 | E31: 0.83 | F31: 7 | G31: 420 | H31: 58 | I31: -34 | J31: -34 | K31: 10.2 | L31: 10.2 | M31: 1.7 | N31: 65 | V31: 1 | BU31: 20 | BV31: 0.7 | BY31: 173
B32: Põhk | C32: Rapsipõhk | D32: 0.01 | E32: 0.82 | F32: 5.3 | G32: 498 | H32: 49 | I32: -52 | J32: -52 | K32: 14.2 | L32: 14.2 | M32: 0.8 | N32: 31 | V32: 1 | BU32: 20 | BV32: 1 | BY32: 175
B33: Põhk | J33: 0 | L33: 0 | V33: 1
B34: Põhk | J34: =I34 -> 0 | L34: 0 | V34: 1
B35: Põhk | J35: 0 | L35: 0 | V35: 1
B36: Õlikoogid | C36: Rapsikook 350-28 | D36: 0.27 | E36: 0.9 | F36: 13.4 | G36: 123 | H36: 161 | I36: 139 | J36: 139 | K36: 8.3 | L36: 8.3 | M36: 10.5 | N36: 342 | P36: 120 | Q36: 232 | R36: 333 | W36: 1 | Z36: 1 | BU36: 126 | BV36: 0.1 | BY36: -585
B37: Õlikoogid | C37: Rapsisrott 350-29 | D37: 0.37 | E37: 0.9 | F37: 11.7 | G37: 135 | H37: 157 | I37: 142 | J37: 142 | K37: 8 | L37: 8 | M37: 11.5 | N37: 382 | P37: 120 | W37: 1 | Z37: 1 | BU37: 29 | BV37: 0.2 | BY37: -614
B38: Õlikoogid | C38: Sojašrott 310-29 | D38: 0.47 | E38: 0.88 | F38: 14.1 | G38: 79 | H38: 196 | I38: 200 | J38: 200 | K38: 3.4 | L38: 3.4 | M38: 7.3 | N38: 500 | P38: 260 | Q38: 94 | R38: 170 | W38: 1 | BU38: 17 | BV38: 0.2 | BY38: 262
B39: Õlikoogid | C39: Päevalillekook 300-28 | D39: 0.4 | E39: 0.9 | F39: 10.8 | G39: 224 | H39: 125 | I39: 164 | J39: 164 | K39: 3.5 | L39: 3.5 | M39: 9.5 | N39: 356 | P39: 120 | W39: 1 | BU39: 90 | BV39: 0.2 | BY39: 78
B40: Õlikoogid | C40: Päevalillesrott 300-29 | D40: 0.4 | E40: 0.9 | F40: 9.3 | G40: 235 | H40: 134 | I40: 175 | J40: 175 | K40: 4.4 | L40: 4.4 | M40: 11.5 | N40: 380 | P40: 120 | W40: 1 | BU40: 12 | BV40: 0.2 | BY40: 55
B41: Õlikoogid | J41: 0 | L41: 0 | W41: 1
B42: Õlikoogid | J42: 0 | L42: 0 | W42: 1
B43: Õlikoogid | J43: 0 | L43: 0 | W43: 1
B44: Teraviljad | C44: Oder 255-20/21 | D44: 0.15 | E44: 0.86 | F44: 13 | G44: 60 | H44: 103 | I44: -44 | J44: -44 | K44: 0.8 | L44: 0.8 | M44: 4.1 | N44: 125 | P44: 600 | Q44: 79 | R44: 221 | W44: 1 | X44: -0.5 | Y44: =0-'Lehm ja ratsiooni tingimused'!$D$32 -> -0.5 | AV44: =1-'Lehm ja ratsiooni tingimused'!$D$33 -> 1 | AW44: =IF(AND(Tehniline!$B$33,Tehniline!$B32),-'Lehm ja ratsiooni tingimused'!$D$33,0) -> 0 | AX44: =IF(AND(Tehniline!$B$34,Tehniline!$B32),-'Lehm ja ratsiooni tingimused'!$D$33,0) -> 0 | AY44: =IF(AND(Tehniline!$B$35,Tehniline!$B32),-'Lehm ja ratsiooni tingimused'!$D$33,0) -> 0 | AZ44: =IF(AND(Tehniline!$B$36,Tehniline!$B32),-'Lehm ja ratsiooni tingimused'!$D$33,0) -> 0 | BA44: =IF(AND(Tehniline!$B$37,Tehniline!$B32),-'Lehm ja ratsiooni tingimused'!$D$33,0) -> 0 | BB44: =IF(AND(Tehniline!$B$38,Tehniline!$B32),-'Lehm ja ratsiooni tingimused'!$D$33,0) -> 0 | BC44: =IF(AND(Tehniline!$B$39,Tehniline!$B32),-'Lehm ja ratsiooni tingimused'!$D$33,0) -> 0 | BD44: =IF(AND(Tehniline!$B$40,Tehniline!$B32),-'Lehm ja ratsiooni tingimused'!$D$33,0) -> 0 | BE44: =IF(AND(Tehniline!$B$41,Tehniline!$B32),-'Lehm ja ratsiooni tingimused'!$D$33,0) -> 0 | BF44: =IF(AND(Tehniline!$B$42,Tehniline!$B32),-'Lehm ja ratsiooni tingimused'!$D$33,0) -> 0 | BG44: =IF(AND(Tehniline!$B$43,Tehniline!$B32),-'Lehm ja ratsiooni tingimused'!$D$33,0) -> 0 | BH44: =IF(AND(Tehniline!$B$44,Tehniline!$B32),-'Lehm ja ratsiooni tingimused'!$D$33,0) -> 0 | BI44: =IF(AND(Tehniline!$B$45,Tehniline!$B32),-'Lehm ja ratsiooni tingimused'!$D$33,0) -> 0 | BJ44: =IF(AND(Tehniline!$B$46,Tehniline!$B32),-'Lehm ja ratsiooni tingimused'!$D$33,0) -> 0 | BK44: =IF(AND(Tehniline!$B$47,Tehniline!$B32),-'Lehm ja ratsiooni tingimused'!$D$33,0) -> 0 | BL44: =IF(AND(Tehniline!$B$48,Tehniline!$B32),-'Lehm ja ratsiooni tingimused'!$D$33,0) -> 0 | BM44: =IF(AND(Tehniline!$B$49,Tehniline!$B32),-'Lehm ja ratsiooni tingimused'!$D$33,0) -> 0 | BN44: =IF(AND(Tehniline!$B$50,Tehniline!$B32),-'Lehm ja ratsiooni tingimused'!$D$33,0) -> 0 | BO44: =IF(AND(Tehniline!$B$51,Tehniline!$B32),-'Lehm ja ratsiooni tingimused'!$D$33,0) -> 0 | BU44: 22 | BV44: 0.2 | BY44: 19
B45: Teraviljad | C45: Mais 260-20/21 | D45: 0.2 | E45: 0.86 | F45: 14.2 | G45: 29 | H45: 121 | I45: -100 | J45: -100 | K45: 0.4 | L45: 0.4 | M45: 3.1 | N45: 95 | P45: 700 | Q45: 28 | R45: 108 | W45: 1 | X45: -0.5 | Y45: =0-'Lehm ja ratsiooni tingimused'!$D$32 -> -0.5 | AV45: =IF(AND(Tehniline!$B$32,Tehniline!$B33),-'Lehm ja ratsiooni tingimused'!$D$33,0) -> 0 | AW45: =1-'Lehm ja ratsiooni tingimused'!$D$33 -> 1 | AX45: =IF(AND(Tehniline!$B$34,Tehniline!$B33),-'Lehm ja ratsiooni tingimused'!$D$33,0) -> 0 | AY45: =IF(AND(Tehniline!$B$35,Tehniline!$B33),-'Lehm ja ratsiooni tingimused'!$D$33,0) -> 0 | AZ45: =IF(AND(Tehniline!$B$36,Tehniline!$B33),-'Lehm ja ratsiooni tingimused'!$D$33,0) -> 0 | BA45: =IF(AND(Tehniline!$B$37,Tehniline!$B33),-'Lehm ja ratsiooni tingimused'!$D$33,0) -> 0 | BB45: =IF(AND(Tehniline!$B$38,Tehniline!$B33),-'Lehm ja ratsiooni tingimused'!$D$33,0) -> 0 | BC45: =IF(AND(Tehniline!$B$39,Tehniline!$B33),-'Lehm ja ratsiooni tingimused'!$D$33,0) -> 0 | BD45: =IF(AND(Tehniline!$B$40,Tehniline!$B33),-'Lehm ja ratsiooni tingimused'!$D$33,0) -> 0 | BE45: =IF(AND(Tehniline!$B$41,Tehniline!$B33),-'Lehm ja ratsiooni tingimused'!$D$33,0) -> 0 | BF45: =IF(AND(Tehniline!$B$42,Tehniline!$B33),-'Lehm ja ratsiooni tingimused'!$D$33,0) -> 0 | BG45: =IF(AND(Tehniline!$B$43,Tehniline!$B33),-'Lehm ja ratsiooni tingimused'!$D$33,0) -> 0 | BH45: =IF(AND(Tehniline!$B$44,Tehniline!$B33),-'Lehm ja ratsiooni tingimused'!$D$33,0) -> 0 | BI45: =IF(AND(Tehniline!$B$45,Tehniline!$B33),-'Lehm ja ratsiooni tingimused'!$D$33,0) -> 0 | BJ45: =IF(AND(Tehniline!$B$46,Tehniline!$B33),-'Lehm ja ratsiooni tingimused'!$D$33,0) -> 0 | BK45: =IF(AND(Tehniline!$B$47,Tehniline!$B33),-'Lehm ja ratsiooni tingimused'!$D$33,0) -> 0 | BL45: =IF(AND(Tehniline!$B$48,Tehniline!$B33),-'Lehm ja ratsiooni tingimused'!$D$33,0) -> 0 | BM45: =IF(AND(Tehniline!$B$49,Tehniline!$B33),-'Lehm ja ratsiooni tingimused'!$D$33,0) -> 0 | BN45: =IF(AND(Tehniline!$B$50,Tehniline!$B33),-'Lehm ja ratsiooni tingimused'!$D$33,0) -> 0 | BO45: =IF(AND(Tehniline!$B$51,Tehniline!$B33),-'Lehm ja ratsiooni tingimused'!$D$33,0) -> 0 | BU45: 45 | BV45: 0.1 | BY45: 12
B46: Teraviljad | C46: Kaer 250-20/21 | D46: 0.15 | E46: 0.86 | F46: 11.9 | G46: 112 | H46: 92 | I46: -23 | J46: -23 | K46: 1.2 | L46: 1.2 | M46: 3.8 | N46: 127 | P46: 600 | Q46: 111 | R46: 310 | W46: 1 | X46: -0.5 | Y46: =0-'Lehm ja ratsiooni tingimused'!$D$32 -> -0.5 | AV46: =IF(AND(Tehniline!$B$32,Tehniline!$B34),-'Lehm ja ratsiooni tingimused'!$D$33,0) -> 0 | AW46: =IF(AND(Tehniline!$B$33,Tehniline!$B34),-'Lehm ja ratsiooni tingimused'!$D$33,0) -> 0 | AX46: =1-'Lehm ja ratsiooni tingimused'!$D$33 -> 1 | AY46: =IF(AND(Tehniline!$B$35,Tehniline!$B34),-'Lehm ja ratsiooni tingimused'!$D$33,0) -> 0 | AZ46: =IF(AND(Tehniline!$B$36,Tehniline!$B34),-'Lehm ja ratsiooni tingimused'!$D$33,0) -> 0 | BA46: =IF(AND(Tehniline!$B$37,Tehniline!$B34),-'Lehm ja ratsiooni tingimused'!$D$33,0) -> 0 | BB46: =IF(AND(Tehniline!$B$38,Tehniline!$B34),-'Lehm ja ratsiooni tingimused'!$D$33,0) -> 0 | BC46: =IF(AND(Tehniline!$B$39,Tehniline!$B34),-'Lehm ja ratsiooni tingimused'!$D$33,0) -> 0 | BD46: =IF(AND(Tehniline!$B$40,Tehniline!$B34),-'Lehm ja ratsiooni tingimused'!$D$33,0) -> 0 | BE46: =IF(AND(Tehniline!$B$41,Tehniline!$B34),-'Lehm ja ratsiooni tingimused'!$D$33,0) -> 0 | BF46: =IF(AND(Tehniline!$B$42,Tehniline!$B34),-'Lehm ja ratsiooni tingimused'!$D$33,0) -> 0 | BG46: =IF(AND(Tehniline!$B$43,Tehniline!$B34),-'Lehm ja ratsiooni tingimused'!$D$33,0) -> 0 | BH46: =IF(AND(Tehniline!$B$44,Tehniline!$B34),-'Lehm ja ratsiooni tingimused'!$D$33,0) -> 0 | BI46: =IF(AND(Tehniline!$B$45,Tehniline!$B34),-'Lehm ja ratsiooni tingimused'!$D$33,0) -> 0 | BJ46: =IF(AND(Tehniline!$B$46,Tehniline!$B34),-'Lehm ja ratsiooni tingimused'!$D$33,0) -> 0 | BK46: =IF(AND(Tehniline!$B$47,Tehniline!$B34),-'Lehm ja ratsiooni tingimused'!$D$33,0) -> 0 | BL46: =IF(AND(Tehniline!$B$48,Tehniline!$B34),-'Lehm ja ratsiooni tingimused'!$D$33,0) -> 0 | BM46: =IF(AND(Tehniline!$B$49,Tehniline!$B34),-'Lehm ja ratsiooni tingimused'!$D$33,0) -> 0 | BN46: =IF(AND(Tehniline!$B$50,Tehniline!$B34),-'Lehm ja ratsiooni tingimused'!$D$33,0) -> 0 | BO46: =IF(AND(Tehniline!$B$51,Tehniline!$B34),-'Lehm ja ratsiooni tingimused'!$D$33,0) -> 0 | BU46: 53 | BV46: 0.2 | BY46: -13
B47: Teraviljad | C47: Rukis 270-20/21 | D47: 0.13 | E47: 0.86 | F47: 13.6 | G47: 27 | H47: 103 | I47: -60 | J47: -60 | K47: 0.7 | L47: 0.7 | M47: 3.5 | N47: 110 | P47: 600 | W47: 1 | X47: -0.5 | Y47: =0-'Lehm ja ratsiooni tingimused'!$D$32 -> -0.5 | AV47: =IF(AND(Tehniline!$B$32,Tehniline!$B35),-'Lehm ja ratsiooni tingimused'!$D$33,0) -> 0 | AW47: =IF(AND(Tehniline!$B$33,Tehniline!$B35),-'Lehm ja ratsiooni tingimused'!$D$33,0) -> 0 | AX47: =IF(AND(Tehniline!$B$34,Tehniline!$B35),-'Lehm ja ratsiooni tingimused'!$D$33,0) -> 0 | AY47: =1-'Lehm ja ratsiooni tingimused'!$D$33 -> 1 | AZ47: =IF(AND(Tehniline!$B$36,Tehniline!$B35),-'Lehm ja ratsiooni tingimused'!$D$33,0) -> 0 | BA47: =IF(AND(Tehniline!$B$37,Tehniline!$B35),-'Lehm ja ratsiooni tingimused'!$D$33,0) -> 0 | BB47: =IF(AND(Tehniline!$B$38,Tehniline!$B35),-'Lehm ja ratsiooni tingimused'!$D$33,0) -> 0 | BC47: =IF(AND(Tehniline!$B$39,Tehniline!$B35),-'Lehm ja ratsiooni tingimused'!$D$33,0) -> 0 | BD47: =IF(AND(Tehniline!$B$40,Tehniline!$B35),-'Lehm ja ratsiooni tingimused'!$D$33,0) -> 0 | BE47: =IF(AND(Tehniline!$B$41,Tehniline!$B35),-'Lehm ja ratsiooni tingimused'!$D$33,0) -> 0 | BF47: =IF(AND(Tehniline!$B$42,Tehniline!$B35),-'Lehm ja ratsiooni tingimused'!$D$33,0) -> 0 | BG47: =IF(AND(Tehniline!$B$43,Tehniline!$B35),-'Lehm ja ratsiooni tingimused'!$D$33,0) -> 0 | BH47: =IF(AND(Tehniline!$B$44,Tehniline!$B35),-'Lehm ja ratsiooni tingimused'!$D$33,0) -> 0 | BI47: =IF(AND(Tehniline!$B$45,Tehniline!$B35),-'Lehm ja ratsiooni tingimused'!$D$33,0) -> 0 | BJ47: =IF(AND(Tehniline!$B$46,Tehniline!$B35),-'Lehm ja ratsiooni tingimused'!$D$33,0) -> 0 | BK47: =IF(AND(Tehniline!$B$47,Tehniline!$B35),-'Lehm ja ratsiooni tingimused'!$D$33,0) -> 0 | BL47: =IF(AND(Tehniline!$B$48,Tehniline!$B35),-'Lehm ja ratsiooni tingimused'!$D$33,0) -> 0 | BM47: =IF(AND(Tehniline!$B$49,Tehniline!$B35),-'Lehm ja ratsiooni tingimused'!$D$33,0) -> 0 | BN47: =IF(AND(Tehniline!$B$50,Tehniline!$B35),-'Lehm ja ratsiooni tingimused'!$D$33,0) -> 0 | BO47: =IF(AND(Tehniline!$B$51,Tehniline!$B35),-'Lehm ja ratsiooni tingimused'!$D$33,0) -> 0 | BU47: 21 | BV47: 0.1 | BY47: 50
B48: Teraviljad | C48: Tritikale 275-20/21 | D48: 0.15 | E48: 0.86 | F48: 13.9 | G48: 27 | H48: 105 | I48: -34 | J48: -34 | K48: 0.5 | L48: 0.5 | M48: 3.5 | N48: 140 | P48: 600 | W48: 1 | X48: -0.5 | Y48: =0-'Lehm ja ratsiooni tingimused'!$D$32 -> -0.5 | AV48: =IF(AND(Tehniline!$B$32,Tehniline!$B36),-'Lehm ja ratsiooni tingimused'!$D$33,0) -> 0 | AW48: =IF(AND(Tehniline!$B$33,Tehniline!$B36),-'Lehm ja ratsiooni tingimused'!$D$33,0) -> 0 | AX48: =IF(AND(Tehniline!$B$34,Tehniline!$B36),-'Lehm ja ratsiooni tingimused'!$D$33,0) -> 0 | AY48: =IF(AND(Tehniline!$B$35,Tehniline!$B36),-'Lehm ja ratsiooni tingimused'!$D$33,0) -> 0 | AZ48: =1-'Lehm ja ratsiooni tingimused'!$D$33 -> 1 | BA48: =IF(AND(Tehniline!$B$37,Tehniline!$B36),-'Lehm ja ratsiooni tingimused'!$D$33,0) -> 0 | BB48: =IF(AND(Tehniline!$B$38,Tehniline!$B36),-'Lehm ja ratsiooni tingimused'!$D$33,0) -> 0 | BC48: =IF(AND(Tehniline!$B$39,Tehniline!$B36),-'Lehm ja ratsiooni tingimused'!$D$33,0) -> 0 | BD48: =IF(AND(Tehniline!$B$40,Tehniline!$B36),-'Lehm ja ratsiooni tingimused'!$D$33,0) -> 0 | BE48: =IF(AND(Tehniline!$B$41,Tehniline!$B36),-'Lehm ja ratsiooni tingimused'!$D$33,0) -> 0 | BF48: =IF(AND(Tehniline!$B$42,Tehniline!$B36),-'Lehm ja ratsiooni tingimused'!$D$33,0) -> 0 | BG48: =IF(AND(Tehniline!$B$43,Tehniline!$B36),-'Lehm ja ratsiooni tingimused'!$D$33,0) -> 0 | BH48: =IF(AND(Tehniline!$B$44,Tehniline!$B36),-'Lehm ja ratsiooni tingimused'!$D$33,0) -> 0 | BI48: =IF(AND(Tehniline!$B$45,Tehniline!$B36),-'Lehm ja ratsiooni tingimused'!$D$33,0) -> 0 | BJ48: =IF(AND(Tehniline!$B$46,Tehniline!$B36),-'Lehm ja ratsiooni tingimused'!$D$33,0) -> 0 | BK48: =IF(AND(Tehniline!$B$47,Tehniline!$B36),-'Lehm ja ratsiooni tingimused'!$D$33,0) -> 0 | BL48: =IF(AND(Tehniline!$B$48,Tehniline!$B36),-'Lehm ja ratsiooni tingimused'!$D$33,0) -> 0 | BM48: =IF(AND(Tehniline!$B$49,Tehniline!$B36),-'Lehm ja ratsiooni tingimused'!$D$33,0) -> 0 | BN48: =IF(AND(Tehniline!$B$50,Tehniline!$B36),-'Lehm ja ratsiooni tingimused'!$D$33,0) -> 0 | BO48: =IF(AND(Tehniline!$B$51,Tehniline!$B36),-'Lehm ja ratsiooni tingimused'!$D$33,0) -> 0 | BU48: 21 | BV48: 0.1 | BY48: 50
B49: Teraviljad | C49: Kaerakliid 250-24 | D49: 0.15 | E49: 0.86 | F49: 9.5 | G49: 185 | H49: 76 | I49: -28 | J49: -28 | K49: 1.7 | L49: 1.7 | M49: 4.1 | N49: 95 | P49: 600 | W49: 1 | X49: -0.5 | Y49: =0-'Lehm ja ratsiooni tingimused'!$D$32 -> -0.5 | AV49: =IF(AND(Tehniline!$B$32,Tehniline!$B37),-'Lehm ja ratsiooni tingimused'!$D$33,0) -> 0 | AW49: =IF(AND(Tehniline!$B$33,Tehniline!$B37),-'Lehm ja ratsiooni tingimused'!$D$33,0) -> 0 | AX49: =IF(AND(Tehniline!$B$34,Tehniline!$B37),-'Lehm ja ratsiooni tingimused'!$D$33,0) -> 0 | AY49: =IF(AND(Tehniline!$B$35,Tehniline!$B37),-'Lehm ja ratsiooni tingimused'!$D$33,0) -> 0 | AZ49: =IF(AND(Tehniline!$B$36,Tehniline!$B37),-'Lehm ja ratsiooni tingimused'!$D$33,0) -> 0 | BA49: =1-'Lehm ja ratsiooni tingimused'!$D$33 -> 1 | BB49: =IF(AND(Tehniline!$B$38,Tehniline!$B37),-'Lehm ja ratsiooni tingimused'!$D$33,0) -> 0 | BC49: =IF(AND(Tehniline!$B$39,Tehniline!$B37),-'Lehm ja ratsiooni tingimused'!$D$33,0) -> 0 | BD49: =IF(AND(Tehniline!$B$40,Tehniline!$B37),-'Lehm ja ratsiooni tingimused'!$D$33,0) -> 0 | BE49: =IF(AND(Tehniline!$B$41,Tehniline!$B37),-'Lehm ja ratsiooni tingimused'!$D$33,0) -> 0 | BF49: =IF(AND(Tehniline!$B$42,Tehniline!$B37),-'Lehm ja ratsiooni tingimused'!$D$33,0) -> 0 | BG49: =IF(AND(Tehniline!$B$43,Tehniline!$B37),-'Lehm ja ratsiooni tingimused'!$D$33,0) -> 0 | BH49: =IF(AND(Tehniline!$B$44,Tehniline!$B37),-'Lehm ja ratsiooni tingimused'!$D$33,0) -> 0 | BI49: =IF(AND(Tehniline!$B$45,Tehniline!$B37),-'Lehm ja ratsiooni tingimused'!$D$33,0) -> 0 | BJ49: =IF(AND(Tehniline!$B$46,Tehniline!$B37),-'Lehm ja ratsiooni tingimused'!$D$33,0) -> 0 | BK49: =IF(AND(Tehniline!$B$47,Tehniline!$B37),-'Lehm ja ratsiooni tingimused'!$D$33,0) -> 0 | BL49: =IF(AND(Tehniline!$B$48,Tehniline!$B37),-'Lehm ja ratsiooni tingimused'!$D$33,0) -> 0 | BM49: =IF(AND(Tehniline!$B$49,Tehniline!$B37),-'Lehm ja ratsiooni tingimused'!$D$33,0) -> 0 | BN49: =IF(AND(Tehniline!$B$50,Tehniline!$B37),-'Lehm ja ratsiooni tingimused'!$D$33,0) -> 0 | BO49: =IF(AND(Tehniline!$B$51,Tehniline!$B37),-'Lehm ja ratsiooni tingimused'!$D$33,0) -> 0 | BU49: 35 | BV49: 0.5 | BY49: 100
B50: Teraviljad | C50: Odrakliid 255-24 | D50: 0.15 | E50: 0.86 | F50: 10.8 | G50: 155 | H50: 86 | I50: -10 | J50: -10 | K50: 1.6 | L50: 1.6 | M50: 4.3 | N50: 130 | P50: 600 | W50: 1 | X50: -0.5 | Y50: =0-'Lehm ja ratsiooni tingimused'!$D$32 -> -0.5 | AV50: =IF(AND(Tehniline!$B$32,Tehniline!$B38),-'Lehm ja ratsiooni tingimused'!$D$33,0) -> 0 | AW50: =IF(AND(Tehniline!$B$33,Tehniline!$B38),-'Lehm ja ratsiooni tingimused'!$D$33,0) -> 0 | AX50: =IF(AND(Tehniline!$B$34,Tehniline!$B38),-'Lehm ja ratsiooni tingimused'!$D$33,0) -> 0 | AY50: =IF(AND(Tehniline!$B$35,Tehniline!$B38),-'Lehm ja ratsiooni tingimused'!$D$33,0) -> 0 | AZ50: =IF(AND(Tehniline!$B$36,Tehniline!$B38),-'Lehm ja ratsiooni tingimused'!$D$33,0) -> 0 | BA50: =IF(AND(Tehniline!$B$37,Tehniline!$B38),-'Lehm ja ratsiooni tingimused'!$D$33,0) -> 0 | BB50: =1-'Lehm ja ratsiooni tingimused'!$D$33 -> 1 | BC50: =IF(AND(Tehniline!$B$39,Tehniline!$B38),-'Lehm ja ratsiooni tingimused'!$D$33,0) -> 0 | BD50: =IF(AND(Tehniline!$B$40,Tehniline!$B38),-'Lehm ja ratsiooni tingimused'!$D$33,0) -> 0 | BE50: =IF(AND(Tehniline!$B$41,Tehniline!$B38),-'Lehm ja ratsiooni tingimused'!$D$33,0) -> 0 | BF50: =IF(AND(Tehniline!$B$42,Tehniline!$B38),-'Lehm ja ratsiooni tingimused'!$D$33,0) -> 0 | BG50: =IF(AND(Tehniline!$B$43,Tehniline!$B38),-'Lehm ja ratsiooni tingimused'!$D$33,0) -> 0 | BH50: =IF(AND(Tehniline!$B$44,Tehniline!$B38),-'Lehm ja ratsiooni tingimused'!$D$33,0) -> 0 | BI50: =IF(AND(Tehniline!$B$45,Tehniline!$B38),-'Lehm ja ratsiooni tingimused'!$D$33,0) -> 0 | BJ50: =IF(AND(Tehniline!$B$46,Tehniline!$B38),-'Lehm ja ratsiooni tingimused'!$D$33,0) -> 0 | BK50: =IF(AND(Tehniline!$B$47,Tehniline!$B38),-'Lehm ja ratsiooni tingimused'!$D$33,0) -> 0 | BL50: =IF(AND(Tehniline!$B$48,Tehniline!$B38),-'Lehm ja ratsiooni tingimused'!$D$33,0) -> 0 | BM50: =IF(AND(Tehniline!$B$49,Tehniline!$B38),-'Lehm ja ratsiooni tingimused'!$D$33,0) -> 0 | BN50: =IF(AND(Tehniline!$B$50,Tehniline!$B38),-'Lehm ja ratsiooni tingimused'!$D$33,0) -> 0 | BO50: =IF(AND(Tehniline!$B$51,Tehniline!$B38),-'Lehm ja ratsiooni tingimused'!$D$33,0) -> 0 | BU50: 32 | BV50: 0.5 | BY50: 161
B51: Teraviljad | C51: Rukkikliid 270-24 | D51: 0.15 | E51: 0.86 | F51: 10.8 | G51: 100 | H51: 92 | I51: 10 | J51: 10 | K51: 1.4 | L51: 1.4 | M51: 10.2 | N51: 160 | P51: 600 | W51: 1 | X51: -0.5 | Y51: =0-'Lehm ja ratsiooni tingimused'!$D$32 -> -0.5 | AV51: =IF(AND(Tehniline!$B$32,Tehniline!$B39),-'Lehm ja ratsiooni tingimused'!$D$33,0) -> 0 | AW51: =IF(AND(Tehniline!$B$33,Tehniline!$B39),-'Lehm ja ratsiooni tingimused'!$D$33,0) -> 0 | AX51: =IF(AND(Tehniline!$B$34,Tehniline!$B39),-'Lehm ja ratsiooni tingimused'!$D$33,0) -> 0 | AY51: =IF(AND(Tehniline!$B$35,Tehniline!$B39),-'Lehm ja ratsiooni tingimused'!$D$33,0) -> 0 | AZ51: =IF(AND(Tehniline!$B$36,Tehniline!$B39),-'Lehm ja ratsiooni tingimused'!$D$33,0) -> 0 | BA51: =IF(AND(Tehniline!$B$37,Tehniline!$B39),-'Lehm ja ratsiooni tingimused'!$D$33,0) -> 0 | BB51: =IF(AND(Tehniline!$B$38,Tehniline!$B39),-'Lehm ja ratsiooni tingimused'!$D$33,0) -> 0 | BC51: =1-'Lehm ja ratsiooni tingimused'!$D$33 -> 1 | BD51: =IF(AND(Tehniline!$B$40,Tehniline!$B39),-'Lehm ja ratsiooni tingimused'!$D$33,0) -> 0 | BE51: =IF(AND(Tehniline!$B$41,Tehniline!$B39),-'Lehm ja ratsiooni tingimused'!$D$33,0) -> 0 | BF51: =IF(AND(Tehniline!$B$42,Tehniline!$B39),-'Lehm ja ratsiooni tingimused'!$D$33,0) -> 0 | BG51: =IF(AND(Tehniline!$B$43,Tehniline!$B39),-'Lehm ja ratsiooni tingimused'!$D$33,0) -> 0 | BH51: =IF(AND(Tehniline!$B$44,Tehniline!$B39),-'Lehm ja ratsiooni tingimused'!$D$33,0) -> 0 | BI51: =IF(AND(Tehniline!$B$45,Tehniline!$B39),-'Lehm ja ratsiooni tingimused'!$D$33,0) -> 0 | BJ51: =IF(AND(Tehniline!$B$46,Tehniline!$B39),-'Lehm ja ratsiooni tingimused'!$D$33,0) -> 0 | BK51: =IF(AND(Tehniline!$B$47,Tehniline!$B39),-'Lehm ja ratsiooni tingimused'!$D$33,0) -> 0 | BL51: =IF(AND(Tehniline!$B$48,Tehniline!$B39),-'Lehm ja ratsiooni tingimused'!$D$33,0) -> 0 | BM51: =IF(AND(Tehniline!$B$49,Tehniline!$B39),-'Lehm ja ratsiooni tingimused'!$D$33,0) -> 0 | BN51: =IF(AND(Tehniline!$B$50,Tehniline!$B39),-'Lehm ja ratsiooni tingimused'!$D$33,0) -> 0 | BO51: =IF(AND(Tehniline!$B$51,Tehniline!$B39),-'Lehm ja ratsiooni tingimused'!$D$33,0) -> 0 | BU51: 38 | BV51: 0.1 | BY51: 273
B52: Teraviljad | C52: Hernes 150-20/21 | D52: 0.15 | E52: 0.86 | F52: 13.7 | G52: 67 | H52: 123 | I52: 52 | J52: 52 | K52: 1.3 | L52: 1.3 | M52: 4.5 | N52: 250 | P52: 600 | Q52: 76 | R52: 116 | W52: 1 | X52: -0.5 | Y52: =0-'Lehm ja ratsiooni tingimused'!$D$32 -> -0.5 | AV52: =IF(AND(Tehniline!$B$32,Tehniline!$B40),-'Lehm ja ratsiooni tingimused'!$D$33,0) -> 0 | AW52: =IF(AND(Tehniline!$B$33,Tehniline!$B40),-'Lehm ja ratsiooni tingimused'!$D$33,0) -> 0 | AX52: =IF(AND(Tehniline!$B$34,Tehniline!$B40),-'Lehm ja ratsiooni tingimused'!$D$33,0) -> 0 | AY52: =IF(AND(Tehniline!$B$35,Tehniline!$B40),-'Lehm ja ratsiooni tingimused'!$D$33,0) -> 0 | AZ52: =IF(AND(Tehniline!$B$36,Tehniline!$B40),-'Lehm ja ratsiooni tingimused'!$D$33,0) -> 0 | BA52: =IF(AND(Tehniline!$B$37,Tehniline!$B40),-'Lehm ja ratsiooni tingimused'!$D$33,0) -> 0 | BB52: =IF(AND(Tehniline!$B$38,Tehniline!$B40),-'Lehm ja ratsiooni tingimused'!$D$33,0) -> 0 | BC52: =IF(AND(Tehniline!$B$39,Tehniline!$B40),-'Lehm ja ratsiooni tingimused'!$D$33,0) -> 0 | BD52: =1-'Lehm ja ratsiooni tingimused'!$D$33 -> 1 | BE52: =IF(AND(Tehniline!$B$41,Tehniline!$B40),-'Lehm ja ratsiooni tingimused'!$D$33,0) -> 0 | BF52: =IF(AND(Tehniline!$B$42,Tehniline!$B40),-'Lehm ja ratsiooni tingimused'!$D$33,0) -> 0 | BG52: =IF(AND(Tehniline!$B$43,Tehniline!$B40),-'Lehm ja ratsiooni tingimused'!$D$33,0) -> 0 | BH52: =IF(AND(Tehniline!$B$44,Tehniline!$B40),-'Lehm ja ratsiooni tingimused'!$D$33,0) -> 0 | BI52: =IF(AND(Tehniline!$B$45,Tehniline!$B40),-'Lehm ja ratsiooni tingimused'!$D$33,0) -> 0 | BJ52: =IF(AND(Tehniline!$B$46,Tehniline!$B40),-'Lehm ja ratsiooni tingimused'!$D$33,0) -> 0 | BK52: =IF(AND(Tehniline!$B$47,Tehniline!$B40),-'Lehm ja ratsiooni tingimused'!$D$33,0) -> 0 | BL52: =IF(AND(Tehniline!$B$48,Tehniline!$B40),-'Lehm ja ratsiooni tingimused'!$D$33,0) -> 0 | BM52: =IF(AND(Tehniline!$B$49,Tehniline!$B40),-'Lehm ja ratsiooni tingimused'!$D$33,0) -> 0 | BN52: =IF(AND(Tehniline!$B$50,Tehniline!$B40),-'Lehm ja ratsiooni tingimused'!$D$33,0) -> 0 | BO52: =IF(AND(Tehniline!$B$51,Tehniline!$B40),-'Lehm ja ratsiooni tingimused'!$D$33,0) -> 0 | BU52: 15 | BV52: 0.1 | BY52: 159
B53: Teraviljad | C53: Konservvili 2677 nisu | D53: 0.15 | E53: 0.634 | F53: 13.8 | G53: 40 | H53: 93 | I53: -59 | J53: -59 | K53: 0.9 | L53: 0.9 | M53: 3.9 | P53: 600 | W53: 1 | X53: -0.5 | Y53: =0-'Lehm ja ratsiooni tingimused'!$D$32 -> -0.5 | AV53: =IF(AND(Tehniline!$B$32,Tehniline!$B41),-'Lehm ja ratsiooni tingimused'!$D$33,0) -> 0 | AW53: =IF(AND(Tehniline!$B$33,Tehniline!$B41),-'Lehm ja ratsiooni tingimused'!$D$33,0) -> 0 | AX53: =IF(AND(Tehniline!$B$34,Tehniline!$B41),-'Lehm ja ratsiooni tingimused'!$D$33,0) -> 0 | AY53: =IF(AND(Tehniline!$B$35,Tehniline!$B41),-'Lehm ja ratsiooni tingimused'!$D$33,0) -> 0 | AZ53: =IF(AND(Tehniline!$B$36,Tehniline!$B41),-'Lehm ja ratsiooni tingimused'!$D$33,0) -> 0 | BA53: =IF(AND(Tehniline!$B$37,Tehniline!$B41),-'Lehm ja ratsiooni tingimused'!$D$33,0) -> 0 | BB53: =IF(AND(Tehniline!$B$38,Tehniline!$B41),-'Lehm ja ratsiooni tingimused'!$D$33,0) -> 0 | BC53: =IF(AND(Tehniline!$B$39,Tehniline!$B41),-'Lehm ja ratsiooni tingimused'!$D$33,0) -> 0 | BD53: =IF(AND(Tehniline!$B$40,Tehniline!$B41),-'Lehm ja ratsiooni tingimused'!$D$33,0) -> 0 | BE53: =1-'Lehm ja ratsiooni tingimused'!$D$33 -> 1 | BF53: =IF(AND(Tehniline!$B$42,Tehniline!$B41),-'Lehm ja ratsiooni tingimused'!$D$33,0) -> 0 | BG53: =IF(AND(Tehniline!$B$43,Tehniline!$B41),-'Lehm ja ratsiooni tingimused'!$D$33,0) -> 0 | BH53: =IF(AND(Tehniline!$B$44,Tehniline!$B41),-'Lehm ja ratsiooni tingimused'!$D$33,0) -> 0 | BI53: =IF(AND(Tehniline!$B$45,Tehniline!$B41),-'Lehm ja ratsiooni tingimused'!$D$33,0) -> 0 | BJ53: =IF(AND(Tehniline!$B$46,Tehniline!$B41),-'Lehm ja ratsiooni tingimused'!$D$33,0) -> 0 | BK53: =IF(AND(Tehniline!$B$47,Tehniline!$B41),-'Lehm ja ratsiooni tingimused'!$D$33,0) -> 0 | BL53: =IF(AND(Tehniline!$B$48,Tehniline!$B41),-'Lehm ja ratsiooni tingimused'!$D$33,0) -> 0 | BM53: =IF(AND(Tehniline!$B$49,Tehniline!$B41),-'Lehm ja ratsiooni tingimused'!$D$33,0) -> 0 | BN53: =IF(AND(Tehniline!$B$50,Tehniline!$B41),-'Lehm ja ratsiooni tingimused'!$D$33,0) -> 0 | BO53: =IF(AND(Tehniline!$B$51,Tehniline!$B41),-'Lehm ja ratsiooni tingimused'!$D$33,0) -> 0 | BU53: 41 | BV53: 0.2 | BY53: 10
B54: Teraviljad | C54: Muljutud konserveeritud kaer 250-22 | D54: 0.15 | E54: 0.65 | F54: 12 | G54: 117 | H54: 92 | I54: -18 | J54: -18 | K54: 1.2 | L54: 1.2 | M54: 3.5 | N54: 130 | P54: 630 | Q54: 137 | R54: 313 | W54: 1 | X54: -0.5 | Y54: =0-'Lehm ja ratsiooni tingimused'!$D$32 -> -0.5 | AV54: =IF(AND(Tehniline!$B$32,Tehniline!$B42),-'Lehm ja ratsiooni tingimused'!$D$33,0) -> 0 | AW54: =IF(AND(Tehniline!$B$33,Tehniline!$B42),-'Lehm ja ratsiooni tingimused'!$D$33,0) -> 0 | AX54: =IF(AND(Tehniline!$B$34,Tehniline!$B42),-'Lehm ja ratsiooni tingimused'!$D$33,0) -> 0 | AY54: =IF(AND(Tehniline!$B$35,Tehniline!$B42),-'Lehm ja ratsiooni tingimused'!$D$33,0) -> 0 | AZ54: =IF(AND(Tehniline!$B$36,Tehniline!$B42),-'Lehm ja ratsiooni tingimused'!$D$33,0) -> 0 | BA54: =IF(AND(Tehniline!$B$37,Tehniline!$B42),-'Lehm ja ratsiooni tingimused'!$D$33,0) -> 0 | BB54: =IF(AND(Tehniline!$B$38,Tehniline!$B42),-'Lehm ja ratsiooni tingimused'!$D$33,0) -> 0 | BC54: =IF(AND(Tehniline!$B$39,Tehniline!$B42),-'Lehm ja ratsiooni tingimused'!$D$33,0) -> 0 | BD54: =IF(AND(Tehniline!$B$40,Tehniline!$B42),-'Lehm ja ratsiooni tingimused'!$D$33,0) -> 0 | BE54: =IF(AND(Tehniline!$B$41,Tehniline!$B42),-'Lehm ja ratsiooni tingimused'!$D$33,0) -> 0 | BF54: =1-'Lehm ja ratsiooni tingimused'!$D$33 -> 1 | BG54: =IF(AND(Tehniline!$B$43,Tehniline!$B42),-'Lehm ja ratsiooni tingimused'!$D$33,0) -> 0 | BH54: =IF(AND(Tehniline!$B$44,Tehniline!$B42),-'Lehm ja ratsiooni tingimused'!$D$33,0) -> 0 | BI54: =IF(AND(Tehniline!$B$45,Tehniline!$B42),-'Lehm ja ratsiooni tingimused'!$D$33,0) -> 0 | BJ54: =IF(AND(Tehniline!$B$46,Tehniline!$B42),-'Lehm ja ratsiooni tingimused'!$D$33,0) -> 0 | BK54: =IF(AND(Tehniline!$B$47,Tehniline!$B42),-'Lehm ja ratsiooni tingimused'!$D$33,0) -> 0 | BL54: =IF(AND(Tehniline!$B$48,Tehniline!$B42),-'Lehm ja ratsiooni tingimused'!$D$33,0) -> 0 | BM54: =IF(AND(Tehniline!$B$49,Tehniline!$B42),-'Lehm ja ratsiooni tingimused'!$D$33,0) -> 0 | BN54: =IF(AND(Tehniline!$B$50,Tehniline!$B42),-'Lehm ja ratsiooni tingimused'!$D$33,0) -> 0 | BO54: =IF(AND(Tehniline!$B$51,Tehniline!$B42),-'Lehm ja ratsiooni tingimused'!$D$33,0) -> 0 | BU54: 59 | BV54: 0.2 | BY54: -13
B55: Teraviljad | C55: Muljutud konserveeritud oder 255-22 | D55: 0.15 | E55: 0.65 | F55: 12.9 | G55: 68 | H55: 102 | I55: -41 | J55: -41 | K55: 0.8 | L55: 0.8 | M55: 3.6 | N55: 126 | P55: 630 | Q55: 78 | R55: 235 | W55: 1 | X55: -0.5 | Y55: =0-'Lehm ja ratsiooni tingimused'!$D$32 -> -0.5 | AV55: =IF(AND(Tehniline!$B$32,Tehniline!$B43),-'Lehm ja ratsiooni tingimused'!$D$33,0) -> 0 | AW55: =IF(AND(Tehniline!$B$33,Tehniline!$B43),-'Lehm ja ratsiooni tingimused'!$D$33,0) -> 0 | AX55: =IF(AND(Tehniline!$B$34,Tehniline!$B43),-'Lehm ja ratsiooni tingimused'!$D$33,0) -> 0 | AY55: =IF(AND(Tehniline!$B$35,Tehniline!$B43),-'Lehm ja ratsiooni tingimused'!$D$33,0) -> 0 | AZ55: =IF(AND(Tehniline!$B$36,Tehniline!$B43),-'Lehm ja ratsiooni tingimused'!$D$33,0) -> 0 | BA55: =IF(AND(Tehniline!$B$37,Tehniline!$B43),-'Lehm ja ratsiooni tingimused'!$D$33,0) -> 0 | BB55: =IF(AND(Tehniline!$B$38,Tehniline!$B43),-'Lehm ja ratsiooni tingimused'!$D$33,0) -> 0 | BC55: =IF(AND(Tehniline!$B$39,Tehniline!$B43),-'Lehm ja ratsiooni tingimused'!$D$33,0) -> 0 | BD55: =IF(AND(Tehniline!$B$40,Tehniline!$B43),-'Lehm ja ratsiooni tingimused'!$D$33,0) -> 0 | BE55: =IF(AND(Tehniline!$B$41,Tehniline!$B43),-'Lehm ja ratsiooni tingimused'!$D$33,0) -> 0 | BF55: =IF(AND(Tehniline!$B$42,Tehniline!$B43),-'Lehm ja ratsiooni tingimused'!$D$33,0) -> 0 | BG55: =1-'Lehm ja ratsiooni tingimused'!$D$33 -> 1 | BH55: =IF(AND(Tehniline!$B$44,Tehniline!$B43),-'Lehm ja ratsiooni tingimused'!$D$33,0) -> 0 | BI55: =IF(AND(Tehniline!$B$45,Tehniline!$B43),-'Lehm ja ratsiooni tingimused'!$D$33,0) -> 0 | BJ55: =IF(AND(Tehniline!$B$46,Tehniline!$B43),-'Lehm ja ratsiooni tingimused'!$D$33,0) -> 0 | BK55: =IF(AND(Tehniline!$B$47,Tehniline!$B43),-'Lehm ja ratsiooni tingimused'!$D$33,0) -> 0 | BL55: =IF(AND(Tehniline!$B$48,Tehniline!$B43),-'Lehm ja ratsiooni tingimused'!$D$33,0) -> 0 | BM55: =IF(AND(Tehniline!$B$49,Tehniline!$B43),-'Lehm ja ratsiooni tingimused'!$D$33,0) -> 0 | BN55: =IF(AND(Tehniline!$B$50,Tehniline!$B43),-'Lehm ja ratsiooni tingimused'!$D$33,0) -> 0 | BO55: =IF(AND(Tehniline!$B$51,Tehniline!$B43),-'Lehm ja ratsiooni tingimused'!$D$33,0) -> 0 | BU55: 24 | BV55: 0.2 | BY55: 32
B56: Teraviljad | J56: 0 | L56: 0 | W56: 1 | X56: -0.5 | Y56: =0-'Lehm ja ratsiooni tingimused'!$D$32 -> -0.5 | AV56: =IF(AND(Tehniline!$B$32,Tehniline!$B44),-'Lehm ja ratsiooni tingimused'!$D$33,0) -> 0 | AW56: =IF(AND(Tehniline!$B$33,Tehniline!$B44),-'Lehm ja ratsiooni tingimused'!$D$33,0) -> 0 | AX56: =IF(AND(Tehniline!$B$34,Tehniline!$B44),-'Lehm ja ratsiooni tingimused'!$D$33,0) -> 0 | AY56: =IF(AND(Tehniline!$B$35,Tehniline!$B44),-'Lehm ja ratsiooni tingimused'!$D$33,0) -> 0 | AZ56: =IF(AND(Tehniline!$B$36,Tehniline!$B44),-'Lehm ja ratsiooni tingimused'!$D$33,0) -> 0 | BA56: =IF(AND(Tehniline!$B$37,Tehniline!$B44),-'Lehm ja ratsiooni tingimused'!$D$33,0) -> 0 | BB56: =IF(AND(Tehniline!$B$38,Tehniline!$B44),-'Lehm ja ratsiooni tingimused'!$D$33,0) -> 0 | BC56: =IF(AND(Tehniline!$B$39,Tehniline!$B44),-'Lehm ja ratsiooni tingimused'!$D$33,0) -> 0 | BD56: =IF(AND(Tehniline!$B$40,Tehniline!$B44),-'Lehm ja ratsiooni tingimused'!$D$33,0) -> 0 | BE56: =IF(AND(Tehniline!$B$41,Tehniline!$B44),-'Lehm ja ratsiooni tingimused'!$D$33,0) -> 0 | BF56: =IF(AND(Tehniline!$B$42,Tehniline!$B44),-'Lehm ja ratsiooni tingimused'!$D$33,0) -> 0 | BG56: =IF(AND(Tehniline!$B$43,Tehniline!$B44),-'Lehm ja ratsiooni tingimused'!$D$33,0) -> 0 | BH56: =1-'Lehm ja ratsiooni tingimused'!$D$33 -> 1 | BI56: =IF(AND(Tehniline!$B$45,Tehniline!$B44),-'Lehm ja ratsiooni tingimused'!$D$33,0) -> 0 | BJ56: =IF(AND(Tehniline!$B$46,Tehniline!$B44),-'Lehm ja ratsiooni tingimused'!$D$33,0) -> 0 | BK56: =IF(AND(Tehniline!$B$47,Tehniline!$B44),-'Lehm ja ratsiooni tingimused'!$D$33,0) -> 0 | BL56: =IF(AND(Tehniline!$B$48,Tehniline!$B44),-'Lehm ja ratsiooni tingimused'!$D$33,0) -> 0 | BM56: =IF(AND(Tehniline!$B$49,Tehniline!$B44),-'Lehm ja ratsiooni tingimused'!$D$33,0) -> 0 | BN56: =IF(AND(Tehniline!$B$50,Tehniline!$B44),-'Lehm ja ratsiooni tingimused'!$D$33,0) -> 0 | BO56: =IF(AND(Tehniline!$B$51,Tehniline!$B44),-'Lehm ja ratsiooni tingimused'!$D$33,0) -> 0
B57: Teraviljad | J57: 0 | L57: 0 | W57: 1 | X57: -0.5 | Y57: =0-'Lehm ja ratsiooni tingimused'!$D$32 -> -0.5 | AV57: =IF(AND(Tehniline!$B$32,Tehniline!$B45),-'Lehm ja ratsiooni tingimused'!$D$33,0) -> 0 | AW57: =IF(AND(Tehniline!$B$33,Tehniline!$B45),-'Lehm ja ratsiooni tingimused'!$D$33,0) -> 0 | AX57: =IF(AND(Tehniline!$B$34,Tehniline!$B45),-'Lehm ja ratsiooni tingimused'!$D$33,0) -> 0 | AY57: =IF(AND(Tehniline!$B$35,Tehniline!$B45),-'Lehm ja ratsiooni tingimused'!$D$33,0) -> 0 | AZ57: =IF(AND(Tehniline!$B$36,Tehniline!$B45),-'Lehm ja ratsiooni tingimused'!$D$33,0) -> 0 | BA57: =IF(AND(Tehniline!$B$37,Tehniline!$B45),-'Lehm ja ratsiooni tingimused'!$D$33,0) -> 0 | BB57: =IF(AND(Tehniline!$B$38,Tehniline!$B45),-'Lehm ja ratsiooni tingimused'!$D$33,0) -> 0 | BC57: =IF(AND(Tehniline!$B$39,Tehniline!$B45),-'Lehm ja ratsiooni tingimused'!$D$33,0) -> 0 | BD57: =IF(AND(Tehniline!$B$40,Tehniline!$B45),-'Lehm ja ratsiooni tingimused'!$D$33,0) -> 0 | BE57: =IF(AND(Tehniline!$B$41,Tehniline!$B45),-'Lehm ja ratsiooni tingimused'!$D$33,0) -> 0 | BF57: =IF(AND(Tehniline!$B$42,Tehniline!$B45),-'Lehm ja ratsiooni tingimused'!$D$33,0) -> 0 | BG57: =IF(AND(Tehniline!$B$43,Tehniline!$B45),-'Lehm ja ratsiooni tingimused'!$D$33,0) -> 0 | BH57: =IF(AND(Tehniline!$B$44,Tehniline!$B45),-'Lehm ja ratsiooni tingimused'!$D$33,0) -> 0 | BI57: =1-'Lehm ja ratsiooni tingimused'!$D$33 -> 1 | BJ57: =IF(AND(Tehniline!$B$46,Tehniline!$B45),-'Lehm ja ratsiooni tingimused'!$D$33,0) -> 0 | BK57: =IF(AND(Tehniline!$B$47,Tehniline!$B45),-'Lehm ja ratsiooni tingimused'!$D$33,0) -> 0 | BL57: =IF(AND(Tehniline!$B$48,Tehniline!$B45),-'Lehm ja ratsiooni tingimused'!$D$33,0) -> 0 | BM57: =IF(AND(Tehniline!$B$49,Tehniline!$B45),-'Lehm ja ratsiooni tingimused'!$D$33,0) -> 0 | BN57: =IF(AND(Tehniline!$B$50,Tehniline!$B45),-'Lehm ja ratsiooni tingimused'!$D$33,0) -> 0 | BO57: =IF(AND(Tehniline!$B$51,Tehniline!$B45),-'Lehm ja ratsiooni tingimused'!$D$33,0) -> 0
B58: Teraviljad | J58: 0 | L58: 0 | W58: 1 | X58: -0.5 | Y58: =0-'Lehm ja ratsiooni tingimused'!$D$32 -> -0.5 | AV58: =IF(AND(Tehniline!$B$32,Tehniline!$B46),-'Lehm ja ratsiooni tingimused'!$D$33,0) -> 0 | AW58: =IF(AND(Tehniline!$B$33,Tehniline!$B46),-'Lehm ja ratsiooni tingimused'!$D$33,0) -> 0 | AX58: =IF(AND(Tehniline!$B$34,Tehniline!$B46),-'Lehm ja ratsiooni tingimused'!$D$33,0) -> 0 | AY58: =IF(AND(Tehniline!$B$35,Tehniline!$B46),-'Lehm ja ratsiooni tingimused'!$D$33,0) -> 0 | AZ58: =IF(AND(Tehniline!$B$36,Tehniline!$B46),-'Lehm ja ratsiooni tingimused'!$D$33,0) -> 0 | BA58: =IF(AND(Tehniline!$B$37,Tehniline!$B46),-'Lehm ja ratsiooni tingimused'!$D$33,0) -> 0 | BB58: =IF(AND(Tehniline!$B$38,Tehniline!$B46),-'Lehm ja ratsiooni tingimused'!$D$33,0) -> 0 | BC58: =IF(AND(Tehniline!$B$39,Tehniline!$B46),-'Lehm ja ratsiooni tingimused'!$D$33,0) -> 0 | BD58: =IF(AND(Tehniline!$B$40,Tehniline!$B46),-'Lehm ja ratsiooni tingimused'!$D$33,0) -> 0 | BE58: =IF(AND(Tehniline!$B$41,Tehniline!$B46),-'Lehm ja ratsiooni tingimused'!$D$33,0) -> 0 | BF58: =IF(AND(Tehniline!$B$42,Tehniline!$B46),-'Lehm ja ratsiooni tingimused'!$D$33,0) -> 0 | BG58: =IF(AND(Tehniline!$B$43,Tehniline!$B46),-'Lehm ja ratsiooni tingimused'!$D$33,0) -> 0 | BH58: =IF(AND(Tehniline!$B$44,Tehniline!$B46),-'Lehm ja ratsiooni tingimused'!$D$33,0) -> 0 | BI58: =IF(AND(Tehniline!$B$45,Tehniline!$B46),-'Lehm ja ratsiooni tingimused'!$D$33,0) -> 0 | BJ58: =1-'Lehm ja ratsiooni tingimused'!$D$33 -> 1 | BK58: =IF(AND(Tehniline!$B$47,Tehniline!$B46),-'Lehm ja ratsiooni tingimused'!$D$33,0) -> 0 | BL58: =IF(AND(Tehniline!$B$48,Tehniline!$B46),-'Lehm ja ratsiooni tingimused'!$D$33,0) -> 0 | BM58: =IF(AND(Tehniline!$B$49,Tehniline!$B46),-'Lehm ja ratsiooni tingimused'!$D$33,0) -> 0 | BN58: =IF(AND(Tehniline!$B$50,Tehniline!$B46),-'Lehm ja ratsiooni tingimused'!$D$33,0) -> 0 | BO58: =IF(AND(Tehniline!$B$51,Tehniline!$B46),-'Lehm ja ratsiooni tingimused'!$D$33,0) -> 0
B59: Teraviljad | J59: 0 | L59: 0 | W59: 1 | X59: -0.5 | Y59: =0-'Lehm ja ratsiooni tingimused'!$D$32 -> -0.5 | AV59: =IF(AND(Tehniline!$B$32,Tehniline!$B47),-'Lehm ja ratsiooni tingimused'!$D$33,0) -> 0 | AW59: =IF(AND(Tehniline!$B$33,Tehniline!$B47),-'Lehm ja ratsiooni tingimused'!$D$33,0) -> 0 | AX59: =IF(AND(Tehniline!$B$34,Tehniline!$B47),-'Lehm ja ratsiooni tingimused'!$D$33,0) -> 0 | AY59: =IF(AND(Tehniline!$B$35,Tehniline!$B47),-'Lehm ja ratsiooni tingimused'!$D$33,0) -> 0 | AZ59: =IF(AND(Tehniline!$B$36,Tehniline!$B47),-'Lehm ja ratsiooni tingimused'!$D$33,0) -> 0 | BA59: =IF(AND(Tehniline!$B$37,Tehniline!$B47),-'Lehm ja ratsiooni tingimused'!$D$33,0) -> 0 | BB59: =IF(AND(Tehniline!$B$38,Tehniline!$B47),-'Lehm ja ratsiooni tingimused'!$D$33,0) -> 0 | BC59: =IF(AND(Tehniline!$B$39,Tehniline!$B47),-'Lehm ja ratsiooni tingimused'!$D$33,0) -> 0 | BD59: =IF(AND(Tehniline!$B$40,Tehniline!$B47),-'Lehm ja ratsiooni tingimused'!$D$33,0) -> 0 | BE59: =IF(AND(Tehniline!$B$41,Tehniline!$B47),-'Lehm ja ratsiooni tingimused'!$D$33,0) -> 0 | BF59: =IF(AND(Tehniline!$B$42,Tehniline!$B47),-'Lehm ja ratsiooni tingimused'!$D$33,0) -> 0 | BG59: =IF(AND(Tehniline!$B$43,Tehniline!$B47),-'Lehm ja ratsiooni tingimused'!$D$33,0) -> 0 | BH59: =IF(AND(Tehniline!$B$44,Tehniline!$B47),-'Lehm ja ratsiooni tingimused'!$D$33,0) -> 0 | BI59: =IF(AND(Tehniline!$B$45,Tehniline!$B47),-'Lehm ja ratsiooni tingimused'!$D$33,0) -> 0 | BJ59: =IF(AND(Tehniline!$B$46,Tehniline!$B47),-'Lehm ja ratsiooni tingimused'!$D$33,0) -> 0 | BK59: =1-'Lehm ja ratsiooni tingimused'!$D$33 -> 1 | BL59: =IF(AND(Tehniline!$B$48,Tehniline!$B47),-'Lehm ja ratsiooni tingimused'!$D$33,0) -> 0 | BM59: =IF(AND(Tehniline!$B$49,Tehniline!$B47),-'Lehm ja ratsiooni tingimused'!$D$33,0) -> 0 | BN59: =IF(AND(Tehniline!$B$50,Tehniline!$B47),-'Lehm ja ratsiooni tingimused'!$D$33,0) -> 0 | BO59: =IF(AND(Tehniline!$B$51,Tehniline!$B47),-'Lehm ja ratsiooni tingimused'!$D$33,0) -> 0
B60: Nisu | C60: Nisukliid 265-24 | D60: 0.15 | E60: 0.86 | F60: 11.2 | G60: 97 | H60: 92 | I60: 18 | J60: 18 | K60: 1.4 | L60: =K60 -> 1.4 | M60: 11 | N60: 167 | P60: 600 | W60: 1 | X60: -0.5 | Y60: =0-'Lehm ja ratsiooni tingimused'!$D$32 -> -0.5 | AV60: =IF(AND(Tehniline!$B$32,Tehniline!$B48),-'Lehm ja ratsiooni tingimused'!$D$33,0) -> 0 | AW60: =IF(AND(Tehniline!$B$33,Tehniline!$B48),-'Lehm ja ratsiooni tingimused'!$D$33,0) -> 0 | AX60: =IF(AND(Tehniline!$B$34,Tehniline!$B48),-'Lehm ja ratsiooni tingimused'!$D$33,0) -> 0 | AY60: =IF(AND(Tehniline!$B$35,Tehniline!$B48),-'Lehm ja ratsiooni tingimused'!$D$33,0) -> 0 | AZ60: =IF(AND(Tehniline!$B$36,Tehniline!$B48),-'Lehm ja ratsiooni tingimused'!$D$33,0) -> 0 | BA60: =IF(AND(Tehniline!$B$37,Tehniline!$B48),-'Lehm ja ratsiooni tingimused'!$D$33,0) -> 0 | BB60: =IF(AND(Tehniline!$B$38,Tehniline!$B48),-'Lehm ja ratsiooni tingimused'!$D$33,0) -> 0 | BC60: =IF(AND(Tehniline!$B$39,Tehniline!$B48),-'Lehm ja ratsiooni tingimused'!$D$33,0) -> 0 | BD60: =IF(AND(Tehniline!$B$40,Tehniline!$B48),-'Lehm ja ratsiooni tingimused'!$D$33,0) -> 0 | BE60: =IF(AND(Tehniline!$B$41,Tehniline!$B48),-'Lehm ja ratsiooni tingimused'!$D$33,0) -> 0 | BF60: =IF(AND(Tehniline!$B$42,Tehniline!$B48),-'Lehm ja ratsiooni tingimused'!$D$33,0) -> 0 | BG60: =IF(AND(Tehniline!$B$43,Tehniline!$B48),-'Lehm ja ratsiooni tingimused'!$D$33,0) -> 0 | BH60: =IF(AND(Tehniline!$B$44,Tehniline!$B48),-'Lehm ja ratsiooni tingimused'!$D$33,0) -> 0 | BI60: =IF(AND(Tehniline!$B$45,Tehniline!$B48),-'Lehm ja ratsiooni tingimused'!$D$33,0) -> 0 | BJ60: =IF(AND(Tehniline!$B$46,Tehniline!$B48),-'Lehm ja ratsiooni tingimused'!$D$33,0) -> 0 | BK60: =IF(AND(Tehniline!$B$47,Tehniline!$B49),-'Lehm ja ratsiooni tingimused'!$D$33,0) -> 0 | BL60: =1-'Lehm ja ratsiooni tingimused'!$D$33 -> 1 | BM60: =IF(AND(Tehniline!$B$49,Tehniline!$B48),-'Lehm ja ratsiooni tingimused'!$D$33,0) -> 0 | BN60: =IF(AND(Tehniline!$B$50,Tehniline!$B48),-'Lehm ja ratsiooni tingimused'!$D$33,0) -> 0 | BO60: =IF(AND(Tehniline!$B$51,Tehniline!$B48),-'Lehm ja ratsiooni tingimused'!$D$33,0) -> 0 | BU60: 43 | BY60: 65
B61: Nisu | C61: Nisu 265-20/21 | D61: 0.177 | E61: 0.86 | F61: 13.8 | G61: 25 | H61: 106 | I61: -28 | J61: -28 | K61: 0.6 | L61: 0.6 | M61: 3.8 | N61: 146 | P61: 650 | W61: 1 | X61: -0.5 | Y61: =1-'Lehm ja ratsiooni tingimused'!D32 -> 0.5 | AV61: =IF(AND(Tehniline!$B$32,Tehniline!$B49),-'Lehm ja ratsiooni tingimused'!$D$33,0) -> 0 | AW61: =IF(AND(Tehniline!$B$33,Tehniline!$B49),-'Lehm ja ratsiooni tingimused'!$D$33,0) -> 0 | AX61: =IF(AND(Tehniline!$B$34,Tehniline!$B49),-'Lehm ja ratsiooni tingimused'!$D$33,0) -> 0 | AY61: =IF(AND(Tehniline!$B$35,Tehniline!$B49),-'Lehm ja ratsiooni tingimused'!$D$33,0) -> 0 | AZ61: =IF(AND(Tehniline!$B$36,Tehniline!$B49),-'Lehm ja ratsiooni tingimused'!$D$33,0) -> 0 | BA61: =IF(AND(Tehniline!$B$37,Tehniline!$B49),-'Lehm ja ratsiooni tingimused'!$D$33,0) -> 0 | BB61: =IF(AND(Tehniline!$B$38,Tehniline!$B49),-'Lehm ja ratsiooni tingimused'!$D$33,0) -> 0 | BC61: =IF(AND(Tehniline!$B$39,Tehniline!$B49),-'Lehm ja ratsiooni tingimused'!$D$33,0) -> 0 | BD61: =IF(AND(Tehniline!$B$40,Tehniline!$B49),-'Lehm ja ratsiooni tingimused'!$D$33,0) -> 0 | BE61: =IF(AND(Tehniline!$B$41,Tehniline!$B49),-'Lehm ja ratsiooni tingimused'!$D$33,0) -> 0 | BF61: =IF(AND(Tehniline!$B$42,Tehniline!$B49),-'Lehm ja ratsiooni tingimused'!$D$33,0) -> 0 | BG61: =IF(AND(Tehniline!$B$43,Tehniline!$B49),-'Lehm ja ratsiooni tingimused'!$D$33,0) -> 0 | BH61: =IF(AND(Tehniline!$B$44,Tehniline!$B49),-'Lehm ja ratsiooni tingimused'!$D$33,0) -> 0 | BI61: =IF(AND(Tehniline!$B$45,Tehniline!$B49),-'Lehm ja ratsiooni tingimused'!$D$33,0) -> 0 | BJ61: =IF(AND(Tehniline!$B$46,Tehniline!$B49),-'Lehm ja ratsiooni tingimused'!$D$33,0) -> 0 | BK61: =IF(AND(Tehniline!$B$47,Tehniline!$B50),-'Lehm ja ratsiooni tingimused'!$D$33,0) -> 0 | BL61: =IF(AND(Tehniline!$B$48,Tehniline!$B49),-'Lehm ja ratsiooni tingimused'!$D$33,0) -> 0 | BM61: =1-'Lehm ja ratsiooni tingimused'!$D$33 -> 1 | BN61: =IF(AND(Tehniline!$B$50,Tehniline!$B49),-'Lehm ja ratsiooni tingimused'!$D$33,0) -> 0 | BO61: =IF(AND(Tehniline!$B$51,Tehniline!$B49),-'Lehm ja ratsiooni tingimused'!$D$33,0) -> 0 | BU61: 26 | BY61: 90
B62: Nisu | J62: 0 | L62: 0 | W62: 1 | X62: -0.5 | Y62: =1-'Lehm ja ratsiooni tingimused'!D33 -> 1 | AV62: =IF(AND(Tehniline!$B$32,Tehniline!$B50),-'Lehm ja ratsiooni tingimused'!$D$33,0) -> 0 | AW62: =IF(AND(Tehniline!$B$33,Tehniline!$B50),-'Lehm ja ratsiooni tingimused'!$D$33,0) -> 0 | AX62: =IF(AND(Tehniline!$B$34,Tehniline!$B50),-'Lehm ja ratsiooni tingimused'!$D$33,0) -> 0 | AY62: =IF(AND(Tehniline!$B$35,Tehniline!$B50),-'Lehm ja ratsiooni tingimused'!$D$33,0) -> 0 | AZ62: =IF(AND(Tehniline!$B$36,Tehniline!$B50),-'Lehm ja ratsiooni tingimused'!$D$33,0) -> 0 | BA62: =IF(AND(Tehniline!$B$37,Tehniline!$B50),-'Lehm ja ratsiooni tingimused'!$D$33,0) -> 0 | BB62: =IF(AND(Tehniline!$B$38,Tehniline!$B50),-'Lehm ja ratsiooni tingimused'!$D$33,0) -> 0 | BC62: =IF(AND(Tehniline!$B$39,Tehniline!$B50),-'Lehm ja ratsiooni tingimused'!$D$33,0) -> 0 | BD62: =IF(AND(Tehniline!$B$40,Tehniline!$B50),-'Lehm ja ratsiooni tingimused'!$D$33,0) -> 0 | BE62: =IF(AND(Tehniline!$B$41,Tehniline!$B50),-'Lehm ja ratsiooni tingimused'!$D$33,0) -> 0 | BF62: =IF(AND(Tehniline!$B$42,Tehniline!$B50),-'Lehm ja ratsiooni tingimused'!$D$33,0) -> 0 | BG62: =IF(AND(Tehniline!$B$43,Tehniline!$B50),-'Lehm ja ratsiooni tingimused'!$D$33,0) -> 0 | BH62: =IF(AND(Tehniline!$B$44,Tehniline!$B50),-'Lehm ja ratsiooni tingimused'!$D$33,0) -> 0 | BI62: =IF(AND(Tehniline!$B$45,Tehniline!$B50),-'Lehm ja ratsiooni tingimused'!$D$33,0) -> 0 | BJ62: =IF(AND(Tehniline!$B$46,Tehniline!$B50),-'Lehm ja ratsiooni tingimused'!$D$33,0) -> 0 | BK62: =IF(AND(Tehniline!$B$47,Tehniline!$B50),-'Lehm ja ratsiooni tingimused'!$D$33,0) -> 0 | BL62: =IF(AND(Tehniline!$B$48,Tehniline!$B50),-'Lehm ja ratsiooni tingimused'!$D$33,0) -> 0 | BM62: =IF(AND(Tehniline!$B$49,Tehniline!$B50),-'Lehm ja ratsiooni tingimused'!$D$33,0) -> 0 | BN62: =1-'Lehm ja ratsiooni tingimused'!$D$33 -> 1 | BO62: =IF(AND(Tehniline!$B$51,Tehniline!$B50),-'Lehm ja ratsiooni tingimused'!$D$33,0) -> 0
B63: Nisu | J63: 0 | L63: 0 | W63: 1 | X63: -0.5 | Y63: =1-'Lehm ja ratsiooni tingimused'!D34 -> 1 | AV63: =IF(AND(Tehniline!$B$32,Tehniline!$B51),-'Lehm ja ratsiooni tingimused'!$D$33,0) -> 0 | AW63: =IF(AND(Tehniline!$B$33,Tehniline!$B51),-'Lehm ja ratsiooni tingimused'!$D$33,0) -> 0 | AX63: =IF(AND(Tehniline!$B$34,Tehniline!$B51),-'Lehm ja ratsiooni tingimused'!$D$33,0) -> 0 | AY63: =IF(AND(Tehniline!$B$35,Tehniline!$B51),-'Lehm ja ratsiooni tingimused'!$D$33,0) -> 0 | AZ63: =IF(AND(Tehniline!$B$36,Tehniline!$B51),-'Lehm ja ratsiooni tingimused'!$D$33,0) -> 0 | BA63: =IF(AND(Tehniline!$B$37,Tehniline!$B51),-'Lehm ja ratsiooni tingimused'!$D$33,0) -> 0 | BB63: =IF(AND(Tehniline!$B$38,Tehniline!$B51),-'Lehm ja ratsiooni tingimused'!$D$33,0) -> 0 | BC63: =IF(AND(Tehniline!$B$39,Tehniline!$B51),-'Lehm ja ratsiooni tingimused'!$D$33,0) -> 0 | BD63: =IF(AND(Tehniline!$B$40,Tehniline!$B51),-'Lehm ja ratsiooni tingimused'!$D$33,0) -> 0 | BE63: =IF(AND(Tehniline!$B$41,Tehniline!$B51),-'Lehm ja ratsiooni tingimused'!$D$33,0) -> 0 | BF63: =IF(AND(Tehniline!$B$42,Tehniline!$B51),-'Lehm ja ratsiooni tingimused'!$D$33,0) -> 0 | BG63: =IF(AND(Tehniline!$B$43,Tehniline!$B51),-'Lehm ja ratsiooni tingimused'!$D$33,0) -> 0 | BH63: =IF(AND(Tehniline!$B$44,Tehniline!$B51),-'Lehm ja ratsiooni tingimused'!$D$33,0) -> 0 | BI63: =IF(AND(Tehniline!$B$45,Tehniline!$B51),-'Lehm ja ratsiooni tingimused'!$D$33,0) -> 0 | BJ63: =IF(AND(Tehniline!$B$46,Tehniline!$B51),-'Lehm ja ratsiooni tingimused'!$D$33,0) -> 0 | BK63: =IF(AND(Tehniline!$B$47,Tehniline!$B51),-'Lehm ja ratsiooni tingimused'!$D$33,0) -> 0 | BL63: =IF(AND(Tehniline!$B$48,Tehniline!$B51),-'Lehm ja ratsiooni tingimused'!$D$33,0) -> 0 | BM63: =IF(AND(Tehniline!$B$49,Tehniline!$B51),-'Lehm ja ratsiooni tingimused'!$D$33,0) -> 0 | BN63: =IF(AND(Tehniline!$B$50,Tehniline!$B51),-'Lehm ja ratsiooni tingimused'!$D$33,0) -> 0 | BO63: =1-'Lehm ja ratsiooni tingimused'!$D$33 -> 1
B64: Mineraalid | C64: Mineraal1 | D64: 0.05 | E64: 0.99 | J64: 0 | K64: 140 | L64: 140 | M64: 40 | AB64: 1
B65: Mineraalid | C65: Mineraal2 | D65: 0.05 | E65: 0.99 | J65: 0 | K65: 150 | L65: 150 | M65: 75 | AB65: 1
B66: Mineraalid | C66: Lubjakivi | D66: 0.01 | E66: 0.99 | J66: =I66 -> 0 | K66: 360 | L66: 360 | AC66: 1
B67: Mineraalid | C67: Panto | D67: 0.95 | E67: 0.99 | J67: 0 | K67: 185 | L67: 185 | M67: 40 | AA67: 1
B68: Mineraalid | C68: Mineraal 3 | D68: 0.72 | E68: 0.99 | J68: 0 | K68: 175 | L68: 175 | M68: 75
B69: Mineraalid | C69: Sooda | D69: 0.343 | E69: 0.99 | J69: 0 | L69: 0
B70: Mineraalid | C70: Karbamiid | D70: 0.295 | E70: 0.99 | I70: 2625 | J70: 2625 | L70: 0 | N70: 2625
B71: Mineraalid | C71: Mineraal 4 | D71: 1.315 | E71: 0.99 | J71: 0 | K71: 175 | L71: 175 | M71: 20
B72: Mineraalid | J72: 0 | L72: 0
B73: Rasv | C73: Kaitstud rasv | D73: 1.13 | E73: 0.99 | F73: 32 | J73: 0 | L73: 0 | AE73: 1
B74: Lisasööt1 | C74: lisasööt1 | D74: 99 | E74: 0.99 | AF74: 1
B75: Lisasööt1 | C75: Muljutud konserveeritud oder 255-22 | D75: 0.15 | E75: 0.65 | F75: 12.9 | G75: 68 | H75: 102 | I75: -41 | K75: 0.8 | M75: 3.6 | N75: 126 | P75: 630 | Q75: 78 | R75: 235 | AF75: 1 | BU75: 24 | BV75: 0.2 | BY75: 32
B76: Lisasööt1 | J76: =I76 -> 0 | L76: 0 | AF76: 1
B77: Lisasööt1 | J77: 0 | L77: 0 | AF77: 1
B78: Lisasööt1 | J78: 0 | L78: 0 | AF78: 1
B79: Lisasööt2 | C79: sööda nimi 2 | J79: 0 | L79: 0 | AG79: 1
B80: Lisasööt2 | J80: 0 | L80: 0 | AG80: 1
B81: Lisasööt2 | J81: 0 | L81: 0 | AG81: 1
B82: Lisasööt2 | J82: 0 | L82: 0 | AG82: 1
B83: Lisasööt2 | J83: 0 | L83: 0 | AG83: 1
B84: Vesi | C84: Töötlemata joogivesi | D84: 0.001 | E84: 0.01 | J84: 0 | L84: 0 | AU84: 1

Sheet Kontsentratsioonimäärad
A1: Piimatoodang, kg/päev | B1: 20 | C1: 22 | D1: 24 | E1: 26 | F1: 28 | G1: 30 | H1: 32 | I1: 34 | J1: 36 | K1: 38 | L1: 40 | M1: 42 | N1: 44 | O1: 46 | P1: 48 | Q1: 50 | R1: 52 | S1: 54 | T1: 56 | U1: 58 | V1: 60 | X1: 0…30 päeva
A2: ME, MJ min | B2: 10.5 | C2: 10.6 | D2: 10.7 | E2: 10.8 | F2: 10.9 | G2: 11 | H2: 11.05 | I2: 11.1 | J2: 11.15 | K2: 11.2 | L2: 11.25 | M2: 11.3 | N2: 11.35 | O2: 11.4 | P2: 11.45 | Q2: 11.5 | R2: 11.55 | S2: 11.6 | T2: 11.65 | U2: 11.7 | V2: 11.75
A3: TK, g/kg KA min | B3: 140 | C3: 140 | D3: 140 | E3: 140 | F3: 140 | G3: 140 | H3: 140 | I3: 140 | J3: 140 | K3: 140 | L3: 140 | M3: 140 | N3: 140 | O3: 140 | P3: 140 | Q3: 140 | R3: 140 | S3: 140 | T3: 140 | U3: 140 | V3: 140
A4: MP, g | B4: 92 | C4: 93 | D4: 94 | E4: 95 | F4: 96 | G4: 97 | H4: 98 | I4: 99 | J4: 99.25 | K4: 99.5 | L4: 99.75 | M4: 100 | N4: 100.25 | O4: 100.5 | P4: 100.75 | Q4: 101 | R4: 101.25 | S4: 101.5 | T4: 101.75 | U4: 102 | V4: 102
A5: VPB, min, g | B5: 0 | C5: 0 | D5: 0 | E5: 0 | F5: 0 | G5: 0 | H5: 0 | I5: 0 | J5: 0 | K5: 0 | L5: 0 | M5: 0 | N5: 0 | O5: 0 | P5: 0 | Q5: 0 | R5: 0 | S5: 0 | T5: 0 | U5: 0 | V5: 0
A6: VPB,max, g | B6: 5 | C6: 5 | D6: 5 | E6: 5 | F6: 5 | G6: 5 | H6: 5 | I6: 5 | J6: 5 | K6: 5 | L6: 5 | M6: 5 | N6: 5 | O6: 5 | P6: 5 | Q6: 5 | R6: 5 | S6: 5 | T6: 5 | U6: 5 | V6: 5
A7: Ca, g min | B7: 7 | C7: 7.075 | D7: 7.15 | E7: 7.225 | F7: 7.3 | G7: 7.375 | H7: 7.45 | I7: 7.525 | J7: 7.6 | K7: 7.675 | L7: 7.75 | M7: 7.825 | N7: 7.9 | O7: 7.975 | P7: 8.05 | Q7: 8.125 | R7: 8.2 | S7: 8.275 | T7: 8.35 | U7: 8.425 | V7: 8.5
A8: Ca, g max | B8: 8 | C8: 8.075 | D8: 8.15 | E8: 8.225 | F8: 8.3 | G8: 8.375 | H8: 8.45 | I8: 8.525 | J8: 8.6 | K8: 8.675 | L8: 8.75 | M8: 8.825 | N8: 8.9 | O8: 8.975 | P8: 9.05 | Q8: 9.125 | R8: 9.2 | S8: 9.275 | T8: 9.35 | U8: 9.425 | V8: 9.5
A9: P, g | B9: 4 | C9: 4.05 | D9: 4.1 | E9: 4.15 | F9: 4.2 | G9: 4.25 | H9: 4.3 | I9: 4.35 | J9: 4.4 | K9: 4.45 | L9: 4.5 | M9: 4.55 | N9: 4.6 | O9: 4.65 | P9: 4.7 | Q9: 4.75 | R9: 4.8 | S9: 4.85 | T9: 4.9 | U9: 4.95 | V9: 5
A10: Proteiin, g | B10: 158 | C10: 159 | D10: 160 | E10: 161 | F10: 162 | G10: 163 | H10: 164 | I10: 165 | J10: 165 | K10: 165 | L10: 165 | M10: 165 | N10: 165 | O10: 165 | P10: 166 | Q10: 167 | R10: 168 | S10: 169 | T10: 170 | U10: 170 | V10: 170
A11: Vaba - reserveering
A12: ME, MJ min | B12: 11 | C12: 11.1 | D12: 11.2 | E12: 11.3 | F12: 11.4 | G12: 11.5 | H12: 11.55 | I12: 11.6 | J12: 11.655 | K12: 11.71 | L12: 11.765 | M12: 11.82 | N12: 11.875 | O12: 11.93 | P12: 11.985 | Q12: 12.04 | R12: 12.095 | S12: 12.15 | T12: 12.2 | U12: 12.25 | V12: 12.3 | X12: Laktatsiooni I pool
A13: TK, g/kg KA min | B13: 140 | C13: 140 | D13: 140 | E13: 140 | F13: 140 | G13: 140 | H13: 140 | I13: 140 | J13: 140 | K13: 140 | L13: 140 | M13: 139.5 | N13: 139 | O13: 138.5 | P13: 138 | Q13: 137.5 | R13: 137 | S13: 136.5 | T13: 136 | U13: 135.5 | V13: 135
A14: MP, g | B14: 95 | C14: 96 | D14: 97 | E14: 98 | F14: 99 | G14: 100 | H14: 101 | I14: 102 | J14: 102.25 | K14: 102.5 | L14: 102.75 | M14: 103 | N14: 103.25 | O14: 103.5 | P14: 103.75 | Q14: 104 | R14: 104.25 | S14: 104.5 | T14: 104.75 | U14: 105 | V14: 105
A15: VPB, min, g | B15: 0 | C15: 0 | D15: 0 | E15: 0 | F15: 0 | G15: 0 | H15: 0 | I15: 0 | J15: 0 | K15: 0 | L15: 0 | M15: 0 | N15: 0 | O15: 0 | P15: 0 | Q15: 0 | R15: 0 | S15: 0 | T15: 0 | U15: 0 | V15: 0
A16: VPB,max, g | B16: 5 | C16: 5 | D16: 5 | E16: 5 | F16: 5 | G16: 5 | H16: 5 | I16: 5 | J16: 5 | K16: 5 | L16: 5 | M16: 5 | N16: 5 | O16: 5 | P16: 5 | Q16: 5 | R16: 5 | S16: 5 | T16: 5 | U16: 5 | V16: 5
A17: Ca, g min | B17: 7 | C17: 7.075 | D17: 7.15 | E17: 7.225 | F17: 7.3 | G17: 7.375 | H17: 7.45 | I17: 7.525 | J17: 7.6 | K17: 7.675 | L17: 7.75 | M17: 7.825 | N17: 7.9 | O17: 7.975 | P17: 8.05 | Q17: 8.125 | R17: 8.2 | S17: 8.275 | T17: 8.35 | U17: 8.425 | V17: 8.5
A18: Ca, g max | B18: 8 | C18: 8.075 | D18: 8.15 | E18: 8.225 | F18: 8.3 | G18: 8.375 | H18: 8.45 | I18: 8.525 | J18: 8.6 | K18: 8.675 | L18: 8.75 | M18: 8.825 | N18: 8.9 | O18: 8.975 | P18: 9.05 | Q18: 9.125 | R18: 9.2 | S18: 9.275 | T18: 9.35 | U18: 9.425 | V18: 9.5
A19: P, g | B19: 4 | C19: 4.05 | D19: 4.1 | E19: 4.15 | F19: 4.2 | G19: 4.25 | H19: 4.3 | I19: 4.35 | J19: 4.4 | K19: 4.45 | L19: 4.5 | M19: 4.55 | N19: 4.6 | O19: 4.65 | P19: 4.7 | Q19: 4.75 | R19: 4.8 | S19: 4.85 | T19: 4.9 | U19: 4.95 | V19: 5
A20: Proteiin, g | B20: 163 | C20: 164 | D20: 165 | E20: 166 | F20: 167 | G20: 168 | H20: 169 | I20: 170 | J20: 170 | K20: 170 | L20: 170 | M20: 170 | N20: 170 | O20: 170 | P20: 171 | Q20: 172 | R20: 173 | S20: 174 | T20: 175 | U20: 175 | V20: 175
A21: Vaba - reserveering
A22: ME, MJ min | B22: 10 | C22: 10.15 | D22: 10.3 | E22: 10.45 | F22: 10.6 | G22: 10.75 | H22: 10.85 | I22: 10.95 | J22: 10.99 | K22: 11.03 | L22: 11.07 | M22: 11.11 | N22: 11.15 | O22: 11.19 | P22: 11.23 | Q22: 11.27 | R22: 11.3 | S22: 11.35 | T22: 11.4 | U22: 11.45 | V22: 11.5 | X22: Laktatsiooni II pool
A23: TK, g/kg KA min | B23: 170 | C23: 169 | D23: 168 | E23: 167 | F23: 166 | G23: 165 | H23: 164 | I23: 163 | J23: 162 | K23: 161 | L23: 160 | M23: 159 | N23: 158 | O23: 157 | P23: 156 | Q23: 155 | R23: 154 | S23: 153 | T23: 152 | U23: 151 | V23: 150
A24: MP, g | B24: 84 | C24: 85 | D24: 86 | E24: 87 | F24: 88 | G24: 89 | H24: 90 | I24: 91 | J24: 91.82 | K24: 92.64 | L24: 93.46 | M24: 94.28 | N24: 95.1 | O24: 95.92 | P24: 96.74 | Q24: 97.56 | R24: 98.38 | S24: 99.2 | T24: 100.02 | U24: 100 | V24: 100
A25: VPB, min, g | B25: 0 | C25: 0 | D25: 0 | E25: 0 | F25: 0 | G25: 0 | H25: 0 | I25: 0 | J25: 0 | K25: 0 | L25: 0 | M25: 0 | N25: 0 | O25: 0 | P25: 0 | Q25: 0 | R25: 0 | S25: 0 | T25: 0 | U25: 0 | V25: 0
A26: VPB,max, g | B26: 5 | C26: 5 | D26: 5 | E26: 5 | F26: 5 | G26: 5 | H26: 5 | I26: 5 | J26: 5 | K26: 5 | L26: 5 | M26: 5 | N26: 5 | O26: 5 | P26: 5 | Q26: 5 | R26: 5 | S26: 5 | T26: 5 | U26: 5 | V26: 5
A27: Ca, g min | B27: 6 | C27: 6.075 | D27: 6.15 | E27: 6.225 | F27: 6.3 | G27: 6.375 | H27: 6.45 | I27: 6.525 | J27: 6.6 | K27: 6.675 | L27: 6.75 | M27: 6.825 | N27: 6.9 | O27: 6.975 | P27: 7.05 | Q27: 7.125 | R27: 7.2 | S27: 7.275 | T27: 7.35 | U27: 7.425 | V27: 7.5
A28: Ca, g max | B28: 7 | C28: 7.075 | D28: 7.15 | E28: 7.225 | F28: 7.3 | G28: 7.375 | H28: 7.45 | I28: 7.525 | J28: 7.6 | K28: 7.675 | L28: 7.75 | M28: 7.825 | N28: 7.9 | O28: 7.975 | P28: 8.05 | Q28: 8.125 | R28: 8.2 | S28: 8.275 | T28: 8.35 | U28: 8.425 | V28: 8.5
A29: P, g | B29: 3.8 | C29: 3.825 | D29: 3.85 | E29: 3.875 | F29: 3.9 | G29: 3.925 | H29: 3.95 | I29: 3.975 | J29: 4 | K29: 4.025 | L29: 4.05 | M29: 4.075 | N29: 4.1 | O29: 4.125 | P29: 4.15 | Q29: 4.175 | R29: 4.2 | S29: 4.225 | T29: 4.25 | U29: 4.275 | V29: 4.3
A30: Proteiin, g | B30: 140 | C30: 141.25 | D30: 142.5 | E30: 143.75 | F30: 145 | G30: 146.25 | H30: 147.5 | I30: 148.75 | J30: 150 | K30: 151.25 | L30: 152.5 | M30: 153.75 | N30: 155 | O30: 156.25 | P30: 157.5 | Q30: 158.75 | R30: 160 | S30: 161.25 | T30: 162.5 | U30: 163.75 | V30: 165
A31: Vaba - reserveering
A32: ME, MJ min | B32: 8.5 | C32: 8.5 | D32: 8.5 | E32: 8.5 | F32: 8.5 | G32: 8.5 | H32: 8.5 | I32: 8.5 | J32: 8.5 | K32: 8.5 | L32: 8.5 | M32: 8.5 | N32: 8.5 | O32: 8.5 | P32: 8.5 | Q32: 8.5 | R32: 8.5 | S32: 8.5 | T32: 8.5 | U32: 8.5 | V32: 8.5 | X32: Kinnislehmad
A33: TK, g/kg KA min | B33: 220 | C33: 220 | D33: 220 | E33: 220 | F33: 220 | G33: 220 | H33: 220 | I33: 220 | J33: 220 | K33: 220 | L33: 220 | M33: 220 | N33: 220 | O33: 220 | P33: 220 | Q33: 220 | R33: 220 | S33: 220 | T33: 220 | U33: 220 | V33: 220
A34: MP, g | B34: 70 | C34: 70 | D34: 70 | E34: 70 | F34: 70 | G34: 70 | H34: 70 | I34: 70 | J34: 70 | K34: 70 | L34: 70 | M34: 70 | N34: 70 | O34: 70 | P34: 70 | Q34: 70 | R34: 70 | S34: 70 | T34: 70 | U34: 70 | V34: 70
A35: VPB, min, g | B35: -5 | C35: -5 | D35: -5 | E35: -5 | F35: -5 | G35: -5 | H35: -5 | I35: -5 | J35: -5 | K35: -5 | L35: -5 | M35: -5 | N35: -5 | O35: -5 | P35: -5 | Q35: -5 | R35: -5 | S35: -5 | T35: -5 | U35: -5 | V35: -5
A36: VPB,max, g | B36: 5 | C36: 5 | D36: 5 | E36: 5 | F36: 5 | G36: 5 | H36: 5 | I36: 5 | J36: 5 | K36: 5 | L36: 5 | M36: 5 | N36: 5 | O36: 5 | P36: 5 | Q36: 5 | R36: 5 | S36: 5 | T36: 5 | U36: 5 | V36: 5
A37: Ca, g min | B37: 4.5 | C37: 4.5 | D37: 4.5 | E37: 4.5 | F37: 4.5 | G37: 4.5 | H37: 4.5 | I37: 4.5 | J37: 4.5 | K37: 4.5 | L37: 4.5 | M37: 4.5 | N37: 4.5 | O37: 4.5 | P37: 4.5 | Q37: 4.5 | R37: 4.5 | S37: 4.5 | T37: 4.5 | U37: 4.5 | V37: 4.5
A38: Ca, g max | B38: 5.5 | C38: 5.5 | D38: 5.5 | E38: 5.5 | F38: 5.5 | G38: 5.5 | H38: 5.5 | I38: 5.5 | J38: 5.5 | K38: 5.5 | L38: 5.5 | M38: 5.5 | N38: 5.5 | O38: 5.5 | P38: 5.5 | Q38: 5.5 | R38: 5.5 | S38: 5.5 | T38: 5.5 | U38: 5.5 | V38: 5.5
A39: P, g | B39: 3 | C39: 3 | D39: 3 | E39: 3 | F39: 3 | G39: 3 | H39: 3 | I39: 3 | J39: 3 | K39: 3 | L39: 3 | M39: 3 | N39: 3 | O39: 3 | P39: 3 | Q39: 3 | R39: 3 | S39: 3 | T39: 3 | U39: 3 | V39: 3
A40: Proteiin, g | B40: 125 | C40: 125 | D40: 125 | E40: 125 | F40: 125 | G40: 125 | H40: 125 | I40: 125 | J40: 125 | K40: 125 | L40: 125 | M40: 125 | N40: 125 | O40: 125 | P40: 125 | Q40: 125 | R40: 125 | S40: 125 | T40: 125 | U40: 125 | V40: 125
A41: Vaba - reserveering

Sheet Optimaalne ratsioon
H1: Ratsioonis
B2: Söödad | C2: Kogus, kg | D2: Hind, €/kg | E2: Maksumus, € | G2: Kogus | H2: KA, kg | I2: TP, g | J2: T+S, g | K2: MP, g | L2: VPB, g | M2: ME, MJ | N2: TR, g | O2: TK, g | P2: Ca, g | Q2: P, g | R2: Na, g | S2: K, g | T2: Mg, g | U2: KAB, mekv | V2: Hind
B3: Lutsernisilo TÕ 120-12-60 | C3: -1.452478878e-15 | D3: 0.03 | E3: =C3*D3 -> -4.357436633e-17 | G3: =Tehniline!CZ3 -> -1.452478878e-15 | H3: -5.083676072e-16 | I3: =Tehniline!DK3 -> -7.473003825e-14 | J3: =Tehniline!DB3 -> -1.270919018e-14 | K3: =Tehniline!DF3 -> -3.456899729e-14 | L3: =Tehniline!DG3 -> -1.525102821e-14 | M3: =Tehniline!DE3 -> -4.2702879e-15 | N3: =Tehniline!DL3 -> -1.474266061e-14 | O3: =Tehniline!DH3 -> -1.687780456e-13 | P3: =Tehniline!DC3 -> -7.879697911e-15 | Q3: =Tehniline!DD3 -> -1.321755779e-15 | R3: =Tehniline!DM3 -> -2.033470429e-16 | S3: =Tehniline!DN3 -> 0 | T3: =Tehniline!DO3 -> 0 | U3: =Tehniline!DP3 -> -7.930534672e-14 | V3: =G3*D3 -> -4.357436633e-17
B4: V auk - rohusilo | C4: 2.45444737e-13 | D4: 0.03 | E4: =C4*D4 -> 7.363342109e-15 | G4: =Tehniline!CZ4 -> 2.45444737e-13 | H4: 6.209751845e-14 | I4: =Tehniline!DK4 -> 5.961361771e-12 | J4: =Tehniline!DB4 -> 1.552437961e-12 | K4: =Tehniline!DF4 -> 4.471021328e-12 | L4: =Tehniline!DG4 -> 1.676632998e-12 | M4: =Tehniline!DE4 -> 5.464581624e-13 | N4: =Tehniline!DL4 -> 2.235510664e-12 | O4: =Tehniline!DH4 -> 1.937442576e-11 | P4: =Tehniline!DC4 -> 6.768629511e-13 | Q4: =Tehniline!DD4 -> 2.111315627e-13 | R4: =Tehniline!DM4 -> 3.104875922e-14 | S4: =Tehniline!DN4 -> 0 | T4: =Tehniline!DO4 -> 0 | U4: =Tehniline!DP4 -> 1.738730517e-11 | V4: =G4*D4 -> 7.363342109e-15
B5: Uus rohusilo | C5: 17.51665671 | D5: 0.03 | E5: 0.5254997013 | G5: =Tehniline!CZ5 -> 17.51665671 | H5: 6.481162982 | I5: =Tehniline!DK5 -> 810.1453728 | J5: =Tehniline!DB5 -> 162.0290746 | K5: =Tehniline!DF5 -> 492.5683867 | L5: =Tehniline!DG5 -> -32.40581491 | M5: =Tehniline!DE5 -> 61.57104833 | N5: =Tehniline!DL5 -> 246.2841933 | O5: =Tehniline!DH5 -> 1341.600737 | P5: =Tehniline!DC5 -> 36.2945127 | Q5: =Tehniline!DD5 -> 18.79537265 | R5: =Tehniline!DM5 -> 3.240581491 | S5: =Tehniline!DN5 -> 0 | T5: =Tehniline!DO5 -> 0 | U5: =Tehniline!DP5 -> 1814.725635 | V5: 0.5254997013
B6: VII auk - maisisilo | C6: 0 | D6: 0.03 | E6: 0 | G6: =Tehniline!CZ6 -> 0 | H6: 0 | I6: =Tehniline!DK6 -> 0 | J6: =Tehniline!DB6 -> 0 | K6: =Tehniline!DF6 -> 0 | L6: =Tehniline!DG6 -> 0 | M6: =Tehniline!DE6 -> 0 | N6: =Tehniline!DL6 -> 0 | O6: =Tehniline!DH6 -> 0 | P6: =Tehniline!DC6 -> 0 | Q6: =Tehniline!DD6 -> 0 | R6: =Tehniline!DM6 -> 0 | S6: =Tehniline!DN6 -> 0 | T6: =Tehniline!DO6 -> 0 | U6: =Tehniline!DP6 -> 0 | V6: 0
B7: Uus maisisilo | C7: 4.379164177 | D7: 0.03 | E7: 0.1313749253 | G7: =Tehniline!CZ7 -> 4.379164177 | H7: 1.230545134 | I7: =Tehniline!DK7 -> 108.2879718 | J7: =Tehniline!DB7 -> 369.1635401 | K7: =Tehniline!DF7 -> 94.7519753 | L7: =Tehniline!DG7 -> -52.91344075 | M7: =Tehniline!DE7 -> 12.79766939 | N7: =Tehniline!DL7 -> 33.22471861 | O7: =Tehniline!DH7 -> 315.0195543 | P7: =Tehniline!DC7 -> 6.029671156 | Q7: =Tehniline!DD7 -> 3.322471861 | R7: =Tehniline!DM7 -> 0.6152725669 | S7: =Tehniline!DN7 -> 0 | T7: =Tehniline!DO7 -> 0 | U7: =Tehniline!DP7 -> 173.5068639 | V7: 0.1313749253
B8: Hein kõrreliste kultuurrohumaa 030-15-60 | C8: 1 | D8: 0.04 | E8: 0.04 | G8: =Tehniline!CZ8 -> 1 | H8: 0.83 | I8: =Tehniline!DK8 -> 66.4 | J8: =Tehniline!DB8 -> 0 | K8: =Tehniline!DF8 -> 57.27 | L8: =Tehniline!DG8 -> -32.37 | M8: =Tehniline!DE8 -> 6.972 | N8: =Tehniline!DL8 -> 19.09 | O8: =Tehniline!DH8 -> 278.05 | P8: =Tehniline!DC8 -> 4.399 | Q8: =Tehniline!DD8 -> 1.909 | R8: =Tehniline!DM8 -> 0.332 | S8: =Tehniline!DN8 -> 0 | T8: =Tehniline!DO8 -> 0 | U8: =Tehniline!DP8 -> 160.19 | V8: 0.04
B9: Odrapõhk 255-16-0 | C9: 0 | D9: 0.08 | E9: 0 | G9: =Tehniline!CZ9 -> 0 | H9: 0 | I9: =Tehniline!DK9 -> 0 | J9: =Tehniline!DB9 -> 0 | K9: =Tehniline!DF9 -> 0 | L9: =Tehniline!DG9 -> 0 | M9: =Tehniline!DE9 -> 0 | N9: =Tehniline!DL9 -> 0 | O9: =Tehniline!DH9 -> 0 | P9: =Tehniline!DC9 -> 0 | Q9: =Tehniline!DD9 -> 0 | R9: =Tehniline!DM9 -> 0 | S9: =Tehniline!DN9 -> 0 | T9: =Tehniline!DO9 -> 0 | U9: =Tehniline!DP9 -> 0 | V9: 0
B10: Rapsikook 350-28 | C10: 1.317672917 | D10: 0.27 | E10: 0.3557716875 | G10: =Tehniline!CZ10 -> 1.317672917 | H10: 1.185905625 | I10: =Tehniline!DK10 -> 405.5797237 | J10: =Tehniline!DB10 -> 142.308675 | K10: =Tehniline!DF10 -> 190.9308056 | L10: =Tehniline!DG10 -> 164.8408819 | M10: =Tehniline!DE10 -> 15.89113537 | N10: =Tehniline!DL10 -> 149.4241087 | O10: =Tehniline!DH10 -> 145.8663919 | P10: =Tehniline!DC10 -> 9.843016686 | Q10: =Tehniline!DD10 -> 12.45200906 | R10: =Tehniline!DM10 -> 0.1185905625 | S10: =Tehniline!DN10 -> 0 | T10: =Tehniline!DO10 -> 0 | U10: =Tehniline!DP10 -> -693.7547905 | V10: 0.3557716875
B11: Sojašrott 310-29 | C11: 0.862439677 | D11: 0.47 | E11: 0.4053466482 | G11: =Tehniline!CZ11 -> 0.862439677 | H11: 0.7589469157 | I11: =Tehniline!DK11 -> 379.4734579 | J11: =Tehniline!DB11 -> 197.3261981 | K11: =Tehniline!DF11 -> 148.7535955 | L11: =Tehniline!DG11 -> 151.7893831 | M11: =Tehniline!DE11 -> 10.70115151 | N11: =Tehniline!DL11 -> 12.90209757 | O11: =Tehniline!DH11 -> 59.95680634 | P11: =Tehniline!DC11 -> 2.580419514 | Q11: =Tehniline!DD11 -> 5.540312485 | R11: =Tehniline!DM11 -> 0.1517893831 | S11: =Tehniline!DN11 -> 0 | T11: =Tehniline!DO11 -> 0 | U11: =Tehniline!DP11 -> 198.8440919 | V11: 0.4053466482
B12: Oder 255-20/21 | C12: 3.46569742 | D12: 0.15 | E12: 0.5198546131 | G12: =Tehniline!CZ12 -> 3.46569742 | H12: 2.980499782 | I12: =Tehniline!DK12 -> 372.5624727 | J12: =Tehniline!DB12 -> 1788.299869 | K12: =Tehniline!DF12 -> 306.9914775 | L12: =Tehniline!DG12 -> -131.1419904 | M12: =Tehniline!DE12 -> 38.74649716 | N12: =Tehniline!DL12 -> 65.57099519 | O12: =Tehniline!DH12 -> 178.8299869 | P12: =Tehniline!DC12 -> 2.384399825 | Q12: =Tehniline!DD12 -> 12.2200491 | R12: =Tehniline!DM12 -> 0.5960999563 | S12: =Tehniline!DN12 -> 0 | T12: =Tehniline!DO12 -> 0 | U12: =Tehniline!DP12 -> 56.62949585 | V12: 0.5198546131
B13: Mais 260-20/21 | C13: 8.881784197e-16 | D13: 0.2 | E13: 1.776356839e-16 | G13: =Tehniline!CZ13 -> 8.881784197e-16 | H13: 7.638334409e-16 | I13: =Tehniline!DK13 -> 7.256417689e-14 | J13: =Tehniline!DB13 -> 5.346834087e-13 | K13: =Tehniline!DF13 -> 9.242384635e-14 | L13: =Tehniline!DG13 -> -7.638334409e-14 | M13: =Tehniline!DE13 -> 1.084643486e-14 | N13: =Tehniline!DL13 -> 3.437250484e-14 | O13: =Tehniline!DH13 -> 2.215116979e-14 | P13: =Tehniline!DC13 -> 3.055333764e-16 | Q13: =Tehniline!DD13 -> 2.367883667e-15 | R13: =Tehniline!DM13 -> 7.638334409e-17 | S13: =Tehniline!DN13 -> 0 | T13: =Tehniline!DO13 -> 0 | U13: =Tehniline!DP13 -> 9.166001291e-15 | V13: 1.776356839e-16
B14: Nisu 265-20/21 | C14: 0 | D14: 0.177 | E14: 0 | G14: =Tehniline!CZ14 -> 0 | H14: 0 | I14: =Tehniline!DK14 -> 0 | J14: =Tehniline!DB14 -> 0 | K14: =Tehniline!DF14 -> 0 | L14: =Tehniline!DG14 -> 0 | M14: =Tehniline!DE14 -> 0 | N14: =Tehniline!DL14 -> 0 | O14: =Tehniline!DH14 -> 0 | P14: =Tehniline!DC14 -> 0 | Q14: =Tehniline!DD14 -> 0 | R14: =Tehniline!DM14 -> 0 | S14: =Tehniline!DN14 -> 0 | T14: =Tehniline!DO14 -> 0 | U14: =Tehniline!DP14 -> 0 | V14: 0
B15: Mineraal2 | C15: 0 | D15: 0.05 | E15: 0 | G15: =Tehniline!CZ15 -> 0 | H15: 0 | I15: =Tehniline!DK15 -> 0 | J15: =Tehniline!DB15 -> 0 | K15: =Tehniline!DF15 -> 0 | L15: =Tehniline!DG15 -> 0 | M15: =Tehniline!DE15 -> 0 | N15: =Tehniline!DL15 -> 0 | O15: =Tehniline!DH15 -> 0 | P15: =Tehniline!DC15 -> 0 | Q15: =Tehniline!DD15 -> 0 | R15: =Tehniline!DM15 -> 0 | S15: =Tehniline!DN15 -> 0 | T15: =Tehniline!DO15 -> 0 | U15: =Tehniline!DP15 -> 0 | V15: 0
B16: Lubjakivi | C16: 0.09368015334 | D16: 0.01 | E16: 0.0009368015334 | G16: =Tehniline!CZ16 -> 0.09368015334 | H16: 0.0927433518 | I16: =Tehniline!DK16 -> 0 | J16: =Tehniline!DB16 -> 0 | K16: =Tehniline!DF16 -> 0 | L16: =Tehniline!DG16 -> 0 | M16: =Tehniline!DE16 -> 0 | N16: =Tehniline!DL16 -> 0 | O16: =Tehniline!DH16 -> 0 | P16: =Tehniline!DC16 -> 33.38760665 | Q16: =Tehniline!DD16 -> 0 | R16: =Tehniline!DM16 -> 0 | S16: =Tehniline!DN16 -> 0 | T16: =Tehniline!DO16 -> 0 | U16: =Tehniline!DP16 -> 0 | V16: 0.0009368015334
B17: Mineraal 3 | C17: 0 | D17: 0.72 | E17: 0 | G17: =Tehniline!CZ17 -> 0 | H17: 0 | I17: =Tehniline!DK17 -> 0 | J17: =Tehniline!DB17 -> 0 | K17: =Tehniline!DF17 -> 0 | L17: =Tehniline!DG17 -> 0 | M17: =Tehniline!DE17 -> 0 | N17: =Tehniline!DL17 -> 0 | O17: =Tehniline!DH17 -> 0 | P17: =Tehniline!DC17 -> 0 | Q17: =Tehniline!DD17 -> 0 | R17: =Tehniline!DM17 -> 0 | S17: =Tehniline!DN17 -> 0 | T17: =Tehniline!DO17 -> 0 | U17: =Tehniline!DP17 -> 0 | V17: 0
B18: Karbamiid | C18: 0 | D18: 0.295 | E18: 0 | G18: =Tehniline!CZ18 -> 0 | H18: 0 | I18: =Tehniline!DK18 -> 0 | J18: =Tehniline!DB18 -> 0 | K18: =Tehniline!DF18 -> 0 | L18: =Tehniline!DG18 -> 0 | M18: =Tehniline!DE18 -> 0 | N18: =Tehniline!DL18 -> 0 | O18: =Tehniline!DH18 -> 0 | P18: =Tehniline!DC18 -> 0 | Q18: =Tehniline!DD18 -> 0 | R18: =Tehniline!DM18 -> 0 | S18: =Tehniline!DN18 -> 0 | T18: =Tehniline!DO18 -> 0 | U18: =Tehniline!DP18 -> 0 | V18: 0
B19: Kaitstud rasv | C19: 0 | D19: 1.13 | E19: 0 | G19: =Tehniline!CZ19 -> 0 | H19: 0 | I19: =Tehniline!DK19 -> 0 | J19: =Tehniline!DB19 -> 0 | K19: =Tehniline!DF19 -> 0 | L19: =Tehniline!DG19 -> 0 | M19: =Tehniline!DE19 -> 0 | N19: =Tehniline!DL19 -> 0 | O19: =Tehniline!DH19 -> 0 | P19: =Tehniline!DC19 -> 0 | Q19: =Tehniline!DD19 -> 0 | R19: =Tehniline!DM19 -> 0 | S19: =Tehniline!DN19 -> 0 | T19: =Tehniline!DO19 -> 0 | U19: =Tehniline!DP19 -> 0 | V19: 0
C20: 0 | E20: 0 | G20: =Tehniline!CZ20 -> 0 | H20: 0 | I20: =Tehniline!DK20 -> 0 | J20: =Tehniline!DB20 -> 0 | K20: =Tehniline!DF20 -> 0 | L20: =Tehniline!DG20 -> 0 | M20: =Tehniline!DE20 -> 0 | N20: =Tehniline!DL20 -> 0 | O20: =Tehniline!DH20 -> 0 | P20: =Tehniline!DC20 -> 0 | Q20: =Tehniline!DD20 -> 0 | R20: =Tehniline!DM20 -> 0 | S20: =Tehniline!DN20 -> 0 | T20: =Tehniline!DO20 -> 0 | U20: =Tehniline!DP20 -> 0 | V20: 0
C21: 0 | E21: 0 | G21: =Tehniline!CZ21 -> 0 | H21: 0 | I21: =Tehniline!DK21 -> 0 | J21: =Tehniline!DB21 -> 0 | K21: =Tehniline!DF21 -> 0 | L21: =Tehniline!DG21 -> 0 | M21: =Tehniline!DE21 -> 0 | N21: =Tehniline!DL21 -> 0 | O21: =Tehniline!DH21 -> 0 | P21: =Tehniline!DC21 -> 0 | Q21: =Tehniline!DD21 -> 0 | R21: =Tehniline!DM21 -> 0 | S21: =Tehniline!DN21 -> 0 | T21: =Tehniline!DO21 -> 0 | U21: =Tehniline!DP21 -> 0 | V21: 0
C22: 0 | E22: 0 | G22: =Tehniline!CZ22 -> 0 | H22: 0 | I22: =Tehniline!DK22 -> 0 | J22: =Tehniline!DB22 -> 0 | K22: =Tehniline!DF22 -> 0 | L22: =Tehniline!DG22 -> 0 | M22: =Tehniline!DE22 -> 0 | N22: =Tehniline!DL22 -> 0 | O22: =Tehniline!DH22 -> 0 | P22: =Tehniline!DC22 -> 0 | Q22: =Tehniline!DD22 -> 0 | R22: =Tehniline!DM22 -> 0 | S22: =Tehniline!DN22 -> 0 | T22: =Tehniline!DO22 -> 0 | U22: =Tehniline!DP22 -> 0 | V22: 0
C23: 0 | E23: 0 | G23: =Tehniline!CZ23 -> 0 | H23: 0 | I23: =Tehniline!DK23 -> 0 | J23: =Tehniline!DB23 -> 0 | K23: =Tehniline!DF23 -> 0 | L23: =Tehniline!DG23 -> 0 | M23: =Tehniline!DE23 -> 0 | N23: =Tehniline!DL23 -> 0 | O23: =Tehniline!DH23 -> 0 | P23: =Tehniline!DC23 -> 0 | Q23: =Tehniline!DD23 -> 0 | R23: =Tehniline!DM23 -> 0 | S23: =Tehniline!DN23 -> 0 | T23: =Tehniline!DO23 -> 0 | U23: =Tehniline!DP23 -> 0 | V23: 0
C24: 0 | E24: 0 | G24: =Tehniline!CZ24 -> 0 | H24: 0 | I24: =Tehniline!DK24 -> 0 | J24: =Tehniline!DB24 -> 0 | K24: =Tehniline!DF24 -> 0 | L24: =Tehniline!DG24 -> 0 | M24: =Tehniline!DE24 -> 0 | N24: =Tehniline!DL24 -> 0 | O24: =Tehniline!DH24 -> 0 | P24: =Tehniline!DC24 -> 0 | Q24: =Tehniline!DD24 -> 0 | R24: =Tehniline!DM24 -> 0 | S24: =Tehniline!DN24 -> 0 | T24: =Tehniline!DO24 -> 0 | U24: =Tehniline!DP24 -> 0 | V24: 0
B26: Kontrollnäitajad | C26: Mudel | E26: Käsitsi
B28: Ratsiooni maksumus, €/päev | C28: =Tabel1!Y5 -> 1.978784377 | E28: =V28 -> 1.978784377 | G28: Kokku: | H28: =SUM(H3:H25) -> 13.55980379 | I28: =SUM(I3:I25) -> 2142.448999 | J28: =SUM(J3:J25) -> 2659.127357 | K28: 1291.266241 | L28: 67.79901895 | M28: 146.6795018 | N28: 526.4961134 | O28: 2319.323477 | P28: 94.91862653 | Q28: 54.23921516 | R28: 5.05433396 | S28: 0 | T28: 0 | U28: 1710.141296 | V28: 1.978784377
B29: Ratsiooni kogus, kg/päev | C29: =SUM(C3:C25) -> 28.63531105 | E29: =SUM(G3:G25) -> 28.63531105 | G29: 1kg/KA's | I29: =I28/$H$28 -> 158 | J29: =J28/$H$28 -> 196.1036751 | K29: 95.22750185 | L29: 5 | M29: 10.81722892 | N29: 38.82770884 | O29: 171.0440293 | P29: 7 | Q29: 4 | R29: 0.3727438861 | S29: 0 | T29: 0 | U29: 126.1184397
H30: TP/ME suhe: | J30: =I28/M28 -> 14.60632858 | K30: MP/ME suhe: | M30: =K28/M28 -> 8.803317607 | O30: Ca:P suhe: | Q30: =P28/Q28 -> 1.75
B31: Kuivaine kogus, kg | C31: =Tabel1!Y6 -> 13.55980379 | E31: =H28 -> 13.55980379 | I31: TF tarbenormid: | J31: ='Lehm ja ratsiooni tingimused'!D7 -> 650 | N31: kg lehmale, kes lüpsab | O31: ='Lehm ja ratsiooni tingimused'!D8 -> 20 | P31: kg EKM piima
B32: Kuivaine osatähtsus ratsiooni kogumassist, % | C32: =C31/C29 -> 0.4735343634 | E32: =H28/E29 -> 0.4735343634 | O32: ja kelle kehamassi muutus on | P32: -0.2 | Q32: kg
B33: Jõusööda osakaal ratsiooni kuivainest, % | C33: =(SUMPRODUCT(--(Tabel1!B3:'Tabel1'!W3="Teraviljad"),Tabel1!B2:W2,Tabel1!B6:W6)+SUMPRODUCT(--(Tabel1!B3:'Tabel1'!W3="Õlikoogid"),Tabel1!B2:W2,Tabel1!B6:W6)+SUMPRODUCT(--(Tabel1!B3:'Tabel1'!W3="Nisu"),Tabel1!B2:W2,Tabel1!B6:W6))/'Optimaalne ratsioon'!C31 -> 0.3632318283 | E33: =(SUMPRODUCT(--(Tehniline!F3:'Tehniline'!F27="Teraviljad"),Tehniline!CZ3:CZ27,Tehniline!I3:I27)+SUMPRODUCT(--(Tehniline!F3:'Tehniline'!F27="Õlikoogid"),Tehniline!CZ3:CZ27,Tehniline!I3:I27)+SUMPRODUCT(--(Tehniline!F3:'Tehniline'!F27="Nisu"),Tehniline!CZ3:CZ27,Tehniline!I3:I27))/Tehniline!DA31 -> 0.3632318283 | I33: TARVE: | K33: =(3.25*J31^0.75)+IF(P32>0,P32*233,P32*138)+IF(O31<15,O31*47,IF(AND(O31>=15, O31<=35),O31*(48.5-(O31*0.1)),IF(O31>35,O31*45,"0"))) -> 1290.777556 | M33: =(J31^0.75*0.473)+IF(P32>0,P32*60/1,P32*30/1)+(IF(AND(O31>0,O31<=8),(4.975+(O31-1)*0.025)*O31,IF(AND(O31>8,O31<=10),(5.15+(O31-8)*0.02)*O31,IF(AND(O31>10,O31<=12),(5.19+(O31-10)*0.015)*O31,IF(AND(O31>12,O31<=14),(5.22+((O31-12)*0.01))*O31,IF(AND(O31>14,O31<=20),(5.24+(O31-14)*0.015)*O31,IF(AND(O31>20,O31<=24),(5.33+(O31-20)*0.01)*O31,IF(O31>24,(5.37+(O31-24)*0.005)*O31)))))))) -> 161.8900258 | P33: =(J31*25/500)+(3*O31) -> 92.5 | Q33: =(J31*25/500)+(2*O31) -> 72.5
B34: Silo osatähtsus kuivainest, % | C34: =(SUMPRODUCT(--(Tabel1!B3:'Tabel1'!W3="Silo"),Tabel1!B2:W2,Tabel1!B6:W6)+SUMPRODUCT(--(Tabel1!B3:'Tabel1'!W3="Maisisilo"),Tabel1!B2:W2,Tabel1!B6:W6))/'Optimaalne ratsioon'!C31 -> 0.5687182673 | E34: =(SUMPRODUCT(--(Tehniline!F3:'Tehniline'!F27="Silo"),Tehniline!CZ3:CZ27,Tehniline!I3:I27)+ SUMPRODUCT(--(Tehniline!F3:'Tehniline'!F27="Maisisilo"),Tehniline!CZ3:CZ27,Tehniline!I3:I27))/Tehniline!DA31 -> 0.5687182673 | I34: VAHE: | K34: =K28-K33 -> 0.4886846887 | M34: =M28-M33 -> -15.21052405 | P34: =P28-P33 -> 2.41862653 | Q34: =Q28-Q33 -> -18.26078484
B35: Maisisilo osatähtsus kogu silokoguse kuivainest, % | C35: =(SUMPRODUCT(--(Tabel1!B3:'Tabel1'!W3="Maisisilo"),Tabel1!B2:W2,Tabel1!B6:W6))/(SUMPRODUCT(--(Tabel1!B3:'Tabel1'!W3="Silo"),Tabel1!B2:W2,Tabel1!B6:W6)+SUMPRODUCT(--(Tabel1!B3:'Tabel1'!W3="Maisisilo"),Tabel1!B2:W2,Tabel1!B6:W6)) -> 0.159568427 | E35: =(SUMPRODUCT(--(Tehniline!F3:'Tehniline'!F27="Maisisilo"),Tehniline!CZ3:CZ27,Tehniline!I3:I27))/(SUMPRODUCT(--(Tehniline!F3:'Tehniline'!F27="Silo"),Tehniline!CZ3:CZ27,Tehniline!I3:I27) +SUMPRODUCT(--(Tehniline!F3:'Tehniline'!F27="Maisisilo"),Tehniline!CZ3:CZ27,Tehniline!I3:I27)) -> 0.159568427
B36: Nisu osatähtsus teravilja ja jahude kogusest, % | C36: =SUMPRODUCT(--(Tabel1!B3:'Tabel1'!W3="Nisu"),Tabel1!B2:W2,Tabel1!B6:W6)/(SUMPRODUCT(--(Tabel1!B3:'Tabel1'!W3="Nisu"),Tabel1!B2:W2,Tabel1!B6:W6)+SUMPRODUCT(--(Tabel1!B3:'Tabel1'!W3="Teraviljad"),Tabel1!B2:W2,Tabel1!B6:W6)) -> 0 | E36: =SUMPRODUCT(--(Tehniline!F3:'Tehniline'!F27="Nisu"),Tehniline!CZ3:CZ27,Tehniline!I3:I27)/(SUMPRODUCT(--(Tehniline!F3:'Tehniline'!F27="Nisu"),Tehniline!CZ3:CZ27,Tehniline!I3:I27)+ SUMPRODUCT(--(Tehniline!F3:'Tehniline'!F27="Teraviljad"),Tehniline!CZ3:CZ27,Tehniline!I3:I27)) -> 0
B38: Metaboliseeruv energia, MJ | C38: =Tabel1!Y7 -> 146.6795018 | E38: =M28 -> 146.6795018 | J38: Piima karbamiid, mg/l | K38: =0.1107*L28+260.01 -> 267.5153514 | L38: (VPB järgi)
B39: Metaboliseeruv energia, MJ/kg KA | C39: =C38/C31 -> 10.81722892 | E39: =M28/H28 -> 10.81722892 | J39: Piima karbamiid, mg/l | K39: =17.381*(I28/M28)+20.666 -> 274.5385971 | L39: (TP/ME suhte järgi)
B40: (Toor)proteiin, g KA | C40: =Tabel1!Y15/'Optimaalne ratsioon'!C31 -> 158 | E40: =I28/H28 -> 158
B41: Toorproteiini ja metaboliseeruva energia suhe | C41: =C40/C39 -> 14.60632858 | E41: =E40/E39 -> 14.60632858
B42: Metaboliseeruv proteiin, g/kg KA | C42: =Tabel1!Y9/'Optimaalne ratsioon'!C31 -> 95.22750185 | E42: =K28/H28 -> 95.22750185
B43: Metaboliseeruva proteiini ja metaboliseeruva energia suhe | C43: =C42/C39 -> 8.803317607 | E43: =E42/E39 -> 8.803317607
B44: VPB, g | C44: =Tabel1!Y10/'Optimaalne ratsioon'!C31 -> 5 | E44: =L29 -> 5
B45: Ca:P suhe | C45: =Tabel1!Y13/Tabel1!Y14 -> 1.75 | E45: =Q30 -> 1.75
B47: Tärklis ja suhkur ratsiooni kuivaines, g/kg | C47: =Tabel1!Y17/'Optimaalne ratsioon'!C31 -> 196.1036751 | E47: =J28/H28 -> 196.1036751
B48: Toorkiud, g/kg KA | C48: =Tabel1!Y8/'Optimaalne ratsioon'!C31 -> 171.0440293 | E48: =O28/H28 -> 171.0440293
B49: ADF, g/kg KA | C49: =Tabel1!Y18/'Optimaalne ratsioon'!C31 -> 268.4037148 | E49: =Tehniline!DI31/Tehniline!DA31 -> 268.4037148
B50: NDF, g/kg KA | C50: =Tabel1!Y19/'Optimaalne ratsioon'!C31 -> 419.2076103 | E50: =Tehniline!DJ31/Tehniline!DA31 -> 419.2076103

Sheet Tabel1
B1: =B6*B2 -> -5.083676072e-16 | C1: =C6*C2 -> 6.209751845e-14 | D1: 6.481162982 | E1: 0 | F1: =F6*F2 -> 1.230545134 | G1: 0.83 | H1: 0 | I1: 1.185905625 | J1: 0.7589469157 | K1: 2.980499782 | L1: 7.638334409e-16 | M1: 0 | N1: 0 | O1: 0.0927433518 | P1: 0 | Q1: 0 | R1: 0 | S1: 0 | T1: 0 | U1: 0 | V1: 0 | W1: 0 | Y1: 650 | AA1: NORM?
A2: valik | B2: -1.452478878e-15 | C2: 2.45444737e-13 | D2: 17.51665671 | E2: 0 | F2: 4.379164177 | G2: 1 | H2: 0 | I2: 1.317672917 | J2: 0.862439677 | K2: 3.46569742 | L2: 8.881784197e-16 | M2: 0 | N2: 0 | O2: 0.09368015334 | P2: 0 | Q2: 0 | R2: 0 | S2: 0 | T2: 0 | U2: 0 | V2: 0 | W2: 0
B3: Silo | C3: Silo | D3: Silo | E3: Maisisilo | F3: Maisisilo | G3: Hein | H3: Põhk | I3: Õlikoogid | J3: Õlikoogid | K3: Teraviljad | L3: Teraviljad | M3: Nisu | N3: Mineraalid | O3: Mineraalid | P3: Mineraalid | Q3: Mineraalid | R3: Rasv
A4: Söödad | B4: Lutsernisilo TÕ 120-12-60 | C4: V auk - rohusilo | D4: Uus rohusilo | E4: VII auk - maisisilo | F4: Uus maisisilo | G4: Hein kõrreliste kultuurrohumaa 030-15-60 | H4: Odrapõhk 255-16-0 | I4: Rapsikook 350-28 | J4: Sojašrott 310-29 | K4: Oder 255-20/21 | L4: Mais 260-20/21 | M4: Nisu 265-20/21 | N4: Mineraal2 | O4: Lubjakivi | P4: Mineraal 3 | Q4: Karbamiid | R4: Kaitstud rasv
A5: Hind, €/kg | B5: 0.03 | C5: 0.03 | D5: 0.03 | E5: 0.03 | F5: 0.03 | G5: 0.04 | H5: 0.08 | I5: 0.27 | J5: 0.47 | K5: 0.15 | L5: 0.2 | M5: 0.177 | N5: 0.05 | O5: 0.01 | P5: 0.72 | Q5: 0.295 | R5: 1.13 | Y5: =SUMPRODUCT(B5:W5,$B$2:$W$2) -> 1.978784377 | AA5: 0
A6: KA,% | B6: 0.35 | C6: 0.253 | D6: 0.37 | E6: 0.23 | F6: 0.281 | G6: 0.83 | H6: 0.83 | I6: 0.9 | J6: 0.88 | K6: 0.86 | L6: 0.86 | M6: 0.86 | N6: 0.99 | O6: 0.99 | P6: 0.99 | Q6: 0.99 | R6: 0.99 | Y6: =SUMPRODUCT(B6:W6,$B$2:$W$2) -> 13.55980379 | Z6: = | AA6: ='Lehm ja ratsiooni tingimused'!D10 -> 13.55980379
A7: ME, MJ/kg KA | B7: 2.94 | C7: 2.2264 | D7: 3.515 | E7: 2.53 | F7: 2.9224 | G7: 6.972 | H7: 5.727 | I7: 12.06 | J7: 12.408 | K7: 11.18 | L7: 12.212 | M7: 11.868 | N7: 0 | O7: 0 | P7: 0 | Q7: 0 | R7: 31.68 | Y7: =SUMPRODUCT(B7:W7,$B$2:$W$2) -> 146.6795018 | Z7: >= | AA7: =$AA$6*AB7 -> 142.3779398 | AB7: 10.5 | AD7: =Y7/$Y$6 -> 10.81722892
A8: Toorkiud, g/kg KA | B8: 116.2 | C8: 78.936 | D8: 76.59 | E8: 51.29 | F8: 71.936 | G8: 278.05 | H8: 348.6 | I8: 110.7 | J8: 69.52 | K8: 51.6 | L8: 24.94 | M8: 21.5 | N8: 0 | O8: 0 | P8: 0 | Q8: 0 | R8: 0 | Y8: =SUMPRODUCT(B8:W8,$B$2:$W$2) -> 2319.323477 | Z8: >= | AA8: =$AA$6*AB8 -> 1898.372531 | AB8: 140 | AD8: =Y8/$Y$6 -> 171.0440293
A9: MP, g/kg KA | B9: 23.8 | C9: 18.216 | D9: 28.12 | E9: 18.17 | F9: 21.637 | G9: 57.27 | H9: 46.48 | I9: 144.9 | J9: 172.48 | K9: 88.58 | L9: 104.06 | M9: 91.16 | N9: 0 | O9: 0 | P9: 0 | Q9: 0 | R9: 0 | Y9: 1291.266241 | Z9: >= | AA9: =$AA$6*AB9 -> 1247.501949 | AB9: 92 | AD9: 95.22750185
A10: VPB, g/kg KA | B10: 10.5 | C10: 6.831 | D10: -1.85 | E10: -9.89 | F10: -12.083 | G10: -32.37 | H10: -39.84 | I10: 125.1 | J10: 176 | K10: -37.84 | L10: -86 | M10: -24.08 | N10: 0 | O10: 0 | P10: 0 | Q10: 2598.75 | R10: 0 | Y10: 67.79901895 | Z10: >= | AA10: 0 | AB10: 0 | AD10: 5
A11: VPB, g, max | B11: 10.5 | C11: 6.831 | D11: -1.85 | E11: -9.89 | F11: -12.083 | G11: -32.37 | H11: -39.84 | I11: 125.1 | J11: 176 | K11: -37.84 | L11: -86 | M11: -24.08 | N11: 0 | O11: 0 | P11: 0 | Q11: 2598.75 | R11: 0 | Y11: 67.79901895 | Z11: <= | AA11: 67.79901895 | AB11: 5 | AD11: 5
A12: Ca, g/kg KA | B12: 5.425 | C12: 2.7577 | D12: 2.072 | E12: 0.897 | F12: 1.3769 | G12: 4.399 | H12: 3.237 | I12: 7.47 | J12: 2.992 | K12: 0.688 | L12: 0.344 | M12: 0.516 | N12: 148.5 | O12: 356.4 | P12: 173.25 | Q12: 0 | R12: 0 | Y12: 94.91862653 | Z12: >= | AA12: 94.91862653 | AB12: 7 | AD12: 7
A13: Ca, g, max | B13: 5.425 | C13: 2.7577 | D13: 2.072 | E13: 0.897 | F13: 1.3769 | G13: 4.399 | H13: 3.237 | I13: 7.47 | J13: 2.992 | K13: 0.688 | L13: 0.344 | M13: 0.516 | N13: 148.5 | O13: 356.4 | P13: 173.25 | Q13: 0 | R13: 0 | Y13: 94.91862653 | Z13: <= | AA13: 108.4784303 | AB13: 8 | AD13: 7
A14: P, g/kg KA | B14: 0.91 | C14: 0.8602 | D14: 1.073 | E14: 0.483 | F14: 0.7587 | G14: 1.909 | H14: 0.83 | I14: 9.45 | J14: 6.424 | K14: 3.526 | L14: 2.666 | M14: 3.268 | N14: 74.25 | O14: 0 | P14: 74.25 | Q14: 0 | R14: 0 | Y14: 54.23921516 | Z14: >= | AA14: 54.23921516 | AB14: 4 | AD14: 4
A15: (Toor) proteiin, g/kg KA | B15: 51.45 | C15: 24.288 | D15: 46.25 | E15: 20.93 | F15: 24.728 | G15: 66.4 | H15: 39.01 | I15: 307.8 | J15: 440 | K15: 107.5 | L15: 81.7 | M15: 125.56 | N15: 0 | O15: 0 | P15: 0 | Q15: 2598.75 | R15: 0 | Y15: 2142.448999 | Z15: >= | AA15: 2142.448999 | AB15: 158 | AD15: 158
A16: Vaba - reserveering | B16: 0 | C16: 0 | D16: 0 | E16: 0 | F16: 0 | G16: 0 | H16: 0 | I16: 0 | J16: 0 | K16: 0 | L16: 0 | M16: 0 | N16: 0 | O16: 0 | P16: 0 | Q16: 0 | R16: 0 | Y16: 0 | Z16: >= | AA16: 0
A17: Tärklis+suhkur, g/kg KA | B17: 8.75 | C17: 6.325 | D17: 9.25 | E17: 69 | F17: 84.3 | G17: 0 | H17: 0 | I17: 108 | J17: 228.8 | K17: 516 | L17: 602 | M17: 559 | N17: 0 | O17: 0 | P17: 0 | Q17: 0 | R17: 0 | Y17: 2659.127357 | Z17: >= | AA17: 0
A18: ADF, g/kg KA | B18: 133.7 | C18: 88.55 | D18: 129.5 | E18: 81.88 | F18: 100.036 | G18: 351.09 | H18: 414.17 | I18: 208.8 | J18: 82.72 | K18: 67.94 | L18: 24.08 | M18: 0 | N18: 0 | O18: 0 | P18: 0 | Q18: 0 | R18: 0 | Y18: 3639.501709 | Z18: <= | AA18: 0
A19: NDF, g/kg KA | B19: 166.25 | C19: 126.5 | D19: 185 | E19: 132.25 | F19: 161.575 | G19: 553.61 | H19: 654.04 | I19: 299.7 | J19: 149.6 | K19: 190.06 | L19: 92.88 | M19: 0 | N19: 0 | O19: 0 | P19: 0 | Q19: 0 | R19: 0 | Y19: 5684.372944 | Z19: <= | AA19: 0
A20: silo | B20: 1 | C20: 1 | D20: 1 | E20: 1 | F20: 1 | Y20: 21.89582089 | Z20: <= | AA20: ='Lehm ja ratsiooni tingimused'!D18 -> 50 | AC20: D17
A21: silo max% | B21: -1 | C21: -1 | D21: -1 | E21: 0 | F21: 0 | Y21: -17.51665671 | Z21: <= | AA21: 0
A22: hein | G22: 1 | Y22: 1 | Z22: <= | AA22: ='Lehm ja ratsiooni tingimused'!D24 -> 1 | AC22: D18
A23: põhk | H23: 1 | Y23: 0 | Z23: <= | AA23: ='Lehm ja ratsiooni tingimused'!D25 -> 0.5 | AC23: D19
A24: jahud | I24: 1 | J24: 1 | K24: 1 | L24: 1 | M24: 1 | Y24: 5.645810014 | Z24: <= | AA24: ='Lehm ja ratsiooni tingimused'!D31 -> 15 | AC24: D20
A25: jahud% | K25: -0.5 | L25: -0.5 | M25: -0.5 | Y25: -1.73284871 | Z25: <= | AA25: 0
A26: nisu max | K26: -0.5 | L26: -0.5 | M26: 0.5 | Y26: -1.73284871 | Z26: <= | AA26: 0
A27: õlikoogid | I27: 1 | Y27: 1.317672917 | Z27: <= | AA27: ='Lehm ja ratsiooni tingimused'!D28 -> 5 | AC27: D21
A28: panto | Y28: 0 | Z28: <= | AA28: 0
A29: mineraal | N29: 1 | Y29: 0 | Z29: <= | AA29: ='Lehm ja ratsiooni tingimused'!D39 -> 0.2 | AC29: D22
A30: lubjakivi | O30: 1 | Y30: 0.09368015334 | Z30: <= | AA30: ='Lehm ja ratsiooni tingimused'!D40 -> 0.25 | AC30: D23
A31: maisisilo min | B31: -0.2 | C31: -0.2 | D31: -0.2 | E31: 0.8 | F31: 0.8 | Y31: -2.131628207e-14 | Z31: >= | AA31: 0
A32: Kaitstud rasv max | R32: 1 | Y32: 0 | Z32: <= | AA32: ='Lehm ja ratsiooni tingimused'!D36 -> 0.2 | AC32: D27
A33: Lisasööt1 | Y33: 0 | Z33: >= | AA33: ='Lehm ja ratsiooni tingimused'!D43 -> 0 | AC33: D28
A34: Lisasööt2 | Y34: 0 | Z34: >= | AA34: ='Lehm ja ratsiooni tingimused'!D44 -> 0 | AC34: D29
A35: rohusilo max % | B35: 0 | C35: 0 | D35: 0 | Y35: =SUMPRODUCT(B35:W35,$B$2:$W$2) -> 0 | Z35: >= | AA35: 0
A36: rohusilo max % | B36: 0 | C36: 0 | D36: 0 | Y36: =SUMPRODUCT(B36:W36,$B$2:$W$2) -> 0 | Z36: >= | AA36: 0
A37: rohusilo max % | B37: 0 | C37: 0 | D37: 0 | Y37: 0 | Z37: >= | AA37: 0
A38: rohusilo max % | B38: 0 | C38: 0 | D38: 0 | Y38: 0 | Z38: >= | AA38: 0
A39: rohusilo max % | B39: 1 | C39: 0 | D39: 0 | Y39: -1.452478878e-15 | Z39: >= | AA39: 0
A40: rohusilo max % | B40: 0 | C40: 0 | D40: 0 | Y40: 0 | Z40: >= | AA40: 0
A41: rohusilo max % | B41: 0 | C41: 0 | D41: 0 | Y41: 0 | Z41: >= | AA41: 0
A42: rohusilo max % | B42: 0 | C42: 1 | D42: 0 | Y42: 2.45444737e-13 | Z42: >= | AA42: 0
A43: rohusilo max % | B43: 0 | C43: 0 | D43: 1 | Y43: 17.51665671 | Z43: >= | AA43: 0
A44: rohusilo max % | B44: 0 | C44: 0 | D44: 0 | Y44: 0 | Z44: >= | AA44: 0
A45: rohusilo max % | B45: 0 | C45: 0 | D45: 0 | Y45: 0 | Z45: >= | AA45: 0
A46: rohusilo max % | B46: 0 | C46: 0 | D46: 0 | Y46: 0 | Z46: >= | AA46: 0
A47: rohusilo max % | B47: 0 | C47: 0 | D47: 0 | Y47: 0 | Z47: >= | AA47: 0
A48: Vesi | Y48: 0 | AA48: 0
A49: teravilja max% | K49: 1 | L49: 0 | M49: 0 | Y49: 3.46569742 | Z49: >= | AA49: 0
A50: teravilja max% | K50: 0 | L50: 1 | M50: 0 | Y50: 8.881784197e-16 | Z50: >= | AA50: 0
A51: teravilja max% | K51: 0 | L51: 0 | M51: 0 | Y51: 0 | Z51: >= | AA51: 0
A52: teravilja max% | K52: 0 | L52: 0 | M52: 0 | Y52: 0 | Z52: >= | AA52: 0
A53: teravilja max% | K53: 0 | L53: 0 | M53: 0 | Y53: 0 | Z53: >= | AA53: 0
A54: teravilja max% | K54: 0 | L54: 0 | M54: 0 | Y54: 0 | Z54: >= | AA54: 0
A55: teravilja max% | K55: 0 | L55: 0 | M55: 0 | Y55: 0 | Z55: >= | AA55: 0
A56: teravilja max% | K56: 0 | L56: 0 | M56: 0 | Y56: 0 | Z56: >= | AA56: 0
A57: teravilja max% | K57: 0 | L57: 0 | M57: 0 | Y57: 0 | Z57: >= | AA57: 0
A58: teravilja max% | K58: 0 | L58: 0 | M58: 0 | Y58: 0 | Z58: >= | AA58: 0
A59: teravilja max% | K59: 0 | L59: 0 | M59: 0 | Y59: 0 | Z59: >= | AA59: 0
A60: teravilja max% | K60: 0 | L60: 0 | M60: 0 | Y60: 0 | Z60: >= | AA60: 0
A61: teravilja max% | K61: 0 | L61: 0 | M61: 0 | Y61: 0 | Z61: >= | AA61: 0
A62: teravilja max% | K62: 0 | L62: 0 | M62: 0 | Y62: 0 | Z62: >= | AA62: 0
A63: teravilja max% | K63: 0 | L63: 0 | M63: 0 | Y63: 0 | Z63: >= | AA63: 0
A64: teravilja max% | K64: 0 | L64: 0 | M64: 0 | Y64: 0 | Z64: >= | AA64: 0
A65: teravilja max% | K65: 0 | L65: 0 | M65: 0 | Y65: 0 | Z65: >= | AA65: 0
A66: nisu max% | K66: 0 | L66: 0 | M66: 1 | Y66: 0 | Z66: >= | AA66: 0
A67: nisu max% | K67: 0 | L67: 0 | M67: 0 | Y67: 0 | Z67: >= | AA67: 0
A68: nisu max% | K68: 0 | L68: 0 | M68: 0 | Y68: 0 | Z68: >= | AA68: 0
A69: nisu max% | Y69: 0 | Z69: >= | AA69: 0
A70: nisu max% | Y70: 0 | Z70: >= | AA70: 0
A71: nisu max% | Y71: 0 | Z71: >= | AA71: 0
A72: nisu max% | Y72: 0 | Z72: >= | AA72: 0
A73: nisu max% | Y73: 0 | Z73: >= | AA73: 0
A74: TR g/kg | B74: 10.15 | C74: 9.108 | D74: 14.06 | E74: 7.36 | F74: 7.587 | G74: 19.09 | H74: 16.6 | I74: 113.4 | J74: 14.96 | K74: 18.92 | L74: 38.7 | M74: 22.36 | N74: 0 | O74: 0 | P74: 0 | Q74: 0 | R74: 0
A75: Na g/kg KA | B75: 0.14 | C75: 0.1265 | D75: 0.185 | E75: 0.115 | F75: 0.1405 | G75: 0.332 | H75: 0.83 | I75: 0.09 | J75: 0.176 | K75: 0.172 | L75: 0.086 | M75: 0 | N75: 0 | O75: 0 | P75: 0 | Q75: 0 | R75: 0
A76: K g/kg KA | B76: 0 | C76: 0 | D76: 0 | E76: 0 | F76: 0 | G76: 0 | H76: 0 | I76: 0 | J76: 0 | K76: 0 | L76: 0 | M76: 0 | N76: 0 | O76: 0 | P76: 0 | Q76: 0 | R76: 0
A77: Mg g/kg KA | B77: 0 | C77: 0 | D77: 0 | E77: 0 | F77: 0 | G77: 0 | H77: 0 | I77: 0 | J77: 0 | K77: 0 | L77: 0 | M77: 0 | N77: 0 | O77: 0 | P77: 0 | Q77: 0 | R77: 0
A78: KAB, mekv | B78: 54.6 | C78: 70.84 | D78: 103.6 | E78: 32.43 | F78: 39.621 | G78: 160.19 | H78: 152.72 | I78: -526.5 | J78: 230.56 | K78: 16.34 | L78: 10.32 | M78: 77.4 | N78: 0 | O78: 0 | P78: 0 | Q78: 0 | R78: 0

Sheet Tehniline (hidden)
G2: Söödad | H2: Hind, €/kg | I2: KA,% | J2: ME, MJ/kg KA | K2: Toorkiud, g/kg KA | L2: MP, g/kg KA | M2: VPB, g/kg KA | N2: VPB, g, max | O2: Ca, g/kg KA | P2: Ca, g, max | Q2: P, g/kg KA | R2: (Toor) proteiin, g/kg KA | S2: Vaba - reserveering | T2: Tärklis+suhkur, g/kg KA | U2: ADF, g/kg KA | V2: NDF, g/kg KA | W2: silo | X2: silo max% | Y2: hein | Z2: põhk | AA2: jahud | AB2: jahud% | AC2: nisu max | AD2: õlikoogid | AE2: panto | AF2: mineraal | AG2: lubjakivi | AH2: maisisilo min | AI2: Kaitstud rasv max | AJ2: Lisasööt1 | AK2: Lisasööt2 | AL2: rohusilo max % | AM2: rohusilo max % | AN2: rohusilo max % | AO2: rohusilo max % | AP2: rohusilo max % | AQ2: rohusilo max % | AR2: rohusilo max % | AS2: rohusilo max % | AT2: rohusilo max % | AU2: rohusilo max % | AV2: rohusilo max % | AW2: rohusilo max % | AX2: rohusilo max % | AY2: Vesi | AZ2: teravilja max% | BA2: teravilja max% | BB2: teravilja max% | BC2: teravilja max% | BD2: teravilja max% | BE2: teravilja max% | BF2: teravilja max% | BG2: teravilja max% | BH2: teravilja max% | BI2: teravilja max% | BJ2: teravilja max% | BK2: teravilja max% | BL2: teravilja max% | BM2: teravilja max% | BN2: teravilja max% | BO2: teravilja max% | BP2: teravilja max% | BQ2: nisu max% | BR2: nisu max% | BS2: nisu max% | BT2: nisu max% | BU2: nisu max% | BV2: nisu max% | BW2: nisu max% | BX2: nisu max% | BY2: TR g/kg | BZ2: Na g/kg KA | CA2: K g/kg KA | CB2: Mg g/kg KA | CC2: KAB, mekv | CZ2: puhas | DA2: KA | DB2: Tärklis+suhkur | DC2: Ca,Max | DD2: P | DE2: ME, MJ/kg KA | DF2: MP, g/kg KA | DG2: VPB, g | DH2: Toorkiud, g/kg KA | DI2: ADF, g/kg KA | DJ2: NDF, g/kg KA | DK2: Proteiin,g KA | DL2: TR | DM2: Na, g | DN2: K, g | DO2: Mg, g | DP2: KAB, mekv
A3: 45 | B3: 0.35 | D3: - 0…30 lüpsipäev | F3: Silo | G3: Lutsernisilo TÕ 120-12-60 | H3: 0.03 | I3: 0.35 | J3: 8.4 | K3: 332 | L3: 68 | M3: 30 | N3: 30 | O3: 15.5 | P3: 15.5 | Q3: 2.6 | R3: 147 | T3: 25 | U3: 382 | V3: 475 | W3: 1 | X3: -1 | AH3: -0.2 | AL3: 0 | AM3: 0 | AN3: 0 | AO3: 0 | AP3: 1 | AQ3: 0 | AR3: 0 | AS3: 0 | AT3: 0 | AU3: 0 | AV3: 0 | AW3: 0 | AX3: 0 | BY3: 29 | BZ3: 0.4 | CC3: 156 | CZ3: =IFERROR(DA3/I3,0) -> -1.452478878e-15 | DA3: ='Optimaalne ratsioon'!H3 -> -5.083676072e-16 | DB3: =IFERROR(SUMPRODUCT(T3,DA3),0) -> -1.270919018e-14 | DC3: =IFERROR(SUMPRODUCT(P3,DA3),0) -> -7.879697911e-15 | DD3: =IFERROR(SUMPRODUCT(Q3,DA3),0) -> -1.321755779e-15 | DE3: =IFERROR(SUMPRODUCT(J3,DA3),0) -> -4.2702879e-15 | DF3: =IFERROR(SUMPRODUCT(L3,DA3),0) -> -3.456899729e-14 | DG3: =IFERROR(SUMPRODUCT(N3,DA3),0) -> -1.525102821e-14 | DH3: =IFERROR(SUMPRODUCT(K3,DA3),0) -> -1.687780456e-13 | DI3: =IFERROR(SUMPRODUCT(U3,DA3),0) -> -1.941964259e-13 | DJ3: =IFERROR(SUMPRODUCT(V3,DA3),0) -> -2.414746134e-13 | DK3: =IFERROR(SUMPRODUCT(R3,DA3),0) -> -7.473003825e-14 | DL3: =IFERROR(SUMPRODUCT(BY3,DA3),0) -> -1.474266061e-14 | DM3: =IFERROR(SUMPRODUCT(BZ3,DA3),0) -> -2.033470429e-16 | DN3: =IFERROR(SUMPRODUCT(CA3,DA3),0) -> 0 | DO3: =IFERROR(SUMPRODUCT(CB3,DA3),0) -> 0 | DP3: =IFERROR(SUMPRODUCT(CC3,DA3),0) -> -7.930534672e-14
A4: 1 | B4: 0.35 | D4: - Laktatsiooni I pool (31…150 lüpsipäev) | F4: Silo | G4: V auk - rohusilo | H4: 0.03 | I4: 0.253 | J4: 8.8 | K4: 312 | L4: 72 | M4: 27 | N4: 27 | O4: 10.9 | P4: 10.9 | Q4: 3.4 | R4: 96 | T4: 25 | U4: 350 | V4: 500 | W4: 1 | X4: -1 | AH4: -0.2 | AL4: 0 | AM4: 0 | AN4: 0 | AO4: 0 | AP4: 0 | AQ4: 0 | AR4: 0 | AS4: 1 | AT4: 0 | AU4: 0 | AV4: 0 | AW4: 0 | AX4: 0 | BY4: 36 | BZ4: 0.5 | CC4: 280 | CZ4: =IFERROR(DA4/I4,0) -> 2.45444737e-13 | DA4: ='Optimaalne ratsioon'!H4 -> 6.209751845e-14 | DB4: =IFERROR(SUMPRODUCT(T4,DA4),0) -> 1.552437961e-12 | DC4: =IFERROR(SUMPRODUCT(P4,DA4),0) -> 6.768629511e-13 | DD4: =IFERROR(SUMPRODUCT(Q4,DA4),0) -> 2.111315627e-13 | DE4: =IFERROR(SUMPRODUCT(J4,DA4),0) -> 5.464581624e-13 | DF4: =IFERROR(SUMPRODUCT(L4,DA4),0) -> 4.471021328e-12 | DG4: =IFERROR(SUMPRODUCT(N4,DA4),0) -> 1.676632998e-12 | DH4: =IFERROR(SUMPRODUCT(K4,DA4),0) -> 1.937442576e-11 | DI4: =IFERROR(SUMPRODUCT(U4,DA4),0) -> 2.173413146e-11 | DJ4: =IFERROR(SUMPRODUCT(V4,DA4),0) -> 3.104875922e-11 | DK4: =IFERROR(SUMPRODUCT(R4,DA4),0) -> 5.961361771e-12 | DL4: =IFERROR(SUMPRODUCT(BY4,DA4),0) -> 2.235510664e-12 | DM4: =IFERROR(SUMPRODUCT(BZ4,DA4),0) -> 3.104875922e-14 | DN4: =IFERROR(SUMPRODUCT(CA4,DA4),0) -> 0 | DO4: =IFERROR(SUMPRODUCT(CB4,DA4),0) -> 0 | DP4: =IFERROR(SUMPRODUCT(CC4,DA4),0) -> 1.738730517e-11
A5: 0.5 | B5: 0.35 | D5: - Laktatsiooni II pool (151… lüpsipäev) | F5: Silo | G5: Uus rohusilo | H5: 0.03 | I5: 0.37 | J5: 9.5 | K5: 207 | L5: 76 | M5: -5 | N5: -5 | O5: 5.6 | P5: 5.6 | Q5: 2.9 | R5: 125 | T5: 25 | U5: 350 | V5: 500 | W5: 1 | X5: -1 | AH5: -0.2 | AL5: 0 | AM5: 0 | AN5: 0 | AO5: 0 | AP5: 0 | AQ5: 0 | AR5: 0 | AS5: 0 | AT5: 1 | AU5: 0 | AV5: 0 | AW5: 0 | AX5: 0 | BY5: 38 | BZ5: 0.5 | CC5: 280 | CZ5: 17.51665671 | DA5: ='Optimaalne ratsioon'!H5 -> 6.481162982 | DB5: 162.0290746 | DC5: 36.2945127 | DD5: 18.79537265 | DE5: 61.57104833 | DF5: 492.5683867 | DG5: -32.40581491 | DH5: 1341.600737 | DI5: 2268.407044 | DJ5: 3240.581491 | DK5: 810.1453728 | DL5: 246.2841933 | DM5: 3.240581491 | DN5: 0 | DO5: 0 | DP5: 1814.725635
A6: 11 | B6: 0.35 | D6: Kinnisperiood | F6: Maisisilo | G6: VII auk - maisisilo | H6: 0.03 | I6: 0.23 | J6: 11 | K6: 223 | L6: 79 | M6: -43 | N6: -43 | O6: 3.9 | P6: 3.9 | Q6: 2.1 | R6: 91 | T6: 300 | U6: 356 | V6: 575 | W6: 1 | X6: 0 | AH6: 0.8 | BY6: 32 | BZ6: 0.5 | CC6: 141 | CZ6: 0 | DA6: ='Optimaalne ratsioon'!H6 -> 0 | DB6: 0 | DC6: 0 | DD6: 0 | DE6: 0 | DF6: 0 | DG6: 0 | DH6: 0 | DI6: 0 | DJ6: 0 | DK6: 0 | DL6: 0 | DM6: 0 | DN6: 0 | DO6: 0 | DP6: 0
A7: 5 | B7: 0.35 | F7: Maisisilo | G7: Uus maisisilo | H7: 0.03 | I7: 0.281 | J7: 10.4 | K7: 256 | L7: 77 | M7: -43 | N7: -43 | O7: 4.9 | P7: 4.9 | Q7: 2.7 | R7: 88 | T7: 300 | U7: 356 | V7: 575 | W7: 1 | X7: 0 | AH7: 0.8 | BY7: 27 | BZ7: 0.5 | CC7: 141 | CZ7: 4.379164177 | DA7: ='Optimaalne ratsioon'!H7 -> 1.230545134 | DB7: 369.1635401 | DC7: 6.029671156 | DD7: 3.322471861 | DE7: 12.79766939 | DF7: 94.7519753 | DG7: -52.91344075 | DH7: 315.0195543 | DI7: 438.0740676 | DJ7: 707.5634519 | DK7: 108.2879718 | DL7: 33.22471861 | DM7: 0.6152725669 | DN7: 0 | DO7: 0 | DP7: 173.5068639
A8: 0.2 | B8: 0.3 | F8: Hein | G8: Hein kõrreliste kultuurrohumaa 030-15-60 | H8: 0.04 | I8: 0.83 | J8: 8.4 | K8: 335 | L8: 69 | M8: -39 | N8: -39 | O8: 5.3 | P8: 5.3 | Q8: 2.3 | R8: 80 | U8: 423 | V8: 667 | Y8: 1 | BY8: 23 | BZ8: 0.4 | CC8: 193 | CZ8: 1 | DA8: ='Optimaalne ratsioon'!H8 -> 0.83 | DB8: 0 | DC8: 4.399 | DD8: 1.909 | DE8: 6.972 | DF8: 57.27 | DG8: -32.37 | DH8: 278.05 | DI8: 351.09 | DJ8: 553.61 | DK8: 66.4 | DL8: 19.09 | DM8: 0.332 | DN8: 0 | DO8: 0 | DP8: 160.19
A9: 0.25 | B9: 0.22 | F9: Põhk | G9: Odrapõhk 255-16-0 | H9: 0.08 | I9: 0.83 | J9: 6.9 | K9: 420 | L9: 56 | M9: -48 | N9: -48 | O9: 3.9 | P9: 3.9 | Q9: 1 | R9: 47 | U9: 499 | V9: 788 | Z9: 1 | BY9: 20 | BZ9: 1 | CC9: 184 | CZ9: 0 | DA9: ='Optimaalne ratsioon'!H9 -> 0 | DB9: 0 | DC9: 0 | DD9: 0 | DE9: 0 | DF9: 0 | DG9: 0 | DH9: 0 | DI9: 0 | DJ9: 0 | DK9: 0 | DL9: 0 | DM9: 0 | DN9: 0 | DO9: 0 | DP9: 0
A10: 0.2 | B10: 0.83 | D10: =0.83*(5.640313+0.58204*'Lehm ja ratsiooni tingimused'!D8-0.00236*POWER('Lehm ja ratsiooni tingimused'!D8,2)) -> 13.55980379 | F10: Õlikoogid | G10: Rapsikook 350-28 | H10: 0.27 | I10: 0.9 | J10: 13.4 | K10: 123 | L10: 161 | M10: 139 | N10: 139 | O10: 8.3 | P10: 8.3 | Q10: 10.5 | R10: 342 | T10: 120 | U10: 232 | V10: 333 | AA10: 1 | AD10: 1 | BY10: 126 | BZ10: 0.1 | CC10: -585 | CZ10: 1.317672917 | DA10: ='Optimaalne ratsioon'!H10 -> 1.185905625 | DB10: 142.308675 | DC10: 9.843016686 | DD10: 12.45200906 | DE10: 15.89113537 | DF10: 190.9308056 | DG10: 164.8408819 | DH10: 145.8663919 | DI10: 275.130105 | DJ10: 394.9065731 | DK10: 405.5797237 | DL10: 149.4241087 | DM10: 0.1185905625 | DN10: 0 | DO10: 0 | DP10: -693.7547905
A11: 0.25 | B11: 0.83 | F11: Õlikoogid | G11: Sojašrott 310-29 | H11: 0.47 | I11: 0.88 | J11: 14.1 | K11: 79 | L11: 196 | M11: 200 | N11: 200 | O11: 3.4 | P11: 3.4 | Q11: 7.3 | R11: 500 | T11: 260 | U11: 94 | V11: 170 | AA11: 1 | BY11: 17 | BZ11: 0.2 | CC11: 262 | CZ11: 0.862439677 | DA11: ='Optimaalne ratsioon'!H11 -> 0.7589469157 | DB11: 197.3261981 | DC11: 2.580419514 | DD11: 5.540312485 | DE11: 10.70115151 | DF11: 148.7535955 | DG11: 151.7893831 | DH11: 59.95680634 | DI11: 71.34101008 | DJ11: 129.0209757 | DK11: 379.4734579 | DL11: 12.90209757 | DM11: 0.1517893831 | DN11: 0 | DO11: 0 | DP11: 198.8440919
A12: 0.5 | B12: 0.83 | F12: Teraviljad | G12: Oder 255-20/21 | H12: 0.15 | I12: 0.86 | J12: 13 | K12: 60 | L12: 103 | M12: -44 | N12: -44 | O12: 0.8 | P12: 0.8 | Q12: 4.1 | R12: 125 | T12: 600 | U12: 79 | V12: 221 | AA12: 1 | AB12: -0.5 | AC12: -0.5 | AZ12: 1 | BA12: 0 | BB12: 0 | BC12: 0 | BD12: 0 | BE12: 0 | BF12: 0 | BG12: 0 | BH12: 0 | BI12: 0 | BJ12: 0 | BK12: 0 | BL12: 0 | BM12: 0 | BN12: 0 | BO12: 0 | BP12: 0 | BQ12: 0 | BR12: 0 | BS12: 0 | BY12: 22 | BZ12: 0.2 | CC12: 19 | CZ12: 3.46569742 | DA12: ='Optimaalne ratsioon'!H12 -> 2.980499782 | DB12: 1788.299869 | DC12: 2.384399825 | DD12: 12.2200491 | DE12: 38.74649716 | DF12: 306.9914775 | DG12: -131.1419904 | DH12: 178.8299869 | DI12: 235.4594827 | DJ12: 658.6904517 | DK12: 372.5624727 | DL12: 65.57099519 | DM12: 0.5960999563 | DN12: 0 | DO12: 0 | DP12: 56.62949585
B13: 0.83 | D13: Ratsioon muudetud KA kogusest | F13: Teraviljad | G13: Mais 260-20/21 | H13: 0.2 | I13: 0.86 | J13: 14.2 | K13: 29 | L13: 121 | M13: -100 | N13: -100 | O13: 0.4 | P13: 0.4 | Q13: 3.1 | R13: 95 | T13: 700 | U13: 28 | V13: 108 | AA13: 1 | AB13: -0.5 | AC13: -0.5 | AZ13: 0 | BA13: 1 | BB13: 0 | BC13: 0 | BD13: 0 | BE13: 0 | BF13: 0 | BG13: 0 | BH13: 0 | BI13: 0 | BJ13: 0 | BK13: 0 | BL13: 0 | BM13: 0 | BN13: 0 | BO13: 0 | BP13: 0 | BQ13: 0 | BR13: 0 | BS13: 0 | BY13: 45 | BZ13: 0.1 | CC13: 12 | CZ13: 8.881784197e-16 | DA13: ='Optimaalne ratsioon'!H13 -> 7.638334409e-16 | DB13: 5.346834087e-13 | DC13: 3.055333764e-16 | DD13: 2.367883667e-15 | DE13: 1.084643486e-14 | DF13: 9.242384635e-14 | DG13: -7.638334409e-14 | DH13: 2.215116979e-14 | DI13: 2.138733635e-14 | DJ13: 8.249401162e-14 | DK13: 7.256417689e-14 | DL13: 3.437250484e-14 | DM13: 7.638334409e-17 | DN13: 0 | DO13: 0 | DP13: 9.166001291e-15
B14: 0.82 | D14: =SUMPRODUCT(DA3:DA31,I3:I31) -> 7.822947565 | F14: Nisu | G14: Nisu 265-20/21 | H14: 0.177 | I14: 0.86 | J14: 13.8 | K14: 25 | L14: 106 | M14: -28 | N14: -28 | O14: 0.6 | P14: 0.6 | Q14: 3.8 | R14: 146 | T14: 650 | AA14: 1 | AB14: -0.5 | AC14: 0.5 | AZ14: 0 | BA14: 0 | BB14: 0 | BC14: 0 | BD14: 0 | BE14: 0 | BF14: 0 | BG14: 0 | BH14: 0 | BI14: 0 | BJ14: 0 | BK14: 0 | BL14: 0 | BM14: 0 | BN14: 0 | BO14: 0 | BP14: 0 | BQ14: 1 | BR14: 0 | BS14: 0 | BY14: 26 | CC14: 90 | CZ14: 0 | DA14: ='Optimaalne ratsioon'!H14 -> 0 | DB14: 0 | DC14: 0 | DD14: 0 | DE14: 0 | DF14: 0 | DG14: 0 | DH14: 0 | DI14: 0 | DJ14: 0 | DK14: 0 | DL14: 0 | DM14: 0 | DN14: 0 | DO14: 0 | DP14: 0
B15: 0.9 | F15: Mineraalid | G15: Mineraal2 | H15: 0.05 | I15: 0.99 | N15: 0 | O15: 150 | P15: 150 | Q15: 75 | AF15: 1 | CZ15: 0 | DA15: ='Optimaalne ratsioon'!H15 -> 0 | DB15: 0 | DC15: 0 | DD15: 0 | DE15: 0 | DF15: 0 | DG15: 0 | DH15: 0 | DI15: 0 | DJ15: 0 | DK15: 0 | DL15: 0 | DM15: 0 | DN15: 0 | DO15: 0 | DP15: 0
B16: 0.9 | F16: Mineraalid | G16: Lubjakivi | H16: 0.01 | I16: 0.99 | N16: 0 | O16: 360 | P16: 360 | AG16: 1 | CZ16: 0.09368015334 | DA16: ='Optimaalne ratsioon'!H16 -> 0.0927433518 | DB16: 0 | DC16: 33.38760665 | DD16: 0 | DE16: 0 | DF16: 0 | DG16: 0 | DH16: 0 | DI16: 0 | DJ16: 0 | DK16: 0 | DL16: 0 | DM16: 0 | DN16: 0 | DO16: 0 | DP16: 0
B17: 0.86 | F17: Mineraalid | G17: Mineraal 3 | H17: 0.72 | I17: 0.99 | N17: 0 | O17: 175 | P17: 175 | Q17: 75 | CZ17: 0 | DA17: ='Optimaalne ratsioon'!H17 -> 0 | DB17: 0 | DC17: 0 | DD17: 0 | DE17: 0 | DF17: 0 | DG17: 0 | DH17: 0 | DI17: 0 | DJ17: 0 | DK17: 0 | DL17: 0 | DM17: 0 | DN17: 0 | DO17: 0 | DP17: 0
B18: 0.86 | F18: Mineraalid | G18: Karbamiid | H18: 0.295 | I18: 0.99 | M18: 2625 | N18: 2625 | P18: 0 | R18: 2625 | CZ18: 0 | DA18: ='Optimaalne ratsioon'!H18 -> 0 | DB18: 0 | DC18: 0 | DD18: 0 | DE18: 0 | DF18: 0 | DG18: 0 | DH18: 0 | DI18: 0 | DJ18: 0 | DK18: 0 | DL18: 0 | DM18: 0 | DN18: 0 | DO18: 0 | DP18: 0
B19: 0.86 | F19: Rasv | G19: Kaitstud rasv | H19: 1.13 | I19: 0.99 | J19: 32 | N19: 0 | P19: 0 | AI19: 1 | CZ19: 0 | DA19: ='Optimaalne ratsioon'!H19 -> 0 | DB19: 0 | DC19: 0 | DD19: 0 | DE19: 0 | DF19: 0 | DG19: 0 | DH19: 0 | DI19: 0 | DJ19: 0 | DK19: 0 | DL19: 0 | DM19: 0 | DN19: 0 | DO19: 0 | DP19: 0
B20: 0.65 | CZ20: 0 | DA20: ='Optimaalne ratsioon'!H20 -> 0 | DB20: 0 | DC20: 0 | DD20: 0 | DE20: 0 | DF20: 0 | DG20: 0 | DH20: 0 | DI20: 0 | DJ20: 0 | DK20: 0 | DL20: 0 | DM20: 0 | DN20: 0 | DO20: 0 | DP20: 0
B21: 0.99 | CZ21: 0 | DA21: ='Optimaalne ratsioon'!H21 -> 0 | DB21: 0 | DC21: 0 | DD21: 0 | DE21: 0 | DF21: 0 | DG21: 0 | DH21: 0 | DI21: 0 | DJ21: 0 | DK21: 0 | DL21: 0 | DM21: 0 | DN21: 0 | DO21: 0 | DP21: 0
B22: 0.99 | CZ22: 0 | DA22: ='Optimaalne ratsioon'!H22 -> 0 | DB22: 0 | DC22: 0 | DD22: 0 | DE22: 0 | DF22: 0 | DG22: 0 | DH22: 0 | DI22: 0 | DJ22: 0 | DK22: 0 | DL22: 0 | DM22: 0 | DN22: 0 | DO22: 0 | DP22: 0
B23: 0.99 | CZ23: 0 | DA23: ='Optimaalne ratsioon'!H23 -> 0 | DB23: 0 | DC23: 0 | DD23: 0 | DE23: 0 | DF23: 0 | DG23: 0 | DH23: 0 | DI23: 0 | DJ23: 0 | DK23: 0 | DL23: 0 | DM23: 0 | DN23: 0 | DO23: 0 | DP23: 0
B24: 0.99 | CZ24: 0 | DA24: ='Optimaalne ratsioon'!H24 -> 0 | DB24: 0 | DC24: 0 | DD24: 0 | DE24: 0 | DF24: 0 | DG24: 0 | DH24: 0 | DI24: 0 | DJ24: 0 | DK24: 0 | DL24: 0 | DM24: 0 | DN24: 0 | DO24: 0 | DP24: 0
CZ25: 0 | DA25: ='Optimaalne ratsioon'!H25 -> 0 | DB25: 0 | DC25: 0 | DD25: 0 | DE25: 0 | DF25: 0 | DG25: 0 | DH25: 0 | DI25: 0 | DJ25: 0 | DK25: 0 | DL25: 0 | DM25: 0 | DN25: 0 | DO25: 0 | DP25: 0
CZ26: 0 | DA26: ='Optimaalne ratsioon'!H26 -> 0 | DB26: 0 | DC26: 0 | DD26: 0 | DE26: 0 | DF26: 0 | DG26: 0 | DH26: 0 | DI26: 0 | DJ26: 0 | DK26: 0 | DL26: 0 | DM26: 0 | DN26: 0 | DO26: 0 | DP26: 0
CZ27: 0 | DA27: ='Optimaalne ratsioon'!H27 -> 0 | DB27: 0 | DC27: 0 | DD27: 0 | DE27: 0 | DF27: 0 | DG27: 0 | DH27: 0 | DI27: 0 | DJ27: 0 | DK27: 0 | DL27: 0 | DM27: 0 | DN27: 0 | DO27: 0 | DP27: 0
A28: silode tabeli jaoks | B28: teraviljad + nisu
CZ31: =SUM(CZ3:CZ27) -> 28.63531105 | DA31: =SUM(DA3:DA27) -> 13.55980379 | DB31: 2659.127357 | DC31: 94.91862653 | DD31: 54.23921516 | DE31: 146.6795018 | DF31: 1291.266241 | DG31: 67.79901895 | DH31: 2319.323477 | DI31: 3639.501709 | DJ31: 5684.372944 | DK31: 2142.448999 | DL31: 526.4961134 | DM31: 5.05433396 | DN31: 0 | DO31: 0 | DP31: 1710.141296
A32: FALSE | B32: TRUE | C32: 50
A33: FALSE | B33: TRUE | C33: 0
A34: FALSE | B34: FALSE | C34: 1
A35: FALSE | B35: FALSE | C35: 0
A36: TRUE | B36: FALSE
A37: FALSE | B37: FALSE | CZ37: =(SUMPRODUCT(--(Tehniline!F3:'Tehniline'!F27="Teraviljad"),Tehniline!CZ3:CZ27,Tehniline!I3:I27)+SUMPRODUCT(--(Tehniline!F3:'Tehniline'!F27="Õlikoogid"),Tehniline!CZ3:CZ27,Tehniline!I3:I27)+SUMPRODUCT(--(Tehniline!F3:'Tehniline'!F27="Nisu"),Tehniline!CZ3:CZ27,Tehniline!I3:I27))/Tehniline!DA31 -> 0.3632318283
A38: FALSE | B38: FALSE | C38: 1
A39: TRUE | B39: FALSE | C39: 0.5
A40: TRUE | B40: FALSE
A41: FALSE | B41: FALSE
A42: FALSE | B42: FALSE | C42: 5
A43: FALSE | B43: FALSE
A44: FALSE | B44: FALSE
B45: FALSE | C45: 15
B46: FALSE | C46: 0.5
B47: FALSE | C47: 0
B48: FALSE
B49: TRUE
B50: FALSE | C50: 0.2
B51: FALSE
C53: 0.2
C54: 0.25
C57: 0
C58: 0

Sheet 0…30 lüpsipäev
H1: Ratsioonis
B2: Söödad | C2: Kogus, kg | D2: Hind, €/kg | E2: Maksumus, € | H2: KA, kg | I2: TP, g | J2: T+S, g | K2: MP, g | L2: VPB, g | M2: ME, MJ | N2: TR, g | O2: TK, g | P2: Ca, g | Q2: P, g | R2: Na, g | S2: K, g | T2: Mg, g | U2: KAB, mekv | V2: Hind
B3: Põldheinasilo (50% ristikut) LL 103-12-40 | C3: 19.7642895 | D3: 0.03 | E3: 0.592928685 | G3: 19.7642895 | H3: 6.917501325 | I3: 933.8626789 | J3: 207.5250398 | K3: 546.4826047 | L3: 0 | M3: 67.79151299 | N3: 6.917501325 | O3: 1936.900371 | P3: 68.48326312 | Q3: 17.98550345 | R3: 13.83500265 | S3: 20.75250398 | T3: 27.6700053 | U3: 34.58750663 | V3: 0.592928685
B4: Timutisilo LL 200-12-40 | C4: 14.17962113 | D4: 0.03 | E4: 0.425388634 | G4: 14.17962113 | H4: 4.962867397 | I4: 570.7297506 | J4: 148.8860219 | K4: 377.1779222 | L4: -74.44301095 | M4: 50.12496071 | N4: 4.962867397 | O4: 1434.268678 | P4: 25.80691046 | Q4: 13.39974197 | R4: 9.925734794 | S4: 14.88860219 | T4: 19.85146959 | U4: 24.81433698 | V4: 0.425388634
B5: V auk - rohusilo | C5: 0 | D5: 0.03 | E5: 0 | G5: 0 | H5: 0 | I5: 0 | J5: 0 | K5: 0 | L5: 0 | M5: 0 | N5: 0 | O5: 0 | P5: 0 | Q5: 0 | R5: 0 | S5: 0 | T5: 0 | U5: 0 | V5: 0
B6: Maisisilo PK 260-12-70 | C6: 0 | D6: 0.03 | E6: 0 | G6: 0 | H6: 0 | I6: 0 | J6: 0 | K6: 0 | L6: 0 | M6: 0 | N6: 0 | O6: 0 | P6: 0 | Q6: 0 | R6: 0 | S6: 0 | T6: 0 | U6: 0 | V6: 0
B7: VII auk - maisisilo | C7: 8.485977659 | D7: 0.03 | E7: 0.2545793298 | G7: 8.485977659 | H7: 1.951774862 | I7: 177.6115124 | J7: 390.3549723 | K7: 154.1902141 | L7: -83.92631905 | M7: 21.46952348 | N7: 1.951774862 | O7: 435.2457941 | P7: 7.61192196 | Q7: 4.098727209 | R7: 3.903549723 | S7: 5.855324585 | T7: 7.807099446 | U7: 9.758874308 | V7: 0.2545793298
B8: Hein kõrreliste kultuurrohumaa 030-15-60 | C8: 0 | D8: 0.078 | E8: 0 | G8: 0 | H8: 0 | I8: 0 | J8: 0 | K8: 0 | L8: 0 | M8: 0 | N8: 0 | O8: 0 | P8: 0 | Q8: 0 | R8: 0 | S8: 0 | T8: 0 | U8: 0 | V8: 0
B9: Põldhein (50% ristikut) LL 103-15-40 | C9: 1 | D9: 0.078 | E9: 0.078 | G9: 1 | H9: 0.83 | I9: 102.09 | J9: 0 | K9: 67.23 | L9: -14.11 | M9: 7.719 | N9: 0.83 | O9: 260.62 | P9: 7.636 | Q9: 1.992 | R9: 1.66 | S9: 2.49 | T9: 3.32 | U9: 4.15 | V9: 0.078
B10: Odrapõhk 255-16-0 | C10: 0.5 | D10: 0.015 | E10: 0.0075 | G10: 0.5 | H10: 0.415 | I10: 19.505 | J10: 0 | K10: 23.24 | L10: -19.92 | M10: 2.8635 | N10: 0.415 | O10: 174.3 | P10: 1.6185 | Q10: 0.415 | R10: 0.83 | S10: 1.245 | T10: 1.66 | U10: 2.075 | V10: 0.0075
B11: Rapsikook 350-28 | C11: 2.964784031 | D11: 0.27 | E11: 0.8004916884 | G11: 2.964784031 | H11: 2.668305628 | I11: 912.5605248 | J11: 320.1966754 | K11: 429.5972061 | L11: 370.8944823 | M11: 35.75529542 | N11: 2.668305628 | O11: 328.2015922 | P11: 22.14693671 | Q11: 28.01720909 | R11: 5.336611256 | S11: 8.004916884 | T11: 10.67322251 | U11: 13.34152814 | V11: 0.8004916884
B12: Sojašrott 310-29 | C12: 0 | D12: 0.46 | E12: 0 | G12: 0 | H12: 0 | I12: 0 | J12: 0 | K12: 0 | L12: 0 | M12: 0 | N12: 0 | O12: 0 | P12: 0 | Q12: 0 | R12: 0 | S12: 0 | T12: 0 | U12: 0 | V12: 0
B13: Oder 255-20/21 | C13: 4.75946316e-17 | D13: 0.159 | E13: 7.567546425e-18 | G13: 4.75946316e-17 | H13: 4.093138318e-17 | I13: 5.116422897e-15 | J13: 2.455882991e-14 | K13: 4.215932467e-15 | L13: -1.80098086e-15 | M13: 5.321079813e-16 | N13: 4.093138318e-17 | O13: 2.455882991e-15 | P13: 3.274510654e-17 | Q13: 1.67818671e-16 | R13: 8.186276636e-17 | S13: 1.227941495e-16 | T13: 1.637255327e-16 | U13: 2.046569159e-16 | V13: 7.567546425e-18
B14: Mais 260-20/21 | C14: 0.06159945607 | D14: 0.2 | E14: 0.01231989121 | G14: 0.06159945607 | H14: 0.05297553222 | I14: 5.032675561 | J14: 37.08287256 | K14: 6.410039399 | L14: -5.297553222 | M14: 0.7522525576 | N14: 0.05297553222 | O14: 1.536290434 | P14: 0.02119021289 | Q14: 0.1642241499 | R14: 0.1059510644 | S14: 0.1589265967 | T14: 0.2119021289 | U14: 0.2648776611 | V14: 0.01231989121
B15: Nisukliid 265-24 | C15: 0.983524472 | D15: 0.15 | E15: 0.1475286708 | G15: 0.983524472 | H15: 0.8458310459 | I15: 141.2537847 | J15: 507.4986276 | K15: 77.81645623 | L15: 15.22495883 | M15: 9.473307714 | N15: 0.8458310459 | O15: 82.04561146 | P15: 1.184163464 | Q15: 9.304141505 | R15: 1.691662092 | S15: 2.537493138 | T15: 3.383324184 | U15: 4.22915523 | V15: 0.1475286708
B16: Nisu 265-20/21 | C16: 0 | D16: 0.177 | E16: 0 | G16: 0 | H16: 0 | I16: 0 | J16: 0 | K16: 0 | L16: 0 | M16: 0 | N16: 0 | O16: 0 | P16: 0 | Q16: 0 | R16: 0 | S16: 0 | T16: 0 | U16: 0 | V16: 0
B17: Mineraal1 | C17: 0 | D17: 0.05 | E17: 0 | G17: 0 | H17: 0 | I17: 0 | J17: 0 | K17: 0 | L17: 0 | M17: 0 | N17: 0 | O17: 0 | P17: 0 | Q17: 0 | R17: 0 | S17: 0 | T17: 0 | U17: 0 | V17: 0
B18: Mineraal2 | C18: 0.2 | D18: 0.05 | E18: 0.01 | G18: 0.2 | H18: 0.198 | I18: 0 | J18: 0 | K18: 0 | L18: 0 | M18: 0 | N18: 0.198 | O18: 0 | P18: 29.7 | Q18: 14.85 | R18: 0.396 | S18: 0.594 | T18: 0.792 | U18: 0.99 | V18: 0.01
B19: Lubjakivi | C19: 0 | D19: 0.01 | E19: 0 | G19: 0 | H19: 0 | I19: 0 | J19: 0 | K19: 0 | L19: 0 | M19: 0 | N19: 0 | O19: 0 | P19: 0 | Q19: 0 | R19: 0 | S19: 0 | T19: 0 | U19: 0 | V19: 0
B20: Mineraal 3 | C20: 0 | D20: 0.72 | E20: 0 | G20: 0 | H20: 0 | I20: 0 | J20: 0 | K20: 0 | L20: 0 | M20: 0 | N20: 0 | O20: 0 | P20: 0 | Q20: 0 | R20: 0 | S20: 0 | T20: 0 | U20: 0 | V20: 0
B21: Sooda | C21: 0 | D21: 0.343 | E21: 0 | G21: 0 | H21: 0 | I21: 0 | J21: 0 | K21: 0 | L21: 0 | M21: 0 | N21: 0 | O21: 0 | P21: 0 | Q21: 0 | R21: 0 | S21: 0 | T21: 0 | U21: 0 | V21: 0
B22: Karbamiid | C22: 0 | D22: 0.295 | E22: 0 | G22: 0 | H22: 0 | I22: 0 | J22: 0 | K22: 0 | L22: 0 | M22: 0 | N22: 0 | O22: 0 | P22: 0 | Q22: 0 | R22: 0 | S22: 0 | T22: 0 | U22: 0 | V22: 0
B23: Mineraal 4 | C23: 0 | D23: 1.315 | E23: 0 | G23: 0 | H23: 0 | I23: 0 | J23: 0 | K23: 0 | L23: 0 | M23: 0 | N23: 0 | O23: 0 | P23: 0 | Q23: 0 | R23: 0 | S23: 0 | T23: 0 | U23: 0 | V23: 0
B24: Kaitstud rasv | C24: 0 | D24: 1.13 | E24: 0 | G24: 0 | H24: 0 | I24: 0 | J24: 0 | K24: 0 | L24: 0 | M24: 0 | N24: 0 | O24: 0 | P24: 0 | Q24: 0 | R24: 0 | S24: 0 | T24: 0 | U24: 0 | V24: 0
H25: 0 | I25: 0 | J25: 0 | K25: 0 | L25: 0 | M25: 0 | N25: 0 | O25: 0 | P25: 0 | Q25: 0 | R25: 0 | S25: 0 | T25: 0 | U25: 0 | V25: 0
B26: Kontrollnäitajad
B28: Ratsiooni maksumus, €/päev | C28: 2.328736899 | G28: Kokku: | H28: 18.84225579 | I28: 2862.645927 | J28: 1611.544209 | K28: 1682.144443 | L28: 188.4225579 | M28: 195.9493529 | N28: 18.84225579 | O28: 4653.118337 | P28: 164.2088859 | Q28: 90.22654738 | R28: 37.68451158 | S28: 56.52676737 | T28: 75.36902316 | U28: 94.21127895 | V28: 2.328736899
B29: Ratsiooni kogus, kg/päev | C29: 48.13979625 | G29: 1kg/KA's | I29: 151.9269221 | J29: 85.52819935 | K29: 89.27510917 | L29: 10 | M29: 10.39946358 | N29: 1 | O29: 246.951235 | P29: 8.714927117 | Q29: 4.788521522 | R29: 2 | S29: 3 | T29: 4 | U29: 5
H30: TP/ME suhe: | J30: 14.60911141 | K30: MP/ME suhe: | M30: 8.584587895 | O30: Ca:P suhe: | Q30: 1.819961981
B31: Kuivaine kogus, kg | C31: 18.84225579 | I31: TF tarbenormid: | J31: 0.02898808583 | N31: kg lehmale, kes lüpsab | O31: 34 | P31: kg EKM piima
B32: Kuivaine osatähtsus ratsiooni kogumassist, % | C32: 0.3914070531 | O32: ja kelle kehamassi muutus on | P32: 0.7 | Q32: kg
B33: Jõusööda osakaal ratsiooni kuivainest, % | C33: 0.1893144985 | I33: TARVE: | K33: 1693.328322 | M33: 226.3132297 | P33: 102.0014494 | Q33: 68.0014494
B34: Silo osatähtsus kuivainest, % | C34: 0.7341023144 | I34: VAHE: | K34: -11.18387947 | M34: -30.36387679 | P34: 62.20743653 | Q34: 22.22509797
B35: Maisisilo osatähtsus kogu silokoguse kuivainest, % | C35: 0.1411042945 | K35: 177.2386784
B36: Nisu osatähtsus teravilja ja jahude kogusest, % | C36: 0.9410601418 | L36: Ei tohi olla negatiivne ega üle +300
B38: Metaboliseeruv energia, MJ | C38: 195.9493529 | J38: Piima karbamiid, mg/l | K38: 280.8683772 | L38: (PBV järgi)
B39: Metaboliseeruv energia, MJ/kg KA | C39: 10.39946358 | J39: Piima karbamiid, mg/l | K39: 274.5869654 | L39: (TP/ME suhte järgi)
B40: (Toor)proteiin, g KA | C40: 151.9269221 | J40: Ratsioon kuivaine(kg) | K40: 9.010855993
B41: Toorproteiini ja metaboliseeruva energia suhe | C41: 14.60911141 | J41: Ratsioon kuivaine(%) | K41: 0.4782259669
B42: Metaboliseeruv proteiin, g/kg KA | C42: 89.27510917
B43: Metaboliseeruva proteiini ja metaboliseeruva energia suhe | C43: 8.584587895
B44: VPB, g | C44: 10
B45: Ca:P suhe | C45: 1.819961981
B47: Tärklis ja suhkur ratsiooni kuivaines, g/kg | C47: 85.52819935
B48: Toorkiud, g/kg KA | C48: 246.951235
B49: ADF, g/kg KA | C49: 326.4491196
B50: NDF, g/kg KA | C50: 484.1358024

Sheet Laktatsiooni I pool
H1: Ratsioonis
B2: Söödad | C2: Kogus, kg | D2: Hind, €/kg | E2: Maksumus, € | H2: KA, kg | I2: TP, g | J2: T+S, g | K2: MP, g | L2: VPB, g | M2: ME, MJ | N2: TR, g | O2: TK, g | P2: Ca, g | Q2: P, g | R2: Na, g | S2: K, g | T2: Mg, g | U2: KAB, mekv | V2: Hind
B3: Põldheinasilo (50% ristikut) LL 103-12-40 | C3: 34.23953019 | D3: 0.03 | E3: 1.027185906 | G3: 23.8 | H3: 8.33 | I3: 1124.55 | J3: 208.25 | K3: 658.07 | L3: 0 | M3: 81.634 | N3: 8.33 | O3: 2332.4 | P3: 82.467 | Q3: 21.658 | R3: 16.66 | S3: 24.99 | T3: 33.32 | U3: 41.65 | V3: 0.714
B4: V auk - rohusilo | C4: 0 | D4: 0.03 | E4: 0 | G4: 0 | H4: 0 | I4: 0 | J4: 0 | K4: 0 | L4: 0 | M4: 0 | N4: 0 | O4: 0 | P4: 0 | Q4: 0 | R4: 0 | S4: 0 | T4: 0 | U4: 0 | V4: 0
B5: VII auk - maisisilo | C5: 8.559882548 | D5: 0.03 | E5: 0.2567964764 | G5: 8.559882548 | H5: 1.968772986 | I5: 179.1583417 | J5: 590.6318958 | K5: 155.5330659 | L5: -84.6572384 | M5: 21.65650285 | N5: 1.968772986 | O5: 439.0363759 | P5: 7.678214645 | Q5: 4.13442327 | R5: 3.937545972 | S5: 5.906318958 | T5: 7.875091944 | U5: 9.84386493 | V5: 0.2567964764
B6: Hein kõrreliste kultuurrohumaa 030-15-60 | C6: 1 | D6: 0.078 | E6: 0.078 | G6: 1 | H6: 0.83 | I6: 66.4 | J6: 0 | K6: 57.27 | L6: -32.37 | M6: 6.972 | N6: 0.83 | O6: 278.05 | P6: 4.399 | Q6: 1.909 | R6: 1.66 | S6: 2.49 | T6: 3.32 | U6: 4.15 | V6: 0.078
B7: Põldhein (50% ristikut) LL 103-15-40 | C7: 0 | D7: 0.078 | E7: 0 | G7: 0 | H7: 0 | I7: 0 | J7: 0 | K7: 0 | L7: 0 | M7: 0 | N7: 0 | O7: 0 | P7: 0 | Q7: 0 | R7: 0 | S7: 0 | T7: 0 | U7: 0 | V7: 0
B8: Odrapõhk 255-16-0 | C8: 0.5 | D8: 0.015 | E8: 0.0075 | G8: 0.5 | H8: 0.415 | I8: 19.505 | J8: 0 | K8: 23.24 | L8: -19.92 | M8: 2.8635 | N8: 0.415 | O8: 174.3 | P8: 1.6185 | Q8: 0.415 | R8: 0.83 | S8: 1.245 | T8: 1.66 | U8: 2.075 | V8: 0.0075
B9: Rapsikook 350-28 | C9: 4 | D9: 0.27 | E9: 1.08 | G9: 4.3 | H9: 3.87 | I9: 1323.54 | J9: 464.4 | K9: 623.07 | L9: 537.93 | M9: 51.858 | N9: 3.87 | O9: 476.01 | P9: 32.121 | Q9: 40.635 | R9: 7.74 | S9: 11.61 | T9: 15.48 | U9: 19.35 | V9: 1.161
B10: Sojašrott 310-29 | C10: 0 | D10: 0.46 | E10: 0 | G10: 0 | H10: 0 | I10: 0 | J10: 0 | K10: 0 | L10: 0 | M10: 0 | N10: 0 | O10: 0 | P10: 0 | Q10: 0 | R10: 0 | S10: 0 | T10: 0 | U10: 0 | V10: 0
B11: Oder 255-20/21 | C11: 2.582242267 | D11: 0.159 | E11: 0.4105765205 | G11: 3.5 | H11: 3.01 | I11: 376.25 | J11: 1806 | K11: 310.03 | L11: -132.44 | M11: 39.13 | N11: 3.01 | O11: 180.6 | P11: 2.408 | Q11: 12.341 | R11: 6.02 | S11: 9.03 | T11: 12.04 | U11: 15.05 | V11: 0.5565
B12: Mais 260-20/21 | C12: -4.440892099e-16 | D12: 0.2 | E12: -8.881784197e-17 | G12: 2 | H12: 1.72 | I12: 163.4 | J12: 1204 | K12: 208.12 | L12: -172 | M12: 24.424 | N12: 1.72 | O12: 49.88 | P12: 0.688 | Q12: 5.332 | R12: 3.44 | S12: 5.16 | T12: 6.88 | U12: 8.6 | V12: 0.4
B13: Nisu 265-20/21 | C13: 2.582242267 | D13: 0.177 | E13: 0.4570568813 | G13: 3.5 | H13: 3.01 | I13: 439.46 | J13: 1956.5 | K13: 319.06 | L13: -84.28 | M13: 41.538 | N13: 3.01 | O13: 75.25 | P13: 1.806 | Q13: 11.438 | R13: 6.02 | S13: 9.03 | T13: 12.04 | U13: 15.05 | V13: 0.6195
B14: Mineraal1 | C14: 0 | D14: 0.05 | E14: 0 | G14: 0 | H14: 0 | I14: 0 | J14: 0 | K14: 0 | L14: 0 | M14: 0 | N14: 0 | O14: 0 | P14: 0 | Q14: 0 | R14: 0 | S14: 0 | T14: 0 | U14: 0 | V14: 0
B15: Mineraal2 | C15: 0.25 | D15: 0.05 | E15: 0.0125 | G15: 0.25 | H15: 0.2475 | I15: 0 | J15: 0 | K15: 0 | L15: 0 | M15: 0 | N15: 0.2475 | O15: 0 | P15: 37.125 | Q15: 18.5625 | R15: 0.495 | S15: 0.7425 | T15: 0.99 | U15: 1.2375 | V15: 0.0125
B16: Lubjakivi | C16: 0 | D16: 0.01 | E16: 0 | G16: 0.1 | H16: 0.099 | I16: 0 | J16: 0 | K16: 0 | L16: 0 | M16: 0 | N16: 0.099 | O16: 0 | P16: 35.64 | Q16: 0 | R16: 0.198 | S16: 0.297 | T16: 0.396 | U16: 0.495 | V16: 0.001
B17: Mineraal 3 | C17: 0.01357045201 | D17: 0.72 | E17: 0.00977072545 | G17: 0.01357045201 | H17: 0.01343474749 | I17: 0 | J17: 0 | K17: 0 | L17: 0 | M17: 0 | N17: 0.01343474749 | O17: 0 | P17: 2.351080811 | Q17: 1.007606062 | R17: 0.02686949499 | S17: 0.04030424248 | T17: 0.05373898997 | U17: 0.06717373747 | V17: 0.00977072545
B18: Sooda | C18: 0 | D18: 0.343 | E18: 0 | G18: 0 | H18: 0 | I18: 0 | J18: 0 | K18: 0 | L18: 0 | M18: 0 | N18: 0 | O18: 0 | P18: 0 | Q18: 0 | R18: 0 | S18: 0 | T18: 0 | U18: 0 | V18: 0
B19: Karbamiid | C19: 0 | D19: 0.295 | E19: 0 | G19: 0 | H19: 0 | I19: 0 | J19: 0 | K19: 0 | L19: 0 | M19: 0 | N19: 0 | O19: 0 | P19: 0 | Q19: 0 | R19: 0 | S19: 0 | T19: 0 | U19: 0 | V19: 0
B20: Mineraal 4 | C20: 0 | D20: 1.315 | E20: 0 | G20: 0 | H20: 0 | I20: 0 | J20: 0 | K20: 0 | L20: 0 | M20: 0 | N20: 0 | O20: 0 | P20: 0 | Q20: 0 | R20: 0 | S20: 0 | T20: 0 | U20: 0 | V20: 0
B21: Kaitstud rasv | C21: 0 | D21: 1.13 | E21: 0 | G21: 0 | H21: 0 | I21: 0 | J21: 0 | K21: 0 | L21: 0 | M21: 0 | N21: 0 | O21: 0 | P21: 0 | Q21: 0 | R21: 0 | S21: 0 | T21: 0 | U21: 0 | V21: 0
C22: 0 | E22: 0 | G22: 0 | H22: 0 | I22: 0 | J22: 0 | K22: 0 | L22: 0 | M22: 0 | N22: 0 | O22: 0 | P22: 0 | Q22: 0 | R22: 0 | S22: 0 | T22: 0 | U22: 0 | V22: 0
C23: 0 | E23: 0 | G23: 0 | H23: 0 | I23: 0 | J23: 0 | K23: 0 | L23: 0 | M23: 0 | N23: 0 | O23: 0 | P23: 0 | Q23: 0 | R23: 0 | S23: 0 | T23: 0 | U23: 0 | V23: 0
C24: 0 | E24: 0 | G24: 0 | H24: 0 | I24: 0 | J24: 0 | K24: 0 | L24: 0 | M24: 0 | N24: 0 | O24: 0 | P24: 0 | Q24: 0 | R24: 0 | S24: 0 | T24: 0 | U24: 0 | V24: 0
H25: 0 | I25: 0 | J25: 0 | K25: 0 | L25: 0 | M25: 0 | N25: 0 | O25: 0 | P25: 0 | Q25: 0 | R25: 0 | S25: 0 | T25: 0 | U25: 0 | V25: 0
B26: Kontrollnäitajad
B28: Ratsiooni maksumus, €/päev | C28: 3.339386509 | G28: Kokku: | H28: 23.51370773 | I28: 3692.263342 | J28: 6229.781896 | K28: 2354.393066 | L28: 12.2627616 | M28: 270.0760028 | N28: 23.51370773 | O28: 4005.526376 | P28: 208.3017955 | Q28: 117.4325293 | R28: 47.02741547 | S28: 70.5411232 | T28: 94.05483093 | U28: 117.5685387 | V28: 3.816567202
B29: Ratsiooni kogus, kg/päev | C29: 53.72746772 | G29: 1kg/KA's | I29: 157.0259945 | J29: 264.9425589 | K29: 100.1285332 | L29: 0.5215154387 | M29: 11.48589605 | N29: 1 | O29: 170.3485652 | P29: 8.858738818 | Q29: 4.994215743 | R29: 2 | S29: 3 | T29: 4 | U29: 5
H30: TP/ME suhe: | J30: 13.67120108 | K30: MP/ME suhe: | M30: 8.717520406 | O30: Ca:P suhe: | Q30: 1.773799786
B31: Kuivaine kogus, kg | C31: 23.5 | I31: TF tarbenormid: | J31: 650 | N31: kg lehmale, kes lüpsab | O31: 38 | P31: kg EKM piima
B32: Kuivaine osatähtsus ratsiooni kogumassist, % | C32: 0.4373926596 | O32: ja kelle kehamassi muutus on | P32: 0 | Q32: kg
B33: Jõusööda osakaal ratsiooni kuivainest, % | C33: 0.3421896468 | I33: TARVE: | K33: 2128.377556 | M33: 267.6100258 | P33: 146.5 | Q33: 108.5
B34: Silo osatähtsus kuivainest, % | C34: 0.5937280235 | I34: VAHE: | K34: 226.01551 | M34: 2.465977025 | P34: 61.80179546 | Q34: 8.932529332
B35: Maisisilo osatähtsus kogu silokoguse kuivainest, % | C35: 0.1411042945 | K35: 238.2782716
B36: Nisu osatähtsus teravilja ja jahude kogusest, % | C36: 0.5 | L36: Ei tohi olla negatiivne ega üle +300
B38: Metaboliseeruv energia, MJ | C38: 256.6891112 | J38: Piima karbamiid, mg/l | K38: 261.3674877 | L38: (PBV järgi)
B39: Metaboliseeruv energia, MJ/kg KA | C39: 10.9229409 | J39: Piima karbamiid, mg/l | K39: 258.285146 | L39: (TP/ME suhte järgi)
B40: (Toor)proteiin, g KA | C40: 158.1233415 | J40: Ratsioon kuivaine(kg) | K40: 14.89740319
B41: Toorproteiini ja metaboliseeruva energia suhe | C41: 14.47626083 | J41: Ratsioon kuivaine(%) | K41: 0.6335624886
B42: Metaboliseeruv proteiin, g/kg KA | C42: 94.74460854
B43: Metaboliseeruva proteiini ja metaboliseeruva energia suhe | C43: 8.673910204
B44: VPB, g | C44: 8.662141294
B45: Ca:P suhe | C45: 1.819961981
B47: Tärklis ja suhkur ratsiooni kuivaines, g/kg | C47: 174.3888605
B48: Toorkiud, g/kg KA | C48: 207.5924359
B49: ADF, g/kg KA | C49: 277.1052559
B50: NDF, g/kg KA | C50: 413.5379101

Sheet Laktatsiooni II pool
H1: Ratsioonis
B2: Söödad | C2: Kogus, kg | D2: Hind, €/kg | E2: Maksumus, € | H2: KA, kg | I2: TP, g | J2: T+S, g | K2: MP, g | L2: VPB, g | M2: ME, MJ | N2: TR, g | O2: TK, g | P2: Ca, g | Q2: P, g | R2: Na, g | S2: K, g | T2: Mg, g | U2: KAB, mekv | V2: Hind
B3: Põldheinasilo (50% ristikut) LL 103-12-40 | C3: 3.913437759 | D3: 0.03 | E3: 0.1174031328 | G3: 3.913437759 | H3: 1.369703216 | I3: 184.9099341 | J3: 41.09109647 | K3: 108.206554 | L3: 0 | M3: 13.42309151 | N3: 1.369703216 | O3: 383.5169004 | P3: 13.56006184 | Q3: 3.561228361 | R3: 2.739406432 | S3: 4.109109647 | T3: 5.478812863 | U3: 6.848516079 | V3: 0.1174031328
B4: Timutisilo LL 200-12-40 | C4: 28.01327004 | D4: 0.03 | E4: 0.8403981012 | G4: 28.01327004 | H4: 9.804644514 | I4: 1127.534119 | J4: 294.1393354 | K4: 745.1529831 | L4: -147.0696677 | M4: 99.0269096 | N4: 9.804644514 | O4: 2833.542265 | P4: 50.98415147 | Q4: 26.47254019 | R4: 19.60928903 | S4: 29.41393354 | T4: 39.21857806 | U4: 49.02322257 | V4: 0.8403981012
B5: V auk - rohusilo | C5: 0 | D5: 0.03 | E5: 0 | G5: 0 | H5: 0 | I5: 0 | J5: 0 | K5: 0 | L5: 0 | M5: 0 | N5: 0 | O5: 0 | P5: 0 | Q5: 0 | R5: 0 | S5: 0 | T5: 0 | U5: 0 | V5: 0
B6: Maisisilo PK 260-12-70 | C6: 0 | D6: 0.03 | E6: 0 | G6: 0 | H6: 0 | I6: 0 | J6: 0 | K6: 0 | L6: 0 | M6: 0 | N6: 0 | O6: 0 | P6: 0 | Q6: 0 | R6: 0 | S6: 0 | T6: 0 | U6: 0 | V6: 0
B7: VII auk - maisisilo | C7: 0 | D7: 0.03 | E7: 0 | G7: 0 | H7: 0 | I7: 0 | J7: 0 | K7: 0 | L7: 0 | M7: 0 | N7: 0 | O7: 0 | P7: 0 | Q7: 0 | R7: 0 | S7: 0 | T7: 0 | U7: 0 | V7: 0
B8: Hein kõrreliste kultuurrohumaa 030-15-60 | C8: 0 | D8: 0.078 | E8: 0 | G8: 0 | H8: 0 | I8: 0 | J8: 0 | K8: 0 | L8: 0 | M8: 0 | N8: 0 | O8: 0 | P8: 0 | Q8: 0 | R8: 0 | S8: 0 | T8: 0 | U8: 0 | V8: 0
B9: Põldhein (50% ristikut) LL 103-15-40 | C9: 1 | D9: 0.078 | E9: 0.078 | G9: 1 | H9: 0.83 | I9: 102.09 | J9: 0 | K9: 67.23 | L9: -14.11 | M9: 7.719 | N9: 0.83 | O9: 260.62 | P9: 7.636 | Q9: 1.992 | R9: 1.66 | S9: 2.49 | T9: 3.32 | U9: 4.15 | V9: 0.078
B10: Odrapõhk 255-16-0 | C10: 0.5 | D10: 0.015 | E10: 0.0075 | G10: 0.5 | H10: 0.415 | I10: 19.505 | J10: 0 | K10: 23.24 | L10: -19.92 | M10: 2.8635 | N10: 0.415 | O10: 174.3 | P10: 1.6185 | Q10: 0.415 | R10: 0.83 | S10: 1.245 | T10: 1.66 | U10: 2.075 | V10: 0.0075
B11: Rapsikook 350-28 | C11: 3.005082302 | D11: 0.27 | E11: 0.8113722216 | G11: 3.005082302 | H11: 2.704574072 | I11: 924.9643326 | J11: 324.5488886 | K11: 435.4364256 | L11: 375.935796 | M11: 36.24129256 | N11: 2.704574072 | O11: 332.6626109 | P11: 22.4479648 | Q11: 28.39802776 | R11: 5.409148144 | S11: 8.113722216 | T11: 10.81829629 | U11: 13.52287036 | V11: 0.8113722216
B12: Sojašrott 310-29 | C12: 0 | D12: 0.46 | E12: 0 | G12: 0 | H12: 0 | I12: 0 | J12: 0 | K12: 0 | L12: 0 | M12: 0 | N12: 0 | O12: 0 | P12: 0 | Q12: 0 | R12: 0 | S12: 0 | T12: 0 | U12: 0 | V12: 0
B13: Oder 255-20/21 | C13: 0 | D13: 0.159 | E13: 0 | G13: 0 | H13: 0 | I13: 0 | J13: 0 | K13: 0 | L13: 0 | M13: 0 | N13: 0 | O13: 0 | P13: 0 | Q13: 0 | R13: 0 | S13: 0 | T13: 0 | U13: 0 | V13: 0
B14: Mais 260-20/21 | C14: 0.4608552882 | D14: 0.2 | E14: 0.09217105765 | G14: 0.4608552882 | H14: 0.3963355479 | I14: 37.65187705 | J14: 277.4348835 | K14: 47.95660129 | L14: -39.63355479 | M14: 5.62796478 | N14: 0.3963355479 | O14: 11.49373089 | P14: 0.1585342192 | Q14: 1.228640198 | R14: 0.7926710958 | S14: 1.189006644 | T14: 1.585342192 | U14: 1.981677739 | V14: 0.09217105765
B15: Nisukliid 265-24 | C15: 2.220446049e-16 | D15: 0.15 | E15: 3.330669074e-17 | G15: 2.220446049e-16 | H15: 1.909583602e-16 | I15: 3.189004616e-14 | J15: 1.145750161e-13 | K15: 1.756816914e-14 | L15: 3.437250484e-15 | M15: 2.138733635e-15 | N15: 1.909583602e-16 | O15: 1.852296094e-14 | P15: 2.673417043e-16 | Q15: 2.100541963e-15 | R15: 3.819167205e-16 | S15: 5.728750807e-16 | T15: 7.638334409e-16 | U15: 9.547918012e-16 | V15: 3.330669074e-17
B16: Nisu 265-20/21 | C16: 1.110223025e-16 | D16: 0.177 | E16: 1.965094754e-17 | G16: 1.110223025e-16 | H16: 9.547918012e-17 | I16: 1.39399603e-14 | J16: 6.206146708e-14 | K16: 1.012079309e-14 | L16: -2.673417043e-15 | M16: 1.317612686e-15 | N16: 9.547918012e-17 | O16: 2.386979503e-15 | P16: 5.728750807e-17 | Q16: 3.628208844e-16 | R16: 1.909583602e-16 | S16: 2.864375404e-16 | T16: 3.819167205e-16 | U16: 4.773959006e-16 | V16: 1.965094754e-17
B17: Mineraal1 | C17: 0 | D17: 0.05 | E17: 0 | G17: 0 | H17: 0 | I17: 0 | J17: 0 | K17: 0 | L17: 0 | M17: 0 | N17: 0 | O17: 0 | P17: 0 | Q17: 0 | R17: 0 | S17: 0 | T17: 0 | U17: 0 | V17: 0
B18: Mineraal2 | C18: 0 | D18: 0.05 | E18: 0 | G18: 0 | H18: 0 | I18: 0 | J18: 0 | K18: 0 | L18: 0 | M18: 0 | N18: 0 | O18: 0 | P18: 0 | Q18: 0 | R18: 0 | S18: 0 | T18: 0 | U18: 0 | V18: 0
B19: Lubjakivi | C19: 0 | D19: 0.01 | E19: 0 | G19: 0 | H19: 0 | I19: 0 | J19: 0 | K19: 0 | L19: 0 | M19: 0 | N19: 0 | O19: 0 | P19: 0 | Q19: 0 | R19: 0 | S19: 0 | T19: 0 | U19: 0 | V19: 0
B20: Mineraal 3 | C20: 0 | D20: 0.72 | E20: 0 | G20: 0 | H20: 0 | I20: 0 | J20: 0 | K20: 0 | L20: 0 | M20: 0 | N20: 0 | O20: 0 | P20: 0 | Q20: 0 | R20: 0 | S20: 0 | T20: 0 | U20: 0 | V20: 0
B21: Sooda | C21: 0 | D21: 0.343 | E21: 0 | G21: 0 | H21: 0 | I21: 0 | J21: 0 | K21: 0 | L21: 0 | M21: 0 | N21: 0 | O21: 0 | P21: 0 | Q21: 0 | R21: 0 | S21: 0 | T21: 0 | U21: 0 | V21: 0
B22: Karbamiid | C22: 0 | D22: 0.295 | E22: 0 | G22: 0 | H22: 0 | I22: 0 | J22: 0 | K22: 0 | L22: 0 | M22: 0 | N22: 0 | O22: 0 | P22: 0 | Q22: 0 | R22: 0 | S22: 0 | T22: 0 | U22: 0 | V22: 0
B23: Mineraal 4 | C23: 0 | D23: 1.315 | E23: 0 | G23: 0 | H23: 0 | I23: 0 | J23: 0 | K23: 0 | L23: 0 | M23: 0 | N23: 0 | O23: 0 | P23: 0 | Q23: 0 | R23: 0 | S23: 0 | T23: 0 | U23: 0 | V23: 0
B24: Kaitstud rasv | C24: 0 | D24: 1.13 | E24: 0 | G24: 0 | H24: 0 | I24: 0 | J24: 0 | K24: 0 | L24: 0 | M24: 0 | N24: 0 | O24: 0 | P24: 0 | Q24: 0 | R24: 0 | S24: 0 | T24: 0 | U24: 0 | V24: 0
H25: 0 | I25: 0 | J25: 0 | K25: 0 | L25: 0 | M25: 0 | N25: 0 | O25: 0 | P25: 0 | Q25: 0 | R25: 0 | S25: 0 | T25: 0 | U25: 0 | V25: 0
B26: Kontrollnäitajad
B28: Ratsiooni maksumus, €/päev | C28: 1.946844513 | G28: Kokku: | H28: 15.52025735 | I28: 2396.655263 | J28: 937.2142041 | K28: 1427.222564 | L28: 155.2025735 | M28: 164.9017585 | N28: 15.52025735 | O28: 3996.135507 | P28: 96.40521233 | Q28: 62.0674365 | R28: 31.0405147 | S28: 46.56077205 | T28: 62.0810294 | U28: 77.60128675 | V28: 1.946844513
B29: Ratsiooni kogus, kg/päev | C29: 36.89264539 | G29: 1kg/KA's | I29: 154.4211033 | J29: 60.38651183 | K29: 91.95869191 | L29: 10 | M29: 10.62493712 | N29: 1 | O29: 257.4786884 | P29: 6.211573053 | Q29: 3.999124184 | R29: 2 | S29: 3 | T29: 4 | U29: 5
H30: TP/ME suhe: | J30: 14.53383691 | K30: MP/ME suhe: | M30: 8.654986929 | O30: Ca:P suhe: | Q30: 1.55323335
B31: Kuivaine kogus, kg | C31: 15.52025735 | I31: TF tarbenormid: | J31: 0.02821864973 | N31: kg lehmale, kes lüpsab | O31: 20 | P31: kg EKM piima
B32: Kuivaine osatähtsus ratsiooni kogumassist, % | C32: 0.4206870281 | O32: ja kelle kehamassi muutus on | P32: 0.7 | Q32: kg
B33: Jõusööda osakaal ratsiooni kuivainest, % | C33: 0.1997975646 | I33: TARVE: | K33: 1063.323762 | M33: 149.0325659 | P33: 60.00141093 | Q33: 40.00141093
B34: Silo osatähtsus kuivainest, % | C34: 0.7199846934 | I34: VAHE: | K34: 363.8988024 | M34: 15.86919254 | P34: 36.40380139 | Q34: 22.06602557
B35: Maisisilo osatähtsus kogu silokoguse kuivainest, % | C35: 0 | K35: 519.1013759
B36: Nisu osatähtsus teravilja ja jahude kogusest, % | C36: 7.227147347e-16 | L36: Ei tohi olla negatiivne ega üle +300
B38: Metaboliseeruv energia, MJ | C38: 164.9017585 | J38: Piima karbamiid, mg/l | K38: 277.1909249 | L38: (PBV järgi)
B39: Metaboliseeruv energia, MJ/kg KA | C39: 10.62493712 | J39: Piima karbamiid, mg/l | K39: 273.2786193 | L39: (TP/ME suhte järgi)
B40: (Toor)proteiin, g KA | C40: 154.4211033 | J40: Ratsioon kuivaine(kg) | K40: 7.719336942
B41: Toorproteiini ja metaboliseeruva energia suhe | C41: 14.53383691 | J41: Ratsioon kuivaine(%) | K41: 0.4973717102
B42: Metaboliseeruv proteiin, g/kg KA | C42: 91.95869191
B43: Metaboliseeruva proteiini ja metaboliseeruva energia suhe | C43: 8.654986929
B44: VPB, g | C44: 10
B45: Ca:P suhe | C45: 1.55323335
B47: Tärklis ja suhkur ratsiooni kuivaines, g/kg | C47: 60.38651183
B48: Toorkiud, g/kg KA | C48: 257.4786884
B49: ADF, g/kg KA | C49: 343.1631378
B50: NDF, g/kg KA | C50: 517.3084606

Sheet Kinnisperiood
H1: Ratsioonis
B2: Söödad | C2: Kogus, kg | D2: Hind, €/kg | E2: Maksumus, € | H2: KA, kg | I2: TP, g | J2: T+S, g | K2: MP, g | L2: VPB, g | M2: ME, MJ | N2: TR, g | O2: TK, g | P2: Ca, g | Q2: P, g | R2: Na, g | S2: K, g | T2: Mg, g | U2: KAB, mekv | V2: Hind
B3: Põldheinasilo (50% ristikut) LL 103-12-40 | C3: 0 | D3: 0.03 | E3: 0 | G3: 0 | H3: 0 | I3: 0 | J3: 0 | K3: 0 | L3: 0 | M3: 0 | N3: 0 | O3: 0 | P3: 0 | Q3: 0 | R3: 0 | S3: 0 | T3: 0 | U3: 0 | V3: 0
B4: Timutisilo LL 200-12-40 | C4: 26.33371727 | D4: 0.03 | E4: 0.7900115181 | G4: 26.33371727 | H4: 9.216801044 | I4: 1059.93212 | J4: 276.5040313 | K4: 700.4768794 | L4: -138.2520157 | M4: 93.08969055 | N4: 9.216801044 | O4: 2663.655502 | P4: 47.92736543 | Q4: 24.88536282 | R4: 18.43360209 | S4: 27.65040313 | T4: 36.86720418 | U4: 46.08400522 | V4: 0.7900115181
B5: V auk - rohusilo | C5: 5.502512065e-15 | D5: 0.03 | E5: 1.650753619e-16 | G5: 5.502512065e-15 | H5: 1.392135552e-15 | I5: 1.33645013e-13 | J5: 4.176406657e-14 | K5: 1.002337598e-13 | L5: 3.758765992e-14 | M5: 1.225079286e-14 | N5: 1.392135552e-15 | O5: 4.343462924e-13 | P5: 1.517427752e-14 | Q5: 4.733260878e-15 | R5: 2.784271105e-15 | S5: 4.176406657e-15 | T5: 5.56854221e-15 | U5: 6.960677762e-15 | V5: 1.650753619e-16
B6: Maisisilo PK 260-12-70 | C6: 0 | D6: 0.03 | E6: 0 | G6: 0 | H6: 0 | I6: 0 | J6: 0 | K6: 0 | L6: 0 | M6: 0 | N6: 0 | O6: 0 | P6: 0 | Q6: 0 | R6: 0 | S6: 0 | T6: 0 | U6: 0 | V6: 0
B7: VII auk - maisisilo | C7: 0 | D7: 0.03 | E7: 0 | G7: 0 | H7: 0 | I7: 0 | J7: 0 | K7: 0 | L7: 0 | M7: 0 | N7: 0 | O7: 0 | P7: 0 | Q7: 0 | R7: 0 | S7: 0 | T7: 0 | U7: 0 | V7: 0
B8: Hein kõrreliste kultuurrohumaa 030-15-60 | C8: 0 | D8: 0.078 | E8: 0 | G8: 0 | H8: 0 | I8: 0 | J8: 0 | K8: 0 | L8: 0 | M8: 0 | N8: 0 | O8: 0 | P8: 0 | Q8: 0 | R8: 0 | S8: 0 | T8: 0 | U8: 0 | V8: 0
B9: Põldhein (50% ristikut) LL 103-15-40 | C9: 0 | D9: 0.078 | E9: 0 | G9: 0 | H9: 0 | I9: 0 | J9: 0 | K9: 0 | L9: 0 | M9: 0 | N9: 0 | O9: 0 | P9: 0 | Q9: 0 | R9: 0 | S9: 0 | T9: 0 | U9: 0 | V9: 0
B10: Odrapõhk 255-16-0 | C10: 0.5 | D10: 0.015 | E10: 0.0075 | G10: 0.5 | H10: 0.415 | I10: 19.505 | J10: 0 | K10: 23.24 | L10: -19.92 | M10: 2.8635 | N10: 0.415 | O10: 174.3 | P10: 1.6185 | Q10: 0.415 | R10: 0.83 | S10: 1.245 | T10: 1.66 | U10: 2.075 | V10: 0.0075
B11: Rapsikook 350-28 | C11: 0 | D11: 0.27 | E11: 0 | G11: 0 | H11: 0 | I11: 0 | J11: 0 | K11: 0 | L11: 0 | M11: 0 | N11: 0 | O11: 0 | P11: 0 | Q11: 0 | R11: 0 | S11: 0 | T11: 0 | U11: 0 | V11: 0
B12: Sojašrott 310-29 | C12: 0 | D12: 0.46 | E12: 0 | G12: 0 | H12: 0 | I12: 0 | J12: 0 | K12: 0 | L12: 0 | M12: 0 | N12: 0 | O12: 0 | P12: 0 | Q12: 0 | R12: 0 | S12: 0 | T12: 0 | U12: 0 | V12: 0
B13: Oder 255-20/21 | C13: 8.35988853e-17 | D13: 0.159 | E13: 1.329222276e-17 | G13: 8.35988853e-17 | H13: 7.189504136e-17 | I13: 8.98688017e-15 | J13: 4.313702481e-14 | K13: 7.40518926e-15 | L13: -3.16338182e-15 | M13: 9.346355376e-16 | N13: 7.189504136e-17 | O13: 4.313702481e-15 | P13: 5.751603309e-17 | Q13: 2.947696696e-16 | R13: 1.437900827e-16 | S13: 2.156851241e-16 | T13: 2.875801654e-16 | U13: 3.594752068e-16 | V13: 1.329222276e-17
B14: Mais 260-20/21 | C14: 0 | D14: 0.2 | E14: 0 | G14: 0 | H14: 0 | I14: 0 | J14: 0 | K14: 0 | L14: 0 | M14: 0 | N14: 0 | O14: 0 | P14: 0 | Q14: 0 | R14: 0 | S14: 0 | T14: 0 | U14: 0 | V14: 0
B15: Nisukliid 265-24 | C15: 0.2198656464 | D15: 0.15 | E15: 0.03297984696 | G15: 0.2198656464 | H15: 0.1890844559 | I15: 31.57710413 | J15: 113.4506735 | K15: 17.39576994 | L15: 3.403520206 | M15: 2.117745906 | N15: 0.1890844559 | O15: 18.34119222 | P15: 0.2647182382 | Q15: 2.079929015 | R15: 0.3781689118 | S15: 0.5672533676 | T15: 0.7563378235 | U15: 0.9454222794 | V15: 0.03297984696
B16: Nisu 265-20/21 | C16: 0 | D16: 0.177 | E16: 0 | G16: 0 | H16: 0 | I16: 0 | J16: 0 | K16: 0 | L16: 0 | M16: 0 | N16: 0 | O16: 0 | P16: 0 | Q16: 0 | R16: 0 | S16: 0 | T16: 0 | U16: 0 | V16: 0
B17: Mineraal1 | C17: 0 | D17: 0.05 | E17: 0 | G17: 0 | H17: 0 | I17: 0 | J17: 0 | K17: 0 | L17: 0 | M17: 0 | N17: 0 | O17: 0 | P17: 0 | Q17: 0 | R17: 0 | S17: 0 | T17: 0 | U17: 0 | V17: 0
B18: Mineraal2 | C18: 0.03124186081 | D18: 0.05 | E18: 0.001562093041 | G18: 0.03124186081 | H18: 0.0309294422 | I18: 0 | J18: 0 | K18: 0 | L18: 0 | M18: 0 | N18: 0.0309294422 | O18: 0 | P18: 4.63941633 | Q18: 2.319708165 | R18: 0.06185888441 | S18: 0.09278832661 | T18: 0.1237177688 | U18: 0.154647211 | V18: 0.001562093041
B19: Lubjakivi | C19: 0 | D19: 0.01 | E19: 0 | G19: 0 | H19: 0 | I19: 0 | J19: 0 | K19: 0 | L19: 0 | M19: 0 | N19: 0 | O19: 0 | P19: 0 | Q19: 0 | R19: 0 | S19: 0 | T19: 0 | U19: 0 | V19: 0
B20: Mineraal 3 | C20: 0 | D20: 0.72 | E20: 0 | G20: 0 | H20: 0 | I20: 0 | J20: 0 | K20: 0 | L20: 0 | M20: 0 | N20: 0 | O20: 0 | P20: 0 | Q20: 0 | R20: 0 | S20: 0 | T20: 0 | U20: 0 | V20: 0
B21: Sooda | C21: 0 | D21: 0.343 | E21: 0 | G21: 0 | H21: 0 | I21: 0 | J21: 0 | K21: 0 | L21: 0 | M21: 0 | N21: 0 | O21: 0 | P21: 0 | Q21: 0 | R21: 0 | S21: 0 | T21: 0 | U21: 0 | V21: 0
B22: Karbamiid | C22: 0.04867177518 | D22: 0.295 | E22: 0.01435817368 | G22: 0.04867177518 | H22: 0.04818505743 | I22: 126.4857758 | J22: 0 | K22: 0 | L22: 126.4857758 | M22: 0 | N22: 0.04818505743 | O22: 0 | P22: 0 | Q22: 0 | R22: 0.09637011486 | S22: 0.1445551723 | T22: 0.1927402297 | U22: 0.2409252871 | V22: 0.01435817368
B23: Mineraal 4 | C23: 0 | D23: 1.315 | E23: 0 | G23: 0 | H23: 0 | I23: 0 | J23: 0 | K23: 0 | L23: 0 | M23: 0 | N23: 0 | O23: 0 | P23: 0 | Q23: 0 | R23: 0 | S23: 0 | T23: 0 | U23: 0 | V23: 0
B24: Kaitstud rasv | C24: 0 | D24: 1.13 | E24: 0 | G24: 0 | H24: 0 | I24: 0 | J24: 0 | K24: 0 | L24: 0 | M24: 0 | N24: 0 | O24: 0 | P24: 0 | Q24: 0 | R24: 0 | S24: 0 | T24: 0 | U24: 0 | V24: 0
H25: 0 | I25: 0 | J25: 0 | K25: 0 | L25: 0 | M25: 0 | N25: 0 | O25: 0 | P25: 0 | Q25: 0 | R25: 0 | S25: 0 | T25: 0 | U25: 0 | V25: 0
B26: Kontrollnäitajad
B28: Ratsiooni maksumus, €/päev | C28: 0.8464116318 | G28: Kokku: | H28: 9.9 | I28: 1237.5 | J28: 389.9547049 | K28: 741.1126493 | L28: -28.28271971 | M28: 98.07093646 | N28: 9.9 | O28: 2856.296694 | P28: 54.45 | Q28: 29.7 | R28: 19.8 | S28: 29.7 | T28: 39.6 | U28: 49.5 | V28: 0.8464116318
B29: Ratsiooni kogus, kg/päev | C29: 27.13349655 | G29: 1kg/KA's | I29: 125 | J29: 39.38936413 | K29: 74.85986357 | L29: -2.856840375 | M29: 9.906155197 | N29: 1 | O29: 288.5148176 | P29: 5.5 | Q29: 3 | R29: 2 | S29: 3 | T29: 4 | U29: 5
H30: TP/ME suhe: | J30: 12.61841729 | K30: MP/ME suhe: | M30: 7.556903973 | O30: Ca:P suhe: | Q30: 1.833333333
B31: Kuivaine kogus, kg | C31: 9.9 | I31: TF tarbenormid: | J31: 0.018 | N31: kg lehmale, kes lüpsab | O31: 20 | P31: kg EKM piima
B32: Kuivaine osatähtsus ratsiooni kogumassist, % | C32: 0.3648626701 | O32: ja kelle kehamassi muutus on | P32: 0.7 | Q32: kg
B33: Jõusööda osakaal ratsiooni kuivainest, % | C33: 0.01909943999 | I33: TARVE: | K33: 1063.259712 | M33: 149.0232442 | P33: 60.0009 | Q33: 40.0009
B34: Silo osatähtsus kuivainest, % | C34: 0.9309900045 | I34: VAHE: | K34: -322.1470627 | M34: -50.95230779 | P34: -5.5509 | Q34: -10.3009
B35: Maisisilo osatähtsus kogu silokoguse kuivainest, % | C35: 0 | K35: -350.4297825
B36: Nisu osatähtsus teravilja ja jahude kogusest, % | C36: 1 | L36: Ei tohi olla negatiivne ega üle +300
B38: Metaboliseeruv energia, MJ | C38: 98.07093646 | J38: Piima karbamiid, mg/l | K38: 256.8791029 | L38: (PBV järgi)
B39: Metaboliseeruv energia, MJ/kg KA | C39: 9.906155197 | J39: Piima karbamiid, mg/l | K39: 239.9867109 | L39: (TP/ME suhte järgi)
B40: (Toor)proteiin, g KA | C40: 125 | J40: Ratsioon kuivaine(kg) | K40: 3.811266352
B41: Toorproteiini ja metaboliseeruva energia suhe | C41: 12.61841729 | J41: Ratsioon kuivaine(%) | K41: 0.3849763992
B42: Metaboliseeruv proteiin, g/kg KA | C42: 74.85986357
B43: Metaboliseeruva proteiini ja metaboliseeruva energia suhe | C43: 7.556903973
B44: VPB, g | C44: -2.856840375
B45: Ca:P suhe | C45: 1.833333333
B47: Tärklis ja suhkur ratsiooni kuivaines, g/kg | C47: 39.38936413
B48: Toorkiud, g/kg KA | C48: 288.5148176
B49: ADF, g/kg KA | C49: 370.0389285
B50: NDF, g/kg KA | C50: 564.6276158
